{"text_format":"1","workbook":"xlsx","n_sheets":3,"sheets":["rozpis_příprava","rozpis_final_tisk","celkové umístění"],"not_rendered":{"charts":0,"images":0,"macros":1,"external_links":0,"defined_names":2,"comments":3,"pivot_tables":0},"unopened":[],"bounds":{"document_bytes":16777216,"sheet_cells":100000,"rows_first":2000,"rows_last":500,"rows_between":2000,"halvings":0,"cell_chars":16384,"cell_head_chars":4096},"cells_cut":0,"cells_raw":0,"read":"whole","date_system":"1900"}

{"sheet":"rozpis_příprava","index":0,"n_rows":30,"n_cols":18,"rows_kept":30,"cut":false,"hidden":false,"merged":[[9,1,9,17],[1,1,1,16],[23,2,23,17]]}
[]
[null,"VÁNOČNÍ  TURNAJ  V  BOWLINGU 2015"]
[]
[]
[null,"Místo:","Xbowling Žižkov "]
[null,"Datum:","2. ledna 2016 - sobota"]
[null,"Čas:","17:00 - 20:00 hod."]
[]
[]
[null,"Rozlosování účastníků na dráhy"]
[null,"PČ","DRÁHA č.1","kat.","DRÁHA č.2","kat.","DRÁHA č.3","kat.","DRÁHA č.4","kat.","DRÁHA č.5","kat.","DRÁHA č.6","kat.",null,"kat.",null,"kat."]
[null,"1.","Jana K.","Ž","Mirka M.","Ž","Lucka N.","Ž",null,null,"Mojka V.","P"]
[null,"2.","Renata A.","Ž","Olina P.","Ž",null,null,null,null,"Jarda H.","P","David D.","M"]
[null,"3.","Vlaďka C.","Ž","Jitka M.","Ž",null,null,null,null,"Štefan P.","M","Petr V.","P"]
[null,"4.","Ivana V.","Ž","Ilona K.","Ž",null,null,null,null,"Mirek K.","M","Honza R.","P"]
[]
[null,"Počet účastníků bowlingového turnaje"]
[]
[null,"CELKOVÝ",null,{"$f":"SUM(D20:D22)","v":16}]
[null,"KATEGORIE ŽENY",null,{"$f":"COUNTIF($D$12:$D$15,E20)+COUNTIF($F$12:$F$15,E20)+COUNTIF($H$12:$H$15,E20)+COUNTIF($J$12:$J$15,E20)+COUNTIF($L$12:$L$15,E20)+COUNTIF($N$12:$N$15,E20)+COUNTIF($P$12:$P$15,E20)+COUNTIF($R$12:$R$15,E20)","v":9},"Ž",null,{"$f":"IF(D20>10,\"ERROR - MAX 10 HRÁČŮ\")","v":false}]
[null,"KATEGORIE MUŽI",null,{"$f":"COUNTIF($D$12:$D$15,E21)+COUNTIF($F$12:$F$15,E21)+COUNTIF($H$12:$H$15,E21)+COUNTIF($J$12:$J$15,E21)+COUNTIF($L$12:$L$15,E21)+COUNTIF($N$12:$N$15,E21)+COUNTIF($P$12:$P$15,E21)+COUNTIF($R$12:$R$15,E21)","v":3},"M",null,{"$f":"IF(D21>12,\"ERROR - MAX 12 HRÁČŮ\")","v":false}]
[null,"KATEGORIE PROFI",null,4,"P",null,{"$f":"IF(D22>10,\"ERROR - MAX 10 HRÁČŮ\")","v":false}]
[]
[null,null,"Alternativní rozlosování hráčů na dráhy"]
[]
[null,null,"DRÁHA č.1","kat.","DRÁHA č.2","kat.","DRÁHA č.3","kat.","DRÁHA č.4","kat.","DRÁHA č.5","kat.","DRÁHA č.6","kat.",null,"kat.",null,"kat."]
[null,null,"Jiřina A.","Ž","Mirka M.","Ž","Mojka V.","P","Renda K.","P","Petr V.","P","David K.","P"]
[null,null,"Renata A.","Ž","Olina P.","Ž","Jarda H.","P","Jindra B.","P","Honza R.","P","David D.","M"]
[null,null,"Vlaďka C.","Ž","Jitka M.","Ž","Lucka P.","Ž","Karel V.","M","Štefan P.","M","Mirek H.","M"]
[null,null,"Ivana V.","Ž","Ilona K.","Ž","Lucka N.","Ž","Filip J.","M","Mirek K.","M","Pepa P.","M"]

{"sheet":"rozpis_final_tisk","index":1,"n_rows":143,"n_cols":49,"rows_kept":143,"cut":false,"hidden":false,"merged":[[133,4,133,13],[28,4,28,13],[45,4,45,13],[63,4,63,13],[80,4,80,13],[98,4,98,13],[139,1,139,2],[140,1,140,2],[34,1,34,2],[35,1,35,2],[51,1,51,2],[52,1,52,2],[69,1,69,2],[134,1,134,2],[115,1,115,2],[39,1,39,15],[45,1,45,2],[63,14,63,15],[98,3,99,3],[46,1,46,2],[80,1,80,2],[115,4,115,13],[133,1,133,2],[133,14,133,15],[70,1,70,2],[86,1,86,2],[87,1,87,2],[104,1,104,2],[105,1,105,2],[115,14,115,15],[116,1,116,2],[127,1,127,15],[121,1,121,2],[122,1,122,2],[115,3,116,3],[133,3,134,3],[126,1,126,2],[109,1,109,15],[4,1,4,15],[10,14,10,15],[22,1,22,15],[28,1,28,2],[28,14,28,15],[11,1,11,2],[10,1,10,2],[10,3,11,3],[28,3,29,3],[16,1,16,2],[17,1,17,2],[21,1,21,2],[10,4,10,13],[29,1,29,2],[99,1,99,2],[80,3,81,3],[45,3,46,3],[63,3,64,3],[74,1,74,15],[80,14,80,15],[91,1,91,2],[92,1,92,15],[98,1,98,2],[98,14,98,15],[45,14,45,15],[63,1,63,2],[64,1,64,2],[56,1,56,2],[57,1,57,15],[81,1,81,2]]}
[]
[null,null,"HENDIKEP",null,null,"BODŮ PRO ŽENY A JUNIORY DO 15 LET"]
[null,null,null,null,null,null,null,null,null,null,null,null,null,null,null,null,null,null,"Pomocné tabulky pro výpočet Hendikepu",null,null,null,null,null,null,null,null,null,null,null,null,null,null,null,null,null,null,null,null,null,"Pomocné tabulky pro výpočet průměru"]
[]
[null,{"$f":"rozpis_příprava!B2","v":"VÁNOČNÍ  TURNAJ  V  BOWLINGU 2015"},null,null,null,null,null,null,null,null,null,null,null,null,null,null,null,null,{"$f":"E2","v":0}]
[null,null,null,null,null,null,null,null,null,null,null,null,null,null,null,null,null,null,{"$f":"E2*2","v":0}]
[null,"Místo:",{"$f":"rozpis_příprava!C5","v":"Xbowling Žižkov "},null,null,null,null,null,null,null,null,null,null,null,null,null,null,null,{"$f":"E2*3","v":0}]
[null,"Datum:",{"$f":"rozpis_příprava!C6","v":"2. ledna 2016 - sobota"},null,null,null,null,null,null,null,null,null,null,null,null,null,null,null,{"$f":"E2*4","v":0}]
[null,"Čas:",{"$f":"rozpis_příprava!C7","v":"17:00 - 20:00 hod."},null,null,null,null,null,null,null,null,null,null,null,null,null,null,null,{"$f":"E2*5","v":0}]
[null,null,null,null,null,null,null,null,null,null,null,null,null,null,null,null,null,null,{"$f":"E2*6","v":0},null,"Převádí hodnoty pouze u hráčů z jedné kategorie \"Ž\" (hráči u kterých bude",null,null,null,null,null,null,null,null,null,null,null,null,null,null,null,null,null,null,null,"K reálnému náhozu hráče přičítá bodový Hendikep pro všechny kategorie. Přičemž navýšené "]
[null,null,null,"kat.",{"$f":"rozpis_příprava!C11","v":"DRÁHA č.1"},null,null,null,null,null,null,null,null,null,null,null,null,null,{"$f":"E2*7","v":0},null,"do výpočtu zahrnut Hendikep)",null,null,null,null,null,null,null,null,null,"Ruší chbové hlášení \"Nepravda\"",null,null,null,null,null,null,null,null,null,"výsledky o Hendikep jsou používány pouze pro kategorii Ž (ošetřeno vzorcem v průměru)."]
[null,"Jméno",null,null,"1. hra","2. hra","3.hra","4. hra","5. hra","6. hra","7. hra","8. hra","9. hra","Hendikep","SOUČET","PRŮMĚR",null,null,{"$f":"E2*8","v":0}]
[null,{"$f":"rozpis_příprava!C12","v":"Jana K."},null,{"$f":"rozpis_příprava!D12","v":"Ž"},189,145,185,206,122,null,null,null,null,{"$f":"IF(AM13>0,$S$13,IF(AL13>0,$S$12,IF(AK13>0,$S$11,IF(AJ13>0,$S$10,IF(AI13>0,$S$9,IF(AH13>0,$S$8,IF(AG13>0,$S$7,IF(AF13>0,$S$6,IF(AE13>0,$S$5)))))))))","v":0},{"$f":"SUM(E13:N13)","v":847},{"$f":"IF(D13=rozpis_příprava!$E$20,AVERAGE(AO13:AW13),IF(D13<>rozpis_příprava!$E$20,AVERAGE(rozpis_final_tisk!E13:M13)))","v":169.4},null,null,{"$f":"E2*9","v":0},null,{"$f":"IF(D13=rozpis_příprava!$E$20,IF(E13>0,E13))","v":189},{"$f":"IF(D13=rozpis_příprava!$E$20,IF(F13>0,F13))","v":145},{"$f":"IF(D13=rozpis_příprava!$E$20,IF(G13>0,G13))","v":185},{"$f":"IF(D13=rozpis_příprava!$E$20,IF(H13>0,H13))","v":206},{"$f":"IF(D13=rozpis_příprava!$E$20,IF(I13>0,I13))","v":122},{"$f":"IF(D13=rozpis_příprava!$E$20,IF(J13>0,J13))","v":false},{"$f":"IF(D13=rozpis_příprava!$E$20,IF(K13>0,K13))","v":false},{"$f":"IF(D13=rozpis_příprava!$E$20,IF(L13>0,L13))","v":false},{"$f":"IF(D13=rozpis_příprava!$E$20,IF(M13>0,M13))","v":false},null,{"$f":"IF(U13=FALSE,0)","v":false},{"$f":"IF(V13=FALSE,0)","v":false},false,false,false,0,0,0,0,null,{"$f":"IF(E13>0,E13+$E$2)","v":189},{"$f":"IF(F13>0,F13+$E$2)","v":145},185,206,122,false,false,false,false]
[null,{"$f":"rozpis_příprava!C13","v":"Renata A."},null,{"$f":"rozpis_příprava!D13","v":"Ž"},127,118,158,165,124,222,null,null,null,{"$f":"IF(AM14>0,$S$13,IF(AL14>0,$S$12,IF(AK14>0,$S$11,IF(AJ14>0,$S$10,IF(AI14>0,$S$9,IF(AH14>0,$S$8,IF(AG14>0,$S$7,IF(AF14>0,$S$6,IF(AE14>0,$S$5)))))))))","v":0},{"$f":"SUM(E14:N14)","v":914},{"$f":"IF(D14=rozpis_příprava!$E$20,AVERAGE(AO14:AW14),IF(D14<>rozpis_příprava!$E$20,AVERAGE(rozpis_final_tisk!E14:M14)))","v":152.33333333333334},null,null,null,null,{"$f":"IF(D14=rozpis_příprava!$E$20,IF(E14>0,E14))","v":127},{"$f":"IF(D14=rozpis_příprava!$E$20,IF(F14>0,F14))","v":118},{"$f":"IF(D14=rozpis_příprava!$E$20,IF(G14>0,G14))","v":158},{"$f":"IF(D14=rozpis_příprava!$E$20,IF(H14>0,H14))","v":165},{"$f":"IF(D14=rozpis_příprava!$E$20,IF(I14>0,I14))","v":124},{"$f":"IF(D14=rozpis_příprava!$E$20,IF(J14>0,J14))","v":222},{"$f":"IF(D14=rozpis_příprava!$E$20,IF(K14>0,K14))","v":false},{"$f":"IF(D14=rozpis_příprava!$E$20,IF(L14>0,L14))","v":false},{"$f":"IF(D14=rozpis_příprava!$E$20,IF(M14>0,M14))","v":false},null,{"$f":"IF(U14=FALSE,0)","v":false},{"$f":"IF(V14=FALSE,0)","v":false},{"$f":"IF(W14=FALSE,0)","v":false},{"$f":"IF(X14=FALSE,0)","v":false},{"$f":"IF(Y14=FALSE,0)","v":false},{"$f":"IF(Z14=FALSE,0)","v":false},{"$f":"IF(AA14=FALSE,0)","v":0},{"$f":"IF(AB14=FALSE,0)","v":0},{"$f":"IF(AC14=FALSE,0)","v":0},null,{"$f":"IF(E14>0,E14+$E$2)","v":127},{"$f":"IF(F14>0,F14+$E$2)","v":118},{"$f":"IF(G14>0,G14+$E$2)","v":158},{"$f":"IF(H14>0,H14+$E$2)","v":165},{"$f":"IF(I14>0,I14+$E$2)","v":124},{"$f":"IF(J14>0,J14+$E$2)","v":222},{"$f":"IF(K14>0,K14+$E$2)","v":false},{"$f":"IF(L14>0,L14+$E$2)","v":false},{"$f":"IF(M14>0,M14+$E$2)","v":false}]
[null,{"$f":"rozpis_příprava!C14","v":"Vlaďka C."},null,{"$f":"rozpis_příprava!D14","v":"Ž"},82,94,98,58,97,null,null,null,null,0,429,{"$f":"IF(D15=rozpis_příprava!$E$20,AVERAGE(AO15:AW15),IF(D15<>rozpis_příprava!$E$20,AVERAGE(rozpis_final_tisk!E15:M15)))","v":85.8},null,null,null,null,{"$f":"IF(D15=rozpis_příprava!$E$20,IF(E15>0,E15))","v":82},{"$f":"IF(D15=rozpis_příprava!$E$20,IF(F15>0,F15))","v":94},{"$f":"IF(D15=rozpis_příprava!$E$20,IF(G15>0,G15))","v":98},{"$f":"IF(D15=rozpis_příprava!$E$20,IF(H15>0,H15))","v":58},{"$f":"IF(D15=rozpis_příprava!$E$20,IF(I15>0,I15))","v":97},{"$f":"IF(D15=rozpis_příprava!$E$20,IF(J15>0,J15))","v":false},{"$f":"IF(D15=rozpis_příprava!$E$20,IF(K15>0,K15))","v":false},{"$f":"IF(D15=rozpis_příprava!$E$20,IF(L15>0,L15))","v":false},{"$f":"IF(D15=rozpis_příprava!$E$20,IF(M15>0,M15))","v":false},null,false,false,false,false,false,0,0,0,0,null,82,94,98,58,97,false,false,false,false]
[null,{"$f":"rozpis_příprava!C15","v":"Ivana V."},null,{"$f":"rozpis_příprava!D15","v":"Ž"},77,107,69,97,84,null,null,null,null,0,434,{"$f":"IF(D16=rozpis_příprava!$E$20,AVERAGE(AO16:AW16),IF(D16<>rozpis_příprava!$E$20,AVERAGE(rozpis_final_tisk!E16:M16)))","v":86.8},null,null,null,null,{"$f":"IF(D16=rozpis_příprava!$E$20,IF(E16>0,E16))","v":77},{"$f":"IF(D16=rozpis_příprava!$E$20,IF(F16>0,F16))","v":107},{"$f":"IF(D16=rozpis_příprava!$E$20,IF(G16>0,G16))","v":69},{"$f":"IF(D16=rozpis_příprava!$E$20,IF(H16>0,H16))","v":97},{"$f":"IF(D16=rozpis_příprava!$E$20,IF(I16>0,I16))","v":84},{"$f":"IF(D16=rozpis_příprava!$E$20,IF(J16>0,J16))","v":false},{"$f":"IF(D16=rozpis_příprava!$E$20,IF(K16>0,K16))","v":false},{"$f":"IF(D16=rozpis_příprava!$E$20,IF(L16>0,L16))","v":false},{"$f":"IF(D16=rozpis_příprava!$E$20,IF(M16>0,M16))","v":false},null,false,false,false,false,false,0,0,0,0,null,77,107,69,97,84,false,false,false,false]
[null,"SOUČET",null,null,{"$f":"IF(SUM(E13:E16)=0,\"\",SUM(E13:E16))","v":475},{"$f":"IF(SUM(F13:F16)=0,\"\",SUM(F13:F16))","v":464},510,526,427,222,"","","",null,{"$f":"IF(SUM(E17:M17)=0,\"\",SUM(E17:M17))","v":2624}]
[null,"PRŮMĚR",null,null,{"$f":"IF(E17=\"\",\"\",AVERAGE(E13:E16))","v":118.75},{"$f":"IF(F17=\"\",\"\",AVERAGE(F13:F16))","v":116},127.5,131.5,106.75,222,"","","",null,null,{"$f":"IF(O17=\"\",\"\",AVERAGE(E13:M16))","v":124.95238095238095}]
[]
[null,"Za zápis na dráze zodpovídá:"]
[]
[]
[null,{"$f":"rozpis_příprava!B2","v":"VÁNOČNÍ  TURNAJ  V  BOWLINGU 2015"}]
[]
[null,"Místo:",{"$f":"rozpis_příprava!C5","v":"Xbowling Žižkov "}]
[null,"Datum:",{"$f":"rozpis_příprava!C6","v":"2. ledna 2016 - sobota"}]
[null,"Čas:",{"$f":"rozpis_příprava!C7","v":"17:00 - 20:00 hod."}]
[]
[null,null,null,"kat.",{"$f":"rozpis_příprava!E11","v":"DRÁHA č.2"}]
[null,"Jméno",null,null,"1. hra","2. hra","3.hra","4. hra","5. hra","6. hra","7. hra","8. hra","9. hra","Hendikep","SOUČET","PRŮMĚR"]
[null,{"$f":"rozpis_příprava!E12","v":"Mirka M."},null,{"$f":"rozpis_příprava!F12","v":"Ž"},79,53,97,72,90,null,null,null,null,{"$f":"IF(AM31>0,$S$13,IF(AL31>0,$S$12,IF(AK31>0,$S$11,IF(AJ31>0,$S$10,IF(AI31>0,$S$9,IF(AH31>0,$S$8,IF(AG31>0,$S$7,IF(AF31>0,$S$6,IF(AE31>0,$S$5)))))))))","v":0},{"$f":"SUM(E31:N31)","v":391},{"$f":"IF(D31=rozpis_příprava!$E$20,AVERAGE(AO31:AW31),IF(D31<>rozpis_příprava!$E$20,AVERAGE(rozpis_final_tisk!E31:M31)))","v":78.2},null,null,null,null,{"$f":"IF(D31=rozpis_příprava!$E$20,IF(E31>0,E31))","v":79},{"$f":"IF(D31=rozpis_příprava!$E$20,IF(F31>0,F31))","v":53},{"$f":"IF(D31=rozpis_příprava!$E$20,IF(G31>0,G31))","v":97},{"$f":"IF(D31=rozpis_příprava!$E$20,IF(H31>0,H31))","v":72},{"$f":"IF(D31=rozpis_příprava!$E$20,IF(I31>0,I31))","v":90},{"$f":"IF(D31=rozpis_příprava!$E$20,IF(J31>0,J31))","v":false},{"$f":"IF(D31=rozpis_příprava!$E$20,IF(K31>0,K31))","v":false},{"$f":"IF(D31=rozpis_příprava!$E$20,IF(L31>0,L31))","v":false},{"$f":"IF(D31=rozpis_příprava!$E$20,IF(M31>0,M31))","v":false},null,{"$f":"IF(U31=FALSE,0)","v":false},{"$f":"IF(V31=FALSE,0)","v":false},{"$f":"IF(W31=FALSE,0)","v":false},{"$f":"IF(X31=FALSE,0)","v":false},{"$f":"IF(Y31=FALSE,0)","v":false},{"$f":"IF(Z31=FALSE,0)","v":0},{"$f":"IF(AA31=FALSE,0)","v":0},{"$f":"IF(AB31=FALSE,0)","v":0},{"$f":"IF(AC31=FALSE,0)","v":0},null,{"$f":"IF(E31>0,E31+$E$2)","v":79},{"$f":"IF(F31>0,F31+$E$2)","v":53},{"$f":"IF(G31>0,G31+$E$2)","v":97},{"$f":"IF(H31>0,H31+$E$2)","v":72},{"$f":"IF(I31>0,I31+$E$2)","v":90},{"$f":"IF(J31>0,J31+$E$2)","v":false},{"$f":"IF(K31>0,K31+$E$2)","v":false},{"$f":"IF(L31>0,L31+$E$2)","v":false},{"$f":"IF(M31>0,M31+$E$2)","v":false}]
[null,{"$f":"rozpis_příprava!E13","v":"Olina P."},null,{"$f":"rozpis_příprava!F13","v":"Ž"},187,124,147,146,265,null,null,null,null,{"$f":"IF(AM32>0,$S$13,IF(AL32>0,$S$12,IF(AK32>0,$S$11,IF(AJ32>0,$S$10,IF(AI32>0,$S$9,IF(AH32>0,$S$8,IF(AG32>0,$S$7,IF(AF32>0,$S$6,IF(AE32>0,$S$5)))))))))","v":0},{"$f":"SUM(E32:N32)","v":869},{"$f":"IF(D32=rozpis_příprava!$E$20,AVERAGE(AO32:AW32),IF(D32<>rozpis_příprava!$E$20,AVERAGE(rozpis_final_tisk!E32:M32)))","v":173.8},null,null,null,null,{"$f":"IF(D32=rozpis_příprava!$E$20,IF(E32>0,E32))","v":187},{"$f":"IF(D32=rozpis_příprava!$E$20,IF(F32>0,F32))","v":124},{"$f":"IF(D32=rozpis_příprava!$E$20,IF(G32>0,G32))","v":147},{"$f":"IF(D32=rozpis_příprava!$E$20,IF(H32>0,H32))","v":146},{"$f":"IF(D32=rozpis_příprava!$E$20,IF(I32>0,I32))","v":265},{"$f":"IF(D32=rozpis_příprava!$E$20,IF(J32>0,J32))","v":false},{"$f":"IF(D32=rozpis_příprava!$E$20,IF(K32>0,K32))","v":false},{"$f":"IF(D32=rozpis_příprava!$E$20,IF(L32>0,L32))","v":false},{"$f":"IF(D32=rozpis_příprava!$E$20,IF(M32>0,M32))","v":false},null,{"$f":"IF(U32=FALSE,0)","v":false},false,false,false,false,0,0,0,0,null,{"$f":"IF(E32>0,E32+$E$2)","v":187},124,147,146,265,false,false,false,false]
[null,{"$f":"rozpis_příprava!E14","v":"Jitka M."},null,{"$f":"rozpis_příprava!F14","v":"Ž"},63,92,102,120,112,155,null,null,null,0,644,{"$f":"IF(D33=rozpis_příprava!$E$20,AVERAGE(AO33:AW33),IF(D33<>rozpis_příprava!$E$20,AVERAGE(rozpis_final_tisk!E33:M33)))","v":107.33333333333333},null,null,null,null,{"$f":"IF(D33=rozpis_příprava!$E$20,IF(E33>0,E33))","v":63},{"$f":"IF(D33=rozpis_příprava!$E$20,IF(F33>0,F33))","v":92},{"$f":"IF(D33=rozpis_příprava!$E$20,IF(G33>0,G33))","v":102},{"$f":"IF(D33=rozpis_příprava!$E$20,IF(H33>0,H33))","v":120},{"$f":"IF(D33=rozpis_příprava!$E$20,IF(I33>0,I33))","v":112},{"$f":"IF(D33=rozpis_příprava!$E$20,IF(J33>0,J33))","v":155},{"$f":"IF(D33=rozpis_příprava!$E$20,IF(K33>0,K33))","v":false},{"$f":"IF(D33=rozpis_příprava!$E$20,IF(L33>0,L33))","v":false},{"$f":"IF(D33=rozpis_příprava!$E$20,IF(M33>0,M33))","v":false},null,false,false,false,false,false,false,0,0,0,null,63,92,102,120,112,155,false,false,false]
[null,{"$f":"rozpis_příprava!E15","v":"Ilona K."},null,{"$f":"rozpis_příprava!F15","v":"Ž"},88,73,115,46,64,89,null,null,null,0,475,{"$f":"IF(D34=rozpis_příprava!$E$20,AVERAGE(AO34:AW34),IF(D34<>rozpis_příprava!$E$20,AVERAGE(rozpis_final_tisk!E34:M34)))","v":79.166666666666671},null,null,null,null,{"$f":"IF(D34=rozpis_příprava!$E$20,IF(E34>0,E34))","v":88},{"$f":"IF(D34=rozpis_příprava!$E$20,IF(F34>0,F34))","v":73},{"$f":"IF(D34=rozpis_příprava!$E$20,IF(G34>0,G34))","v":115},{"$f":"IF(D34=rozpis_příprava!$E$20,IF(H34>0,H34))","v":46},{"$f":"IF(D34=rozpis_příprava!$E$20,IF(I34>0,I34))","v":64},{"$f":"IF(D34=rozpis_příprava!$E$20,IF(J34>0,J34))","v":89},{"$f":"IF(D34=rozpis_příprava!$E$20,IF(K34>0,K34))","v":false},{"$f":"IF(D34=rozpis_příprava!$E$20,IF(L34>0,L34))","v":false},{"$f":"IF(D34=rozpis_příprava!$E$20,IF(M34>0,M34))","v":false},null,false,false,false,false,false,false,0,0,0,null,88,73,115,46,64,89,false,false,false]
[null,"SOUČET",null,null,{"$f":"IF(SUM(E31:E34)=0,\"\",SUM(E31:E34))","v":417},{"$f":"IF(SUM(F31:F34)=0,\"\",SUM(F31:F34))","v":342},{"$f":"IF(SUM(G31:G34)=0,\"\",SUM(G31:G34))","v":461},{"$f":"IF(SUM(H31:H34)=0,\"\",SUM(H31:H34))","v":384},{"$f":"IF(SUM(I31:I34)=0,\"\",SUM(I31:I34))","v":531},{"$f":"IF(SUM(J31:J34)=0,\"\",SUM(J31:J34))","v":244},{"$f":"IF(SUM(K31:K34)=0,\"\",SUM(K31:K34))","v":""},{"$f":"IF(SUM(L31:L34)=0,\"\",SUM(L31:L34))","v":""},{"$f":"IF(SUM(M31:M34)=0,\"\",SUM(M31:M34))","v":""},null,{"$f":"IF(SUM(E35:M35)=0,\"\",SUM(E35:M35))","v":2379}]
[null,"PRŮMĚR",null,null,{"$f":"IF(E35=\"\",\"\",AVERAGE(E31:E34))","v":104.25},{"$f":"IF(F35=\"\",\"\",AVERAGE(F31:F34))","v":85.5},{"$f":"IF(G35=\"\",\"\",AVERAGE(G31:G34))","v":115.25},{"$f":"IF(H35=\"\",\"\",AVERAGE(H31:H34))","v":96},{"$f":"IF(I35=\"\",\"\",AVERAGE(I31:I34))","v":132.75},{"$f":"IF(J35=\"\",\"\",AVERAGE(J31:J34))","v":122},{"$f":"IF(K35=\"\",\"\",AVERAGE(K31:K34))","v":""},{"$f":"IF(L35=\"\",\"\",AVERAGE(L31:L34))","v":""},{"$f":"IF(M35=\"\",\"\",AVERAGE(M31:M34))","v":""},null,null,{"$f":"IF(O35=\"\",\"\",AVERAGE(E31:M34))","v":108.13636363636364}]
[]
[null,"Za zápis na dráze zodpovídá:"]
[]
[null,{"$f":"rozpis_příprava!B2","v":"VÁNOČNÍ  TURNAJ  V  BOWLINGU 2015"}]
[]
[null,"Místo:",{"$f":"rozpis_příprava!C5","v":"Xbowling Žižkov "}]
[null,"Datum:",{"$f":"rozpis_příprava!C6","v":"2. ledna 2016 - sobota"}]
[null,"Čas:",{"$f":"rozpis_příprava!C7","v":"17:00 - 20:00 hod."}]
[]
[null,null,null,"kat.",{"$f":"rozpis_příprava!G11","v":"DRÁHA č.3"}]
[null,"Jméno",null,null,"1. hra","2. hra","3.hra","4. hra","5. hra","6. hra","7. hra","8. hra","9. hra","Hendikep","SOUČET","PRŮMĚR"]
[null,{"$f":"rozpis_příprava!G12","v":"Lucka N."},null,{"$f":"rozpis_příprava!H12","v":"Ž"},107,132,80,116,null,null,null,null,null,{"$f":"IF(AM48>0,$S$13,IF(AL48>0,$S$12,IF(AK48>0,$S$11,IF(AJ48>0,$S$10,IF(AI48>0,$S$9,IF(AH48>0,$S$8,IF(AG48>0,$S$7,IF(AF48>0,$S$6,IF(AE48>0,$S$5)))))))))","v":0},{"$f":"SUM(E48:N48)","v":435},{"$f":"IF(D48=rozpis_příprava!$E$20,AVERAGE(AO48:AW48),IF(D48<>rozpis_příprava!$E$20,AVERAGE(rozpis_final_tisk!E48:M48)))","v":108.75},null,null,null,null,{"$f":"IF(D48=rozpis_příprava!$E$20,IF(E48>0,E48))","v":107},{"$f":"IF(D48=rozpis_příprava!$E$20,IF(F48>0,F48))","v":132},{"$f":"IF(D48=rozpis_příprava!$E$20,IF(G48>0,G48))","v":80},{"$f":"IF(D48=rozpis_příprava!$E$20,IF(H48>0,H48))","v":116},{"$f":"IF(D48=rozpis_příprava!$E$20,IF(I48>0,I48))","v":false},{"$f":"IF(D48=rozpis_příprava!$E$20,IF(J48>0,J48))","v":false},{"$f":"IF(D48=rozpis_příprava!$E$20,IF(K48>0,K48))","v":false},{"$f":"IF(D48=rozpis_příprava!$E$20,IF(L48>0,L48))","v":false},{"$f":"IF(D48=rozpis_příprava!$E$20,IF(M48>0,M48))","v":false},null,{"$f":"IF(U48=FALSE,0)","v":false},{"$f":"IF(V48=FALSE,0)","v":false},{"$f":"IF(W48=FALSE,0)","v":false},{"$f":"IF(X48=FALSE,0)","v":false},{"$f":"IF(Y48=FALSE,0)","v":0},{"$f":"IF(Z48=FALSE,0)","v":0},{"$f":"IF(AA48=FALSE,0)","v":0},{"$f":"IF(AB48=FALSE,0)","v":0},{"$f":"IF(AC48=FALSE,0)","v":0},null,{"$f":"IF(E48>0,E48+$E$2)","v":107},{"$f":"IF(F48>0,F48+$E$2)","v":132},{"$f":"IF(G48>0,G48+$E$2)","v":80},{"$f":"IF(H48>0,H48+$E$2)","v":116},{"$f":"IF(I48>0,I48+$E$2)","v":false},{"$f":"IF(J48>0,J48+$E$2)","v":false},{"$f":"IF(K48>0,K48+$E$2)","v":false},{"$f":"IF(L48>0,L48+$E$2)","v":false},{"$f":"IF(M48>0,M48+$E$2)","v":false}]
[null,{"$f":"rozpis_příprava!G13","v":0},null,{"$f":"rozpis_příprava!H13","v":0},null,null,null,null,null,null,null,null,null,{"$f":"IF(AM49>0,$S$13,IF(AL49>0,$S$12,IF(AK49>0,$S$11,IF(AJ49>0,$S$10,IF(AI49>0,$S$9,IF(AH49>0,$S$8,IF(AG49>0,$S$7,IF(AF49>0,$S$6,IF(AE49>0,$S$5)))))))))","v":false},{"$f":"SUM(E49:N49)","v":0},{"$f":"IF(D49=rozpis_příprava!$E$20,AVERAGE(AO49:AW49),IF(D49<>rozpis_příprava!$E$20,AVERAGE(rozpis_final_tisk!E49:M49)))","v":{"$error":"#DIV/0!"}},null,null,null,null,{"$f":"IF(D49=rozpis_příprava!$E$20,IF(E49>0,E49))","v":false},{"$f":"IF(D49=rozpis_příprava!$E$20,IF(F49>0,F49))","v":false},{"$f":"IF(D49=rozpis_příprava!$E$20,IF(G49>0,G49))","v":false},{"$f":"IF(D49=rozpis_příprava!$E$20,IF(H49>0,H49))","v":false},{"$f":"IF(D49=rozpis_příprava!$E$20,IF(I49>0,I49))","v":false},{"$f":"IF(D49=rozpis_příprava!$E$20,IF(J49>0,J49))","v":false},{"$f":"IF(D49=rozpis_příprava!$E$20,IF(K49>0,K49))","v":false},{"$f":"IF(D49=rozpis_příprava!$E$20,IF(L49>0,L49))","v":false},{"$f":"IF(D49=rozpis_příprava!$E$20,IF(M49>0,M49))","v":false},null,{"$f":"IF(U49=FALSE,0)","v":0},0,0,0,0,0,0,0,0,null,{"$f":"IF(E49>0,E49+$E$2)","v":false},false,false,false,false,false,false,false,false]
[null,{"$f":"rozpis_příprava!G14","v":0},null,{"$f":"rozpis_příprava!H14","v":0},null,null,null,null,null,null,null,null,null,false,0,{"$f":"IF(D50=rozpis_příprava!$E$20,AVERAGE(AO50:AW50),IF(D50<>rozpis_příprava!$E$20,AVERAGE(rozpis_final_tisk!E50:M50)))","v":{"$error":"#DIV/0!"}},null,null,null,null,{"$f":"IF(D50=rozpis_příprava!$E$20,IF(E50>0,E50))","v":false},{"$f":"IF(D50=rozpis_příprava!$E$20,IF(F50>0,F50))","v":false},{"$f":"IF(D50=rozpis_příprava!$E$20,IF(G50>0,G50))","v":false},{"$f":"IF(D50=rozpis_příprava!$E$20,IF(H50>0,H50))","v":false},{"$f":"IF(D50=rozpis_příprava!$E$20,IF(I50>0,I50))","v":false},{"$f":"IF(D50=rozpis_příprava!$E$20,IF(J50>0,J50))","v":false},{"$f":"IF(D50=rozpis_příprava!$E$20,IF(K50>0,K50))","v":false},{"$f":"IF(D50=rozpis_příprava!$E$20,IF(L50>0,L50))","v":false},{"$f":"IF(D50=rozpis_příprava!$E$20,IF(M50>0,M50))","v":false},null,0,0,0,0,0,0,0,0,0,null,false,false,false,false,false,false,false,false,false]
[null,{"$f":"rozpis_příprava!G15","v":0},null,{"$f":"rozpis_příprava!H15","v":0},null,null,null,null,null,null,null,null,null,false,0,{"$f":"IF(D51=rozpis_příprava!$E$20,AVERAGE(AO51:AW51),IF(D51<>rozpis_příprava!$E$20,AVERAGE(rozpis_final_tisk!E51:M51)))","v":{"$error":"#DIV/0!"}},null,null,null,null,{"$f":"IF(D51=rozpis_příprava!$E$20,IF(E51>0,E51))","v":false},{"$f":"IF(D51=rozpis_příprava!$E$20,IF(F51>0,F51))","v":false},{"$f":"IF(D51=rozpis_příprava!$E$20,IF(G51>0,G51))","v":false},{"$f":"IF(D51=rozpis_příprava!$E$20,IF(H51>0,H51))","v":false},{"$f":"IF(D51=rozpis_příprava!$E$20,IF(I51>0,I51))","v":false},{"$f":"IF(D51=rozpis_příprava!$E$20,IF(J51>0,J51))","v":false},{"$f":"IF(D51=rozpis_příprava!$E$20,IF(K51>0,K51))","v":false},{"$f":"IF(D51=rozpis_příprava!$E$20,IF(L51>0,L51))","v":false},{"$f":"IF(D51=rozpis_příprava!$E$20,IF(M51>0,M51))","v":false},null,0,0,0,0,0,0,0,0,0,null,false,false,false,false,false,false,false,false,false]
[null,"SOUČET",null,null,{"$f":"IF(SUM(E48:E51)=0,\"\",SUM(E48:E51))","v":107},{"$f":"IF(SUM(F48:F51)=0,\"\",SUM(F48:F51))","v":132},{"$f":"IF(SUM(G48:G51)=0,\"\",SUM(G48:G51))","v":80},{"$f":"IF(SUM(H48:H51)=0,\"\",SUM(H48:H51))","v":116},{"$f":"IF(SUM(I48:I51)=0,\"\",SUM(I48:I51))","v":""},{"$f":"IF(SUM(J48:J51)=0,\"\",SUM(J48:J51))","v":""},{"$f":"IF(SUM(K48:K51)=0,\"\",SUM(K48:K51))","v":""},{"$f":"IF(SUM(L48:L51)=0,\"\",SUM(L48:L51))","v":""},{"$f":"IF(SUM(M48:M51)=0,\"\",SUM(M48:M51))","v":""},null,{"$f":"IF(SUM(E52:M52)=0,\"\",SUM(E52:M52))","v":435}]
[null,"PRŮMĚR",null,null,{"$f":"IF(E52=\"\",\"\",AVERAGE(E48:E51))","v":107},{"$f":"IF(F52=\"\",\"\",AVERAGE(F48:F51))","v":132},{"$f":"IF(G52=\"\",\"\",AVERAGE(G48:G51))","v":80},{"$f":"IF(H52=\"\",\"\",AVERAGE(H48:H51))","v":116},{"$f":"IF(I52=\"\",\"\",AVERAGE(I48:I51))","v":""},{"$f":"IF(J52=\"\",\"\",AVERAGE(J48:J51))","v":""},{"$f":"IF(K52=\"\",\"\",AVERAGE(K48:K51))","v":""},{"$f":"IF(L52=\"\",\"\",AVERAGE(L48:L51))","v":""},{"$f":"IF(M52=\"\",\"\",AVERAGE(M48:M51))","v":""},null,null,{"$f":"IF(O52=\"\",\"\",AVERAGE(E48:M51))","v":108.75}]
[]
[null,"Za zápis na dráze zodpovídá:"]
[]
[]
[null,{"$f":"rozpis_příprava!B2","v":"VÁNOČNÍ  TURNAJ  V  BOWLINGU 2015"}]
[]
[null,"Místo:",{"$f":"rozpis_příprava!C5","v":"Xbowling Žižkov "}]
[null,"Datum:",{"$f":"rozpis_příprava!C6","v":"2. ledna 2016 - sobota"}]
[null,"Čas:",{"$f":"rozpis_příprava!C7","v":"17:00 - 20:00 hod."}]
[]
[null,null,null,"kat.",{"$f":"rozpis_příprava!I11","v":"DRÁHA č.4"}]
[null,"Jméno",null,null,"1. hra","2. hra","3.hra","4. hra","5. hra","6. hra","7. hra","8. hra","9. hra","Hendikep","SOUČET","PRŮMĚR"]
[null,{"$f":"rozpis_příprava!I12","v":0},null,{"$f":"rozpis_příprava!J12","v":0},null,null,null,null,null,null,null,null,null,{"$f":"IF(AM66>0,$S$13,IF(AL66>0,$S$12,IF(AK66>0,$S$11,IF(AJ66>0,$S$10,IF(AI66>0,$S$9,IF(AH66>0,$S$8,IF(AG66>0,$S$7,IF(AF66>0,$S$6,IF(AE66>0,$S$5)))))))))","v":false},{"$f":"SUM(E66:N66)","v":0},{"$f":"IF(D66=rozpis_příprava!$E$20,AVERAGE(AO66:AW66),IF(D66<>rozpis_příprava!$E$20,AVERAGE(rozpis_final_tisk!E66:M66)))","v":{"$error":"#DIV/0!"}},null,null,null,null,{"$f":"IF(D66=rozpis_příprava!$E$20,IF(E66>0,E66))","v":false},{"$f":"IF(D66=rozpis_příprava!$E$20,IF(F66>0,F66))","v":false},{"$f":"IF(D66=rozpis_příprava!$E$20,IF(G66>0,G66))","v":false},{"$f":"IF(D66=rozpis_příprava!$E$20,IF(H66>0,H66))","v":false},{"$f":"IF(D66=rozpis_příprava!$E$20,IF(I66>0,I66))","v":false},{"$f":"IF(D66=rozpis_příprava!$E$20,IF(J66>0,J66))","v":false},{"$f":"IF(D66=rozpis_příprava!$E$20,IF(K66>0,K66))","v":false},{"$f":"IF(D66=rozpis_příprava!$E$20,IF(L66>0,L66))","v":false},{"$f":"IF(D66=rozpis_příprava!$E$20,IF(M66>0,M66))","v":false},null,{"$f":"IF(U66=FALSE,0)","v":0},{"$f":"IF(V66=FALSE,0)","v":0},{"$f":"IF(W66=FALSE,0)","v":0},{"$f":"IF(X66=FALSE,0)","v":0},{"$f":"IF(Y66=FALSE,0)","v":0},{"$f":"IF(Z66=FALSE,0)","v":0},{"$f":"IF(AA66=FALSE,0)","v":0},{"$f":"IF(AB66=FALSE,0)","v":0},{"$f":"IF(AC66=FALSE,0)","v":0},null,{"$f":"IF(E66>0,E66+$E$2)","v":false},{"$f":"IF(F66>0,F66+$E$2)","v":false},{"$f":"IF(G66>0,G66+$E$2)","v":false},{"$f":"IF(H66>0,H66+$E$2)","v":false},{"$f":"IF(I66>0,I66+$E$2)","v":false},{"$f":"IF(J66>0,J66+$E$2)","v":false},{"$f":"IF(K66>0,K66+$E$2)","v":false},{"$f":"IF(L66>0,L66+$E$2)","v":false},{"$f":"IF(M66>0,M66+$E$2)","v":false}]
[null,{"$f":"rozpis_příprava!I13","v":0},null,{"$f":"rozpis_příprava!J13","v":0},null,null,null,null,null,null,null,null,null,{"$f":"IF(AM67>0,$S$13,IF(AL67>0,$S$12,IF(AK67>0,$S$11,IF(AJ67>0,$S$10,IF(AI67>0,$S$9,IF(AH67>0,$S$8,IF(AG67>0,$S$7,IF(AF67>0,$S$6,IF(AE67>0,$S$5)))))))))","v":false},{"$f":"SUM(E67:N67)","v":0},{"$f":"IF(D67=rozpis_příprava!$E$20,AVERAGE(AO67:AW67),IF(D67<>rozpis_příprava!$E$20,AVERAGE(rozpis_final_tisk!E67:M67)))","v":{"$error":"#DIV/0!"}},null,null,null,null,{"$f":"IF(D67=rozpis_příprava!$E$20,IF(E67>0,E67))","v":false},{"$f":"IF(D67=rozpis_příprava!$E$20,IF(F67>0,F67))","v":false},{"$f":"IF(D67=rozpis_příprava!$E$20,IF(G67>0,G67))","v":false},{"$f":"IF(D67=rozpis_příprava!$E$20,IF(H67>0,H67))","v":false},{"$f":"IF(D67=rozpis_příprava!$E$20,IF(I67>0,I67))","v":false},{"$f":"IF(D67=rozpis_příprava!$E$20,IF(J67>0,J67))","v":false},{"$f":"IF(D67=rozpis_příprava!$E$20,IF(K67>0,K67))","v":false},{"$f":"IF(D67=rozpis_příprava!$E$20,IF(L67>0,L67))","v":false},{"$f":"IF(D67=rozpis_příprava!$E$20,IF(M67>0,M67))","v":false},null,{"$f":"IF(U67=FALSE,0)","v":0},0,0,0,0,0,0,0,0,null,{"$f":"IF(E67>0,E67+$E$2)","v":false},false,false,false,false,false,false,false,false]
[null,{"$f":"rozpis_příprava!I14","v":0},null,{"$f":"rozpis_příprava!J14","v":0},null,null,null,null,null,null,null,null,null,false,0,{"$f":"IF(D68=rozpis_příprava!$E$20,AVERAGE(AO68:AW68),IF(D68<>rozpis_příprava!$E$20,AVERAGE(rozpis_final_tisk!E68:M68)))","v":{"$error":"#DIV/0!"}},null,null,null,null,{"$f":"IF(D68=rozpis_příprava!$E$20,IF(E68>0,E68))","v":false},{"$f":"IF(D68=rozpis_příprava!$E$20,IF(F68>0,F68))","v":false},{"$f":"IF(D68=rozpis_příprava!$E$20,IF(G68>0,G68))","v":false},{"$f":"IF(D68=rozpis_příprava!$E$20,IF(H68>0,H68))","v":false},{"$f":"IF(D68=rozpis_příprava!$E$20,IF(I68>0,I68))","v":false},{"$f":"IF(D68=rozpis_příprava!$E$20,IF(J68>0,J68))","v":false},{"$f":"IF(D68=rozpis_příprava!$E$20,IF(K68>0,K68))","v":false},{"$f":"IF(D68=rozpis_příprava!$E$20,IF(L68>0,L68))","v":false},{"$f":"IF(D68=rozpis_příprava!$E$20,IF(M68>0,M68))","v":false},null,0,0,0,0,0,0,0,0,0,null,false,false,false,false,false,false,false,false,false]
[null,{"$f":"rozpis_příprava!I15","v":0},null,{"$f":"rozpis_příprava!J15","v":0},null,null,null,null,null,null,null,null,null,false,0,{"$f":"IF(D69=rozpis_příprava!$E$20,AVERAGE(AO69:AW69),IF(D69<>rozpis_příprava!$E$20,AVERAGE(rozpis_final_tisk!E69:M69)))","v":{"$error":"#DIV/0!"}},null,null,null,null,{"$f":"IF(D69=rozpis_příprava!$E$20,IF(E69>0,E69))","v":false},{"$f":"IF(D69=rozpis_příprava!$E$20,IF(F69>0,F69))","v":false},{"$f":"IF(D69=rozpis_příprava!$E$20,IF(G69>0,G69))","v":false},{"$f":"IF(D69=rozpis_příprava!$E$20,IF(H69>0,H69))","v":false},{"$f":"IF(D69=rozpis_příprava!$E$20,IF(I69>0,I69))","v":false},{"$f":"IF(D69=rozpis_příprava!$E$20,IF(J69>0,J69))","v":false},{"$f":"IF(D69=rozpis_příprava!$E$20,IF(K69>0,K69))","v":false},{"$f":"IF(D69=rozpis_příprava!$E$20,IF(L69>0,L69))","v":false},{"$f":"IF(D69=rozpis_příprava!$E$20,IF(M69>0,M69))","v":false},null,0,0,0,0,0,0,0,0,0,null,false,false,false,false,false,false,false,false,false]
[null,"SOUČET",null,null,{"$f":"IF(SUM(E66:E69)=0,\"\",SUM(E66:E69))","v":""},{"$f":"IF(SUM(F66:F69)=0,\"\",SUM(F66:F69))","v":""},{"$f":"IF(SUM(G66:G69)=0,\"\",SUM(G66:G69))","v":""},{"$f":"IF(SUM(H66:H69)=0,\"\",SUM(H66:H69))","v":""},{"$f":"IF(SUM(I66:I69)=0,\"\",SUM(I66:I69))","v":""},{"$f":"IF(SUM(J66:J69)=0,\"\",SUM(J66:J69))","v":""},{"$f":"IF(SUM(K66:K69)=0,\"\",SUM(K66:K69))","v":""},{"$f":"IF(SUM(L66:L69)=0,\"\",SUM(L66:L69))","v":""},{"$f":"IF(SUM(M66:M69)=0,\"\",SUM(M66:M69))","v":""},null,{"$f":"IF(SUM(E70:M70)=0,\"\",SUM(E70:M70))","v":""}]
[null,"PRŮMĚR",null,null,{"$f":"IF(E70=\"\",\"\",AVERAGE(E66:E69))","v":""},{"$f":"IF(F70=\"\",\"\",AVERAGE(F66:F69))","v":""},{"$f":"IF(G70=\"\",\"\",AVERAGE(G66:G69))","v":""},{"$f":"IF(H70=\"\",\"\",AVERAGE(H66:H69))","v":""},{"$f":"IF(I70=\"\",\"\",AVERAGE(I66:I69))","v":""},{"$f":"IF(J70=\"\",\"\",AVERAGE(J66:J69))","v":""},{"$f":"IF(K70=\"\",\"\",AVERAGE(K66:K69))","v":""},{"$f":"IF(L70=\"\",\"\",AVERAGE(L66:L69))","v":""},{"$f":"IF(M70=\"\",\"\",AVERAGE(M66:M69))","v":""},null,null,{"$f":"IF(O70=\"\",\"\",AVERAGE(E66:M69))","v":""}]
[]
[null,"Za zápis na dráze zodpovídá:"]
[]
[null,{"$f":"rozpis_příprava!B2","v":"VÁNOČNÍ  TURNAJ  V  BOWLINGU 2015"}]
[]
[null,"Místo:",{"$f":"rozpis_příprava!C5","v":"Xbowling Žižkov "}]
[null,"Datum:",{"$f":"rozpis_příprava!C6","v":"2. ledna 2016 - sobota"}]
[null,"Čas:",{"$f":"rozpis_příprava!C7","v":"17:00 - 20:00 hod."}]
[]
[null,null,null,"kat.",{"$f":"rozpis_příprava!K11","v":"DRÁHA č.5"}]
[null,"Jméno",null,null,"1. hra","2. hra","3.hra","4. hra","5. hra","6. hra","7. hra","8. hra","9. hra","Hendikep","SOUČET","PRŮMĚR"]
[null,{"$f":"rozpis_příprava!K12","v":"Mojka V."},null,{"$f":"rozpis_příprava!L12","v":"P"},158,146,214,179,223,null,null,null,null,{"$f":"IF(AM83>0,$S$13,IF(AL83>0,$S$12,IF(AK83>0,$S$11,IF(AJ83>0,$S$10,IF(AI83>0,$S$9,IF(AH83>0,$S$8,IF(AG83>0,$S$7,IF(AF83>0,$S$6,IF(AE83>0,$S$5)))))))))","v":false},{"$f":"SUM(E83:N83)","v":920},{"$f":"IF(D83=rozpis_příprava!$E$20,AVERAGE(AO83:AW83),IF(D83<>rozpis_příprava!$E$20,AVERAGE(rozpis_final_tisk!E83:M83)))","v":184},null,null,null,null,{"$f":"IF(D83=rozpis_příprava!$E$20,IF(E83>0,E83))","v":false},{"$f":"IF(D83=rozpis_příprava!$E$20,IF(F83>0,F83))","v":false},{"$f":"IF(D83=rozpis_příprava!$E$20,IF(G83>0,G83))","v":false},{"$f":"IF(D83=rozpis_příprava!$E$20,IF(H83>0,H83))","v":false},{"$f":"IF(D83=rozpis_příprava!$E$20,IF(I83>0,I83))","v":false},{"$f":"IF(D83=rozpis_příprava!$E$20,IF(J83>0,J83))","v":false},{"$f":"IF(D83=rozpis_příprava!$E$20,IF(K83>0,K83))","v":false},{"$f":"IF(D83=rozpis_příprava!$E$20,IF(L83>0,L83))","v":false},{"$f":"IF(D83=rozpis_příprava!$E$20,IF(M83>0,M83))","v":false},null,{"$f":"IF(U83=FALSE,0)","v":0},{"$f":"IF(V83=FALSE,0)","v":0},{"$f":"IF(W83=FALSE,0)","v":0},{"$f":"IF(X83=FALSE,0)","v":0},{"$f":"IF(Y83=FALSE,0)","v":0},{"$f":"IF(Z83=FALSE,0)","v":0},{"$f":"IF(AA83=FALSE,0)","v":0},{"$f":"IF(AB83=FALSE,0)","v":0},{"$f":"IF(AC83=FALSE,0)","v":0},null,{"$f":"IF(E83>0,E83+$E$2)","v":158},{"$f":"IF(F83>0,F83+$E$2)","v":146},{"$f":"IF(G83>0,G83+$E$2)","v":214},{"$f":"IF(H83>0,H83+$E$2)","v":179},{"$f":"IF(I83>0,I83+$E$2)","v":223},{"$f":"IF(J83>0,J83+$E$2)","v":false},{"$f":"IF(K83>0,K83+$E$2)","v":false},{"$f":"IF(L83>0,L83+$E$2)","v":false},{"$f":"IF(M83>0,M83+$E$2)","v":false}]
[null,{"$f":"rozpis_příprava!K13","v":"Jarda H."},null,{"$f":"rozpis_příprava!L13","v":"P"},170,150,201,141,145,null,null,null,null,{"$f":"IF(AM84>0,$S$13,IF(AL84>0,$S$12,IF(AK84>0,$S$11,IF(AJ84>0,$S$10,IF(AI84>0,$S$9,IF(AH84>0,$S$8,IF(AG84>0,$S$7,IF(AF84>0,$S$6,IF(AE84>0,$S$5)))))))))","v":false},{"$f":"SUM(E84:N84)","v":807},{"$f":"IF(D84=rozpis_příprava!$E$20,AVERAGE(AO84:AW84),IF(D84<>rozpis_příprava!$E$20,AVERAGE(rozpis_final_tisk!E84:M84)))","v":161.4},null,null,null,null,{"$f":"IF(D84=rozpis_příprava!$E$20,IF(E84>0,E84))","v":false},{"$f":"IF(D84=rozpis_příprava!$E$20,IF(F84>0,F84))","v":false},{"$f":"IF(D84=rozpis_příprava!$E$20,IF(G84>0,G84))","v":false},{"$f":"IF(D84=rozpis_příprava!$E$20,IF(H84>0,H84))","v":false},{"$f":"IF(D84=rozpis_příprava!$E$20,IF(I84>0,I84))","v":false},{"$f":"IF(D84=rozpis_příprava!$E$20,IF(J84>0,J84))","v":false},{"$f":"IF(D84=rozpis_příprava!$E$20,IF(K84>0,K84))","v":false},{"$f":"IF(D84=rozpis_příprava!$E$20,IF(L84>0,L84))","v":false},{"$f":"IF(D84=rozpis_příprava!$E$20,IF(M84>0,M84))","v":false},null,{"$f":"IF(U84=FALSE,0)","v":0},0,0,0,0,0,0,0,0,null,{"$f":"IF(E84>0,E84+$E$2)","v":170},150,201,141,145,false,false,false,false]
[null,{"$f":"rozpis_příprava!K14","v":"Štefan P."},null,{"$f":"rozpis_příprava!L14","v":"M"},258,147,153,186,173,160,null,null,null,false,1077,{"$f":"IF(D85=rozpis_příprava!$E$20,AVERAGE(AO85:AW85),IF(D85<>rozpis_příprava!$E$20,AVERAGE(rozpis_final_tisk!E85:M85)))","v":179.5},null,null,null,null,{"$f":"IF(D85=rozpis_příprava!$E$20,IF(E85>0,E85))","v":false},{"$f":"IF(D85=rozpis_příprava!$E$20,IF(F85>0,F85))","v":false},{"$f":"IF(D85=rozpis_příprava!$E$20,IF(G85>0,G85))","v":false},{"$f":"IF(D85=rozpis_příprava!$E$20,IF(H85>0,H85))","v":false},{"$f":"IF(D85=rozpis_příprava!$E$20,IF(I85>0,I85))","v":false},{"$f":"IF(D85=rozpis_příprava!$E$20,IF(J85>0,J85))","v":false},{"$f":"IF(D85=rozpis_příprava!$E$20,IF(K85>0,K85))","v":false},{"$f":"IF(D85=rozpis_příprava!$E$20,IF(L85>0,L85))","v":false},{"$f":"IF(D85=rozpis_příprava!$E$20,IF(M85>0,M85))","v":false},null,0,0,0,0,0,0,0,0,0,null,258,147,153,186,173,160,false,false,false]
[null,{"$f":"rozpis_příprava!K15","v":"Mirek K."},null,{"$f":"rozpis_příprava!L15","v":"M"},139,187,125,116,126,148,null,null,null,false,841,{"$f":"IF(D86=rozpis_příprava!$E$20,AVERAGE(AO86:AW86),IF(D86<>rozpis_příprava!$E$20,AVERAGE(rozpis_final_tisk!E86:M86)))","v":140.16666666666666},null,null,null,null,{"$f":"IF(D86=rozpis_příprava!$E$20,IF(E86>0,E86))","v":false},{"$f":"IF(D86=rozpis_příprava!$E$20,IF(F86>0,F86))","v":false},{"$f":"IF(D86=rozpis_příprava!$E$20,IF(G86>0,G86))","v":false},{"$f":"IF(D86=rozpis_příprava!$E$20,IF(H86>0,H86))","v":false},{"$f":"IF(D86=rozpis_příprava!$E$20,IF(I86>0,I86))","v":false},{"$f":"IF(D86=rozpis_příprava!$E$20,IF(J86>0,J86))","v":false},{"$f":"IF(D86=rozpis_příprava!$E$20,IF(K86>0,K86))","v":false},{"$f":"IF(D86=rozpis_příprava!$E$20,IF(L86>0,L86))","v":false},{"$f":"IF(D86=rozpis_příprava!$E$20,IF(M86>0,M86))","v":false},null,0,0,0,0,0,0,0,0,0,null,139,187,125,116,126,148,false,false,false]
[null,"SOUČET",null,null,{"$f":"IF(SUM(E83:E86)=0,\"\",SUM(E83:E86))","v":725},{"$f":"IF(SUM(F83:F86)=0,\"\",SUM(F83:F86))","v":630},{"$f":"IF(SUM(G83:G86)=0,\"\",SUM(G83:G86))","v":693},{"$f":"IF(SUM(H83:H86)=0,\"\",SUM(H83:H86))","v":622},{"$f":"IF(SUM(I83:I86)=0,\"\",SUM(I83:I86))","v":667},{"$f":"IF(SUM(J83:J86)=0,\"\",SUM(J83:J86))","v":308},{"$f":"IF(SUM(K83:K86)=0,\"\",SUM(K83:K86))","v":""},{"$f":"IF(SUM(L83:L86)=0,\"\",SUM(L83:L86))","v":""},{"$f":"IF(SUM(M83:M86)=0,\"\",SUM(M83:M86))","v":""},null,{"$f":"IF(SUM(E87:M87)=0,\"\",SUM(E87:M87))","v":3645}]
[null,"PRŮMĚR",null,null,{"$f":"IF(E87=\"\",\"\",AVERAGE(E83:E86))","v":181.25},{"$f":"IF(F87=\"\",\"\",AVERAGE(F83:F86))","v":157.5},{"$f":"IF(G87=\"\",\"\",AVERAGE(G83:G86))","v":173.25},{"$f":"IF(H87=\"\",\"\",AVERAGE(H83:H86))","v":155.5},{"$f":"IF(I87=\"\",\"\",AVERAGE(I83:I86))","v":166.75},{"$f":"IF(J87=\"\",\"\",AVERAGE(J83:J86))","v":154},{"$f":"IF(K87=\"\",\"\",AVERAGE(K83:K86))","v":""},{"$f":"IF(L87=\"\",\"\",AVERAGE(L83:L86))","v":""},{"$f":"IF(M87=\"\",\"\",AVERAGE(M83:M86))","v":""},null,null,{"$f":"IF(O87=\"\",\"\",AVERAGE(E83:M86))","v":165.68181818181819}]
[]
[null,"Za zápis na dráze zodpovídá:"]
[]
[]
[null,{"$f":"rozpis_příprava!B2","v":"VÁNOČNÍ  TURNAJ  V  BOWLINGU 2015"}]
[]
[null,"Místo:",{"$f":"rozpis_příprava!C5","v":"Xbowling Žižkov "}]
[null,"Datum:",{"$f":"rozpis_příprava!C6","v":"2. ledna 2016 - sobota"}]
[null,"Čas:",{"$f":"rozpis_příprava!C7","v":"17:00 - 20:00 hod."}]
[]
[null,null,null,"kat.",{"$f":"rozpis_příprava!M11","v":"DRÁHA č.6"}]
[null,"Jméno",null,null,"1. hra","2. hra","3.hra","4. hra","5. hra","6. hra","7. hra","8. hra","9. hra","Hendikep","SOUČET","PRŮMĚR"]
[null,{"$f":"rozpis_příprava!M12","v":0},null,{"$f":"rozpis_příprava!N12","v":0},null,null,null,null,null,null,null,null,null,{"$f":"IF(AM101>0,$S$13,IF(AL101>0,$S$12,IF(AK101>0,$S$11,IF(AJ101>0,$S$10,IF(AI101>0,$S$9,IF(AH101>0,$S$8,IF(AG101>0,$S$7,IF(AF101>0,$S$6,IF(AE101>0,$S$5)))))))))","v":false},{"$f":"SUM(E101:N101)","v":0},{"$f":"IF(D101=rozpis_příprava!$E$20,AVERAGE(AO101:AW101),IF(D101<>rozpis_příprava!$E$20,AVERAGE(rozpis_final_tisk!E101:M101)))","v":{"$error":"#DIV/0!"}},null,null,null,null,{"$f":"IF(D101=rozpis_příprava!$E$20,IF(E101>0,E101))","v":false},{"$f":"IF(D101=rozpis_příprava!$E$20,IF(F101>0,F101))","v":false},{"$f":"IF(D101=rozpis_příprava!$E$20,IF(G101>0,G101))","v":false},{"$f":"IF(D101=rozpis_příprava!$E$20,IF(H101>0,H101))","v":false},{"$f":"IF(D101=rozpis_příprava!$E$20,IF(I101>0,I101))","v":false},{"$f":"IF(D101=rozpis_příprava!$E$20,IF(J101>0,J101))","v":false},{"$f":"IF(D101=rozpis_příprava!$E$20,IF(K101>0,K101))","v":false},{"$f":"IF(D101=rozpis_příprava!$E$20,IF(L101>0,L101))","v":false},{"$f":"IF(D101=rozpis_příprava!$E$20,IF(M101>0,M101))","v":false},null,{"$f":"IF(U101=FALSE,0)","v":0},{"$f":"IF(V101=FALSE,0)","v":0},{"$f":"IF(W101=FALSE,0)","v":0},{"$f":"IF(X101=FALSE,0)","v":0},{"$f":"IF(Y101=FALSE,0)","v":0},{"$f":"IF(Z101=FALSE,0)","v":0},{"$f":"IF(AA101=FALSE,0)","v":0},{"$f":"IF(AB101=FALSE,0)","v":0},{"$f":"IF(AC101=FALSE,0)","v":0},null,{"$f":"IF(E101>0,E101+$E$2)","v":false},{"$f":"IF(F101>0,F101+$E$2)","v":false},{"$f":"IF(G101>0,G101+$E$2)","v":false},{"$f":"IF(H101>0,H101+$E$2)","v":false},{"$f":"IF(I101>0,I101+$E$2)","v":false},{"$f":"IF(J101>0,J101+$E$2)","v":false},{"$f":"IF(K101>0,K101+$E$2)","v":false},{"$f":"IF(L101>0,L101+$E$2)","v":false},{"$f":"IF(M101>0,M101+$E$2)","v":false}]
[null,{"$f":"rozpis_příprava!M13","v":"David D."},null,{"$f":"rozpis_příprava!N13","v":"M"},139,144,152,114,167,null,null,null,null,{"$f":"IF(AM102>0,$S$13,IF(AL102>0,$S$12,IF(AK102>0,$S$11,IF(AJ102>0,$S$10,IF(AI102>0,$S$9,IF(AH102>0,$S$8,IF(AG102>0,$S$7,IF(AF102>0,$S$6,IF(AE102>0,$S$5)))))))))","v":false},{"$f":"SUM(E102:N102)","v":716},{"$f":"IF(D102=rozpis_příprava!$E$20,AVERAGE(AO102:AW102),IF(D102<>rozpis_příprava!$E$20,AVERAGE(rozpis_final_tisk!E102:M102)))","v":143.19999999999999},null,null,null,null,{"$f":"IF(D102=rozpis_příprava!$E$20,IF(E102>0,E102))","v":false},{"$f":"IF(D102=rozpis_příprava!$E$20,IF(F102>0,F102))","v":false},{"$f":"IF(D102=rozpis_příprava!$E$20,IF(G102>0,G102))","v":false},{"$f":"IF(D102=rozpis_příprava!$E$20,IF(H102>0,H102))","v":false},{"$f":"IF(D102=rozpis_příprava!$E$20,IF(I102>0,I102))","v":false},{"$f":"IF(D102=rozpis_příprava!$E$20,IF(J102>0,J102))","v":false},{"$f":"IF(D102=rozpis_příprava!$E$20,IF(K102>0,K102))","v":false},{"$f":"IF(D102=rozpis_příprava!$E$20,IF(L102>0,L102))","v":false},{"$f":"IF(D102=rozpis_příprava!$E$20,IF(M102>0,M102))","v":false},null,{"$f":"IF(U102=FALSE,0)","v":0},0,0,0,0,0,{"$f":"IF(AA102=FALSE,0)","v":0},0,0,null,{"$f":"IF(E102>0,E102+$E$2)","v":139},144,152,114,167,false,false,false,false]
[null,{"$f":"rozpis_příprava!M14","v":"Petr V."},null,{"$f":"rozpis_příprava!N14","v":"P"},165,152,146,190,209,158,null,null,null,false,1020,{"$f":"IF(D103=rozpis_příprava!$E$20,AVERAGE(AO103:AW103),IF(D103<>rozpis_příprava!$E$20,AVERAGE(rozpis_final_tisk!E103:M103)))","v":170},null,null,null,null,{"$f":"IF(D103=rozpis_příprava!$E$20,IF(E103>0,E103))","v":false},{"$f":"IF(D103=rozpis_příprava!$E$20,IF(F103>0,F103))","v":false},{"$f":"IF(D103=rozpis_příprava!$E$20,IF(G103>0,G103))","v":false},{"$f":"IF(D103=rozpis_příprava!$E$20,IF(H103>0,H103))","v":false},{"$f":"IF(D103=rozpis_příprava!$E$20,IF(I103>0,I103))","v":false},{"$f":"IF(D103=rozpis_příprava!$E$20,IF(J103>0,J103))","v":false},{"$f":"IF(D103=rozpis_příprava!$E$20,IF(K103>0,K103))","v":false},{"$f":"IF(D103=rozpis_příprava!$E$20,IF(L103>0,L103))","v":false},{"$f":"IF(D103=rozpis_příprava!$E$20,IF(M103>0,M103))","v":false},null,0,0,0,0,0,0,0,0,0,null,165,152,146,190,209,158,false,false,false]
[null,{"$f":"rozpis_příprava!M15","v":"Honza R."},null,{"$f":"rozpis_příprava!N15","v":"P"},186,145,179,158,152,160,null,null,null,false,980,{"$f":"IF(D104=rozpis_příprava!$E$20,AVERAGE(AO104:AW104),IF(D104<>rozpis_příprava!$E$20,AVERAGE(rozpis_final_tisk!E104:M104)))","v":163.33333333333334},null,null,null,null,{"$f":"IF(D104=rozpis_příprava!$E$20,IF(E104>0,E104))","v":false},{"$f":"IF(D104=rozpis_příprava!$E$20,IF(F104>0,F104))","v":false},{"$f":"IF(D104=rozpis_příprava!$E$20,IF(G104>0,G104))","v":false},{"$f":"IF(D104=rozpis_příprava!$E$20,IF(H104>0,H104))","v":false},{"$f":"IF(D104=rozpis_příprava!$E$20,IF(I104>0,I104))","v":false},{"$f":"IF(D104=rozpis_příprava!$E$20,IF(J104>0,J104))","v":false},{"$f":"IF(D104=rozpis_příprava!$E$20,IF(K104>0,K104))","v":false},{"$f":"IF(D104=rozpis_příprava!$E$20,IF(L104>0,L104))","v":false},{"$f":"IF(D104=rozpis_příprava!$E$20,IF(M104>0,M104))","v":false},null,0,0,0,0,0,0,0,0,0,null,186,145,179,158,152,160,false,false,false]
[null,"SOUČET",null,null,{"$f":"IF(SUM(E101:E104)=0,\"\",SUM(E101:E104))","v":490},{"$f":"IF(SUM(F101:F104)=0,\"\",SUM(F101:F104))","v":441},{"$f":"IF(SUM(G101:G104)=0,\"\",SUM(G101:G104))","v":477},{"$f":"IF(SUM(H101:H104)=0,\"\",SUM(H101:H104))","v":462},{"$f":"IF(SUM(I101:I104)=0,\"\",SUM(I101:I104))","v":528},{"$f":"IF(SUM(J101:J104)=0,\"\",SUM(J101:J104))","v":318},{"$f":"IF(SUM(K101:K104)=0,\"\",SUM(K101:K104))","v":""},{"$f":"IF(SUM(L101:L104)=0,\"\",SUM(L101:L104))","v":""},{"$f":"IF(SUM(M101:M104)=0,\"\",SUM(M101:M104))","v":""},null,{"$f":"IF(SUM(E105:M105)=0,\"\",SUM(E105:M105))","v":2716}]
[null,"PRŮMĚR",null,null,{"$f":"IF(E105=\"\",\"\",AVERAGE(E101:E104))","v":163.33333333333334},{"$f":"IF(F105=\"\",\"\",AVERAGE(F101:F104))","v":147},{"$f":"IF(G105=\"\",\"\",AVERAGE(G101:G104))","v":159},{"$f":"IF(H105=\"\",\"\",AVERAGE(H101:H104))","v":154},{"$f":"IF(I105=\"\",\"\",AVERAGE(I101:I104))","v":176},{"$f":"IF(J105=\"\",\"\",AVERAGE(J101:J104))","v":159},{"$f":"IF(K105=\"\",\"\",AVERAGE(K101:K104))","v":""},{"$f":"IF(L105=\"\",\"\",AVERAGE(L101:L104))","v":""},{"$f":"IF(M105=\"\",\"\",AVERAGE(M101:M104))","v":""},null,null,{"$f":"IF(O105=\"\",\"\",AVERAGE(E101:M104))","v":159.76470588235293}]
[]
[null,"Za zápis na dráze zodpovídá:"]
[]
[null,{"$f":"rozpis_příprava!B2","v":"VÁNOČNÍ  TURNAJ  V  BOWLINGU 2015"}]
[]
[null,"Místo:",{"$f":"rozpis_příprava!C5","v":"Xbowling Žižkov "}]
[null,"Datum:",{"$f":"rozpis_příprava!C6","v":"2. ledna 2016 - sobota"}]
[null,"Čas:",{"$f":"rozpis_příprava!C7","v":"17:00 - 20:00 hod."}]
[]
[null,null,null,"kat.",{"$f":"rozpis_příprava!O11","v":0}]
[null,"Jméno",null,null,"1. hra","2. hra","3.hra","4. hra","5. hra","6. hra","7. hra","8. hra","9. hra","Hendikep","SOUČET","PRŮMĚR"]
[null,{"$f":"rozpis_příprava!O12","v":0},null,{"$f":"rozpis_příprava!P12","v":0},null,null,null,null,null,null,null,null,null,{"$f":"IF(AM118>0,$S$13,IF(AL118>0,$S$12,IF(AK118>0,$S$11,IF(AJ118>0,$S$10,IF(AI118>0,$S$9,IF(AH118>0,$S$8,IF(AG118>0,$S$7,IF(AF118>0,$S$6,IF(AE118>0,$S$5)))))))))","v":false},{"$f":"SUM(E118:N118)","v":0},{"$f":"IF(D118=rozpis_příprava!$E$20,AVERAGE(AO118:AW118),IF(D118<>rozpis_příprava!$E$20,AVERAGE(rozpis_final_tisk!E118:M118)))","v":{"$error":"#DIV/0!"}},null,null,null,null,{"$f":"IF(D118=rozpis_příprava!$E$20,IF(E118>0,E118))","v":false},{"$f":"IF(D118=rozpis_příprava!$E$20,IF(F118>0,F118))","v":false},{"$f":"IF(D118=rozpis_příprava!$E$20,IF(G118>0,G118))","v":false},{"$f":"IF(D118=rozpis_příprava!$E$20,IF(H118>0,H118))","v":false},{"$f":"IF(D118=rozpis_příprava!$E$20,IF(I118>0,I118))","v":false},{"$f":"IF(D118=rozpis_příprava!$E$20,IF(J118>0,J118))","v":false},{"$f":"IF(D118=rozpis_příprava!$E$20,IF(K118>0,K118))","v":false},{"$f":"IF(D118=rozpis_příprava!$E$20,IF(L118>0,L118))","v":false},{"$f":"IF(D118=rozpis_příprava!$E$20,IF(M118>0,M118))","v":false},null,{"$f":"IF(U118=FALSE,0)","v":0},{"$f":"IF(V118=FALSE,0)","v":0},{"$f":"IF(W118=FALSE,0)","v":0},{"$f":"IF(X118=FALSE,0)","v":0},{"$f":"IF(Y118=FALSE,0)","v":0},{"$f":"IF(Z118=FALSE,0)","v":0},{"$f":"IF(AA118=FALSE,0)","v":0},{"$f":"IF(AB118=FALSE,0)","v":0},{"$f":"IF(AC118=FALSE,0)","v":0},null,{"$f":"IF(E118>0,E118+$E$2)","v":false},{"$f":"IF(F118>0,F118+$E$2)","v":false},{"$f":"IF(G118>0,G118+$E$2)","v":false},{"$f":"IF(H118>0,H118+$E$2)","v":false},{"$f":"IF(I118>0,I118+$E$2)","v":false},{"$f":"IF(J118>0,J118+$E$2)","v":false},{"$f":"IF(K118>0,K118+$E$2)","v":false},{"$f":"IF(L118>0,L118+$E$2)","v":false},{"$f":"IF(M118>0,M118+$E$2)","v":false}]
[null,{"$f":"rozpis_příprava!O13","v":0},null,{"$f":"rozpis_příprava!P13","v":0},null,null,null,null,null,null,null,null,null,{"$f":"IF(AM119>0,$S$13,IF(AL119>0,$S$12,IF(AK119>0,$S$11,IF(AJ119>0,$S$10,IF(AI119>0,$S$9,IF(AH119>0,$S$8,IF(AG119>0,$S$7,IF(AF119>0,$S$6,IF(AE119>0,$S$5)))))))))","v":false},{"$f":"SUM(E119:N119)","v":0},{"$f":"IF(D119=rozpis_příprava!$E$20,AVERAGE(AO119:AW119),IF(D119<>rozpis_příprava!$E$20,AVERAGE(rozpis_final_tisk!E119:M119)))","v":{"$error":"#DIV/0!"}},null,null,null,null,{"$f":"IF(D119=rozpis_příprava!$E$20,IF(E119>0,E119))","v":false},{"$f":"IF(D119=rozpis_příprava!$E$20,IF(F119>0,F119))","v":false},{"$f":"IF(D119=rozpis_příprava!$E$20,IF(G119>0,G119))","v":false},{"$f":"IF(D119=rozpis_příprava!$E$20,IF(H119>0,H119))","v":false},{"$f":"IF(D119=rozpis_příprava!$E$20,IF(I119>0,I119))","v":false},{"$f":"IF(D119=rozpis_příprava!$E$20,IF(J119>0,J119))","v":false},{"$f":"IF(D119=rozpis_příprava!$E$20,IF(K119>0,K119))","v":false},{"$f":"IF(D119=rozpis_příprava!$E$20,IF(L119>0,L119))","v":false},{"$f":"IF(D119=rozpis_příprava!$E$20,IF(M119>0,M119))","v":false},null,{"$f":"IF(U119=FALSE,0)","v":0},0,0,0,0,0,0,0,0,null,{"$f":"IF(E119>0,E119+$E$2)","v":false},false,false,false,false,false,false,false,false]
[null,{"$f":"rozpis_příprava!O14","v":0},null,{"$f":"rozpis_příprava!P14","v":0},null,null,null,null,null,null,null,null,null,false,0,{"$f":"IF(D120=rozpis_příprava!$E$20,AVERAGE(AO120:AW120),IF(D120<>rozpis_příprava!$E$20,AVERAGE(rozpis_final_tisk!E120:M120)))","v":{"$error":"#DIV/0!"}},null,null,null,null,{"$f":"IF(D120=rozpis_příprava!$E$20,IF(E120>0,E120))","v":false},{"$f":"IF(D120=rozpis_příprava!$E$20,IF(F120>0,F120))","v":false},{"$f":"IF(D120=rozpis_příprava!$E$20,IF(G120>0,G120))","v":false},{"$f":"IF(D120=rozpis_příprava!$E$20,IF(H120>0,H120))","v":false},{"$f":"IF(D120=rozpis_příprava!$E$20,IF(I120>0,I120))","v":false},{"$f":"IF(D120=rozpis_příprava!$E$20,IF(J120>0,J120))","v":false},{"$f":"IF(D120=rozpis_příprava!$E$20,IF(K120>0,K120))","v":false},{"$f":"IF(D120=rozpis_příprava!$E$20,IF(L120>0,L120))","v":false},{"$f":"IF(D120=rozpis_příprava!$E$20,IF(M120>0,M120))","v":false},null,0,0,0,0,0,0,0,0,0,null,false,false,false,false,false,false,false,false,false]
[null,{"$f":"rozpis_příprava!O15","v":0},null,{"$f":"rozpis_příprava!P15","v":0},null,null,null,null,null,null,null,null,null,false,0,{"$f":"IF(D121=rozpis_příprava!$E$20,AVERAGE(AO121:AW121),IF(D121<>rozpis_příprava!$E$20,AVERAGE(rozpis_final_tisk!E121:M121)))","v":{"$error":"#DIV/0!"}},null,null,null,null,{"$f":"IF(D121=rozpis_příprava!$E$20,IF(E121>0,E121))","v":false},{"$f":"IF(D121=rozpis_příprava!$E$20,IF(F121>0,F121))","v":false},{"$f":"IF(D121=rozpis_příprava!$E$20,IF(G121>0,G121))","v":false},{"$f":"IF(D121=rozpis_příprava!$E$20,IF(H121>0,H121))","v":false},{"$f":"IF(D121=rozpis_příprava!$E$20,IF(I121>0,I121))","v":false},{"$f":"IF(D121=rozpis_příprava!$E$20,IF(J121>0,J121))","v":false},{"$f":"IF(D121=rozpis_příprava!$E$20,IF(K121>0,K121))","v":false},{"$f":"IF(D121=rozpis_příprava!$E$20,IF(L121>0,L121))","v":false},{"$f":"IF(D121=rozpis_příprava!$E$20,IF(M121>0,M121))","v":false},null,0,0,0,0,0,0,0,0,0,null,false,false,false,false,false,false,false,false,false]
[null,"SOUČET",null,null,{"$f":"IF(SUM(E118:E121)=0,\"\",SUM(E118:E121))","v":""},{"$f":"IF(SUM(F118:F121)=0,\"\",SUM(F118:F121))","v":""},{"$f":"IF(SUM(G118:G121)=0,\"\",SUM(G118:G121))","v":""},{"$f":"IF(SUM(H118:H121)=0,\"\",SUM(H118:H121))","v":""},{"$f":"IF(SUM(I118:I121)=0,\"\",SUM(I118:I121))","v":""},{"$f":"IF(SUM(J118:J121)=0,\"\",SUM(J118:J121))","v":""},{"$f":"IF(SUM(K118:K121)=0,\"\",SUM(K118:K121))","v":""},{"$f":"IF(SUM(L118:L121)=0,\"\",SUM(L118:L121))","v":""},{"$f":"IF(SUM(M118:M121)=0,\"\",SUM(M118:M121))","v":""},null,{"$f":"IF(SUM(E122:M122)=0,\"\",SUM(E122:M122))","v":""}]
[null,"PRŮMĚR",null,null,{"$f":"IF(E122=\"\",\"\",AVERAGE(E118:E121))","v":""},{"$f":"IF(F122=\"\",\"\",AVERAGE(F118:F121))","v":""},{"$f":"IF(G122=\"\",\"\",AVERAGE(G118:G121))","v":""},{"$f":"IF(H122=\"\",\"\",AVERAGE(H118:H121))","v":""},{"$f":"IF(I122=\"\",\"\",AVERAGE(I118:I121))","v":""},{"$f":"IF(J122=\"\",\"\",AVERAGE(J118:J121))","v":""},{"$f":"IF(K122=\"\",\"\",AVERAGE(K118:K121))","v":""},{"$f":"IF(L122=\"\",\"\",AVERAGE(L118:L121))","v":""},{"$f":"IF(M122=\"\",\"\",AVERAGE(M118:M121))","v":""},null,null,{"$f":"IF(O122=\"\",\"\",AVERAGE(E118:M121))","v":""}]
[]
[null,"Za zápis na dráze zodpovídá:"]
[]
[]
[null,{"$f":"rozpis_příprava!B2","v":"VÁNOČNÍ  TURNAJ  V  BOWLINGU 2015"}]
[]
[null,"Místo:",{"$f":"rozpis_příprava!C5","v":"Xbowling Žižkov "}]
[null,"Datum:",{"$f":"rozpis_příprava!C6","v":"2. ledna 2016 - sobota"}]
[null,"Čas:",{"$f":"rozpis_příprava!C7","v":"17:00 - 20:00 hod."}]
[]
[null,null,null,"kat.",{"$f":"rozpis_příprava!Q11","v":0}]
[null,"Jméno",null,null,"1. hra","2. hra","3.hra","4. hra","5. hra","6. hra","7. hra","8. hra","9. hra","Hendikep","SOUČET","PRŮMĚR"]
[null,{"$f":"rozpis_příprava!Q12","v":0},null,{"$f":"rozpis_příprava!R12","v":0},null,null,null,null,null,null,null,null,null,{"$f":"IF(AM136>0,$S$13,IF(AL136>0,$S$12,IF(AK136>0,$S$11,IF(AJ136>0,$S$10,IF(AI136>0,$S$9,IF(AH136>0,$S$8,IF(AG136>0,$S$7,IF(AF136>0,$S$6,IF(AE136>0,$S$5)))))))))","v":false},{"$f":"SUM(E136:N136)","v":0},{"$f":"IF(D136=rozpis_příprava!$E$20,AVERAGE(AO136:AW136),IF(D136<>rozpis_příprava!$E$20,AVERAGE(rozpis_final_tisk!E136:M136)))","v":{"$error":"#DIV/0!"}},null,null,null,null,{"$f":"IF(D136=rozpis_příprava!$E$20,IF(E136>0,E136))","v":false},{"$f":"IF(D136=rozpis_příprava!$E$20,IF(F136>0,F136))","v":false},{"$f":"IF(D136=rozpis_příprava!$E$20,IF(G136>0,G136))","v":false},{"$f":"IF(D136=rozpis_příprava!$E$20,IF(H136>0,H136))","v":false},{"$f":"IF(D136=rozpis_příprava!$E$20,IF(I136>0,I136))","v":false},{"$f":"IF(D136=rozpis_příprava!$E$20,IF(J136>0,J136))","v":false},{"$f":"IF(D136=rozpis_příprava!$E$20,IF(K136>0,K136))","v":false},{"$f":"IF(D136=rozpis_příprava!$E$20,IF(L136>0,L136))","v":false},{"$f":"IF(D136=rozpis_příprava!$E$20,IF(M136>0,M136))","v":false},null,{"$f":"IF(U136=FALSE,0)","v":0},{"$f":"IF(V136=FALSE,0)","v":0},{"$f":"IF(W136=FALSE,0)","v":0},{"$f":"IF(X136=FALSE,0)","v":0},{"$f":"IF(Y136=FALSE,0)","v":0},{"$f":"IF(Z136=FALSE,0)","v":0},{"$f":"IF(AA136=FALSE,0)","v":0},{"$f":"IF(AB136=FALSE,0)","v":0},{"$f":"IF(AC136=FALSE,0)","v":0},null,{"$f":"IF(E136>0,E136+$E$2)","v":false},{"$f":"IF(F136>0,F136+$E$2)","v":false},{"$f":"IF(G136>0,G136+$E$2)","v":false},{"$f":"IF(H136>0,H136+$E$2)","v":false},{"$f":"IF(I136>0,I136+$E$2)","v":false},{"$f":"IF(J136>0,J136+$E$2)","v":false},{"$f":"IF(K136>0,K136+$E$2)","v":false},{"$f":"IF(L136>0,L136+$E$2)","v":false},{"$f":"IF(M136>0,M136+$E$2)","v":false}]
[null,{"$f":"rozpis_příprava!Q13","v":0},null,{"$f":"rozpis_příprava!R13","v":0},null,null,null,null,null,null,null,null,null,{"$f":"IF(AM137>0,$S$13,IF(AL137>0,$S$12,IF(AK137>0,$S$11,IF(AJ137>0,$S$10,IF(AI137>0,$S$9,IF(AH137>0,$S$8,IF(AG137>0,$S$7,IF(AF137>0,$S$6,IF(AE137>0,$S$5)))))))))","v":false},{"$f":"SUM(E137:N137)","v":0},{"$f":"IF(D137=rozpis_příprava!$E$20,AVERAGE(AO137:AW137),IF(D137<>rozpis_příprava!$E$20,AVERAGE(rozpis_final_tisk!E137:M137)))","v":{"$error":"#DIV/0!"}},null,null,null,null,{"$f":"IF(D137=rozpis_příprava!$E$20,IF(E137>0,E137))","v":false},{"$f":"IF(D137=rozpis_příprava!$E$20,IF(F137>0,F137))","v":false},{"$f":"IF(D137=rozpis_příprava!$E$20,IF(G137>0,G137))","v":false},{"$f":"IF(D137=rozpis_příprava!$E$20,IF(H137>0,H137))","v":false},{"$f":"IF(D137=rozpis_příprava!$E$20,IF(I137>0,I137))","v":false},{"$f":"IF(D137=rozpis_příprava!$E$20,IF(J137>0,J137))","v":false},{"$f":"IF(D137=rozpis_příprava!$E$20,IF(K137>0,K137))","v":false},{"$f":"IF(D137=rozpis_příprava!$E$20,IF(L137>0,L137))","v":false},{"$f":"IF(D137=rozpis_příprava!$E$20,IF(M137>0,M137))","v":false},null,{"$f":"IF(U137=FALSE,0)","v":0},0,0,0,0,0,0,0,0,null,{"$f":"IF(E137>0,E137+$E$2)","v":false},false,false,false,false,false,false,false,false]
[null,{"$f":"rozpis_příprava!Q14","v":0},null,{"$f":"rozpis_příprava!R14","v":0},null,null,null,null,null,null,null,null,null,false,0,{"$f":"IF(D138=rozpis_příprava!$E$20,AVERAGE(AO138:AW138),IF(D138<>rozpis_příprava!$E$20,AVERAGE(rozpis_final_tisk!E138:M138)))","v":{"$error":"#DIV/0!"}},null,null,null,null,{"$f":"IF(D138=rozpis_příprava!$E$20,IF(E138>0,E138))","v":false},{"$f":"IF(D138=rozpis_příprava!$E$20,IF(F138>0,F138))","v":false},{"$f":"IF(D138=rozpis_příprava!$E$20,IF(G138>0,G138))","v":false},{"$f":"IF(D138=rozpis_příprava!$E$20,IF(H138>0,H138))","v":false},{"$f":"IF(D138=rozpis_příprava!$E$20,IF(I138>0,I138))","v":false},{"$f":"IF(D138=rozpis_příprava!$E$20,IF(J138>0,J138))","v":false},{"$f":"IF(D138=rozpis_příprava!$E$20,IF(K138>0,K138))","v":false},{"$f":"IF(D138=rozpis_příprava!$E$20,IF(L138>0,L138))","v":false},{"$f":"IF(D138=rozpis_příprava!$E$20,IF(M138>0,M138))","v":false},null,0,0,0,0,0,0,0,0,0,null,false,false,false,false,false,false,false,false,false]
[null,{"$f":"rozpis_příprava!Q15","v":0},null,{"$f":"rozpis_příprava!R15","v":0},null,null,null,null,null,null,null,null,null,false,0,{"$f":"IF(D139=rozpis_příprava!$E$20,AVERAGE(AO139:AW139),IF(D139<>rozpis_příprava!$E$20,AVERAGE(rozpis_final_tisk!E139:M139)))","v":{"$error":"#DIV/0!"}},null,null,null,null,{"$f":"IF(D139=rozpis_příprava!$E$20,IF(E139>0,E139))","v":false},{"$f":"IF(D139=rozpis_příprava!$E$20,IF(F139>0,F139))","v":false},{"$f":"IF(D139=rozpis_příprava!$E$20,IF(G139>0,G139))","v":false},{"$f":"IF(D139=rozpis_příprava!$E$20,IF(H139>0,H139))","v":false},{"$f":"IF(D139=rozpis_příprava!$E$20,IF(I139>0,I139))","v":false},{"$f":"IF(D139=rozpis_příprava!$E$20,IF(J139>0,J139))","v":false},{"$f":"IF(D139=rozpis_příprava!$E$20,IF(K139>0,K139))","v":false},{"$f":"IF(D139=rozpis_příprava!$E$20,IF(L139>0,L139))","v":false},{"$f":"IF(D139=rozpis_příprava!$E$20,IF(M139>0,M139))","v":false},null,0,0,0,0,0,0,0,0,0,null,false,false,false,false,false,false,false,false,false]
[null,"SOUČET",null,null,{"$f":"IF(SUM(E136:E139)=0,\"\",SUM(E136:E139))","v":""},{"$f":"IF(SUM(F136:F139)=0,\"\",SUM(F136:F139))","v":""},{"$f":"IF(SUM(G136:G139)=0,\"\",SUM(G136:G139))","v":""},{"$f":"IF(SUM(H136:H139)=0,\"\",SUM(H136:H139))","v":""},{"$f":"IF(SUM(I136:I139)=0,\"\",SUM(I136:I139))","v":""},{"$f":"IF(SUM(J136:J139)=0,\"\",SUM(J136:J139))","v":""},{"$f":"IF(SUM(K136:K139)=0,\"\",SUM(K136:K139))","v":""},{"$f":"IF(SUM(L136:L139)=0,\"\",SUM(L136:L139))","v":""},{"$f":"IF(SUM(M136:M139)=0,\"\",SUM(M136:M139))","v":""},null,{"$f":"IF(SUM(E140:M140)=0,\"\",SUM(E140:M140))","v":""}]
[null,"PRŮMĚR",null,null,{"$f":"IF(E140=\"\",\"\",AVERAGE(E136:E139))","v":""},{"$f":"IF(F140=\"\",\"\",AVERAGE(F136:F139))","v":""},{"$f":"IF(G140=\"\",\"\",AVERAGE(G136:G139))","v":""},{"$f":"IF(H140=\"\",\"\",AVERAGE(H136:H139))","v":""},{"$f":"IF(I140=\"\",\"\",AVERAGE(I136:I139))","v":""},{"$f":"IF(J140=\"\",\"\",AVERAGE(J136:J139))","v":""},{"$f":"IF(K140=\"\",\"\",AVERAGE(K136:K139))","v":""},{"$f":"IF(L140=\"\",\"\",AVERAGE(L136:L139))","v":""},{"$f":"IF(M140=\"\",\"\",AVERAGE(M136:M139))","v":""},null,null,{"$f":"IF(O140=\"\",\"\",AVERAGE(E136:M139))","v":""}]
[]
[null,"Za zápis na dráze zodpovídá:"]

{"sheet":"celkové umístění","index":2,"n_rows":95,"n_cols":69,"rows_kept":95,"cut":false,"hidden":false,"merged":[[1,58,1,65],[3,58,7,58],[3,59,7,59],[3,60,7,60],[3,61,7,61],[74,56,76,64],[91,32,91,44],[3,42,7,47],[8,42,8,44],[73,46,77,51],[8,45,8,47],[78,46,78,47],[78,49,78,50],[3,53,7,54],[3,52,7,52],[3,55,7,56],[1,49,1,56],[3,62,7,62],[3,63,7,64],[3,65,7,66],[73,23,76,30],[1,1,1,15],[7,1,7,15],[77,1,77,15],[73,1,73,2],[74,1,74,2],[89,1,89,2],[90,1,90,2],[3,17,3,21],[7,17,8,21],[9,17,9,21],[10,17,10,21],[11,17,11,21],[12,17,12,21],[3,67,7,68],[3,49,7,49],[3,50,7,50],[3,51,7,51]]}
[]
[null,{"$f":"rozpis_příprava!B2","v":"VÁNOČNÍ  TURNAJ  V  BOWLINGU 2015"},null,null,null,null,null,null,null,null,null,null,null,null,null,null,null,null,null,null,null,null,null,null,null,null,null,null,null,null,null,null,null,null,null,null,null,null,null,null,null,null,null,null,null,null,null,null,null,"Postupné kroky pro znázornění hráčů bez HENDI, kteří měli vyšší reálný nához než výtězný hráč MAX náhozu s HENDI",null,null,null,null,null,null,null,null,"Postupné kroky pro znázornění hráčů s HENDI, kteří měli nižší reálný nához než hráč MIN náhozu bez HENDI"]
[null,null,null,null,null,null,null,null,null,null,null,null,null,null,null,null,null,null,null,null,null,null,null,null,null,null,null,null,null,null,null,null,null,null,null,null,null,null,null,null,null,null,null,null,null,null,null,null,null,null,{"$f":"rozpis_final_tisk!E2","v":0},"NEMAZAT!!!"]
[null,"Místo:",{"$f":"rozpis_příprava!C5","v":"Xbowling Žižkov "},null,null,null,null,null,null,null,null,null,null,null,null,null,null,"CENY ZA UMÍSTÉNÍ",null,null,null,null,null,null,null,null,null,null,null,null,null,null,null,null,null,null,null,null,null,null,null,null,"Slouží ke stanovení MAX a MIN her jednotlivých hráčů. V případě shody MAX a MIN výsledků u více hráčů VYBERE toho hráče, který v případě MAX her má vyšší celkový průměrný výsledek než druhý hráč a v případě MIN her má nižší průměrný výsledek než druhý hráč.",null,null,null,null,null,null,"Vybere výsledky, které jsou v rozmezí \"mínus\" HENDI od nejvyššího náhozu.","U vybraných výsledků přiřadí kategorii.","Odstraní kategorii u které je uplatněn HENDI a přiřadí jména hráčů.","Ponechává jména hráčů pouze v případě, kdy výtězem katekorie MAX nához je hráč s HENDI","Převádí jména hráčů s jejich výsledky.",null,"Sloupce, které jsou použity pro MAKRO - řadí hráče podle maximálního náhozu",null,null,"Vybere výsledky, které jsou v rozmezí \"plus\" HENDI od nejnižšího náhozu.","U vybraných výsledků přiřadí kategorii.","Odstraní kategorii u které je uplatněn HENDI a přiřadí jména hráčů.","Převede na reálně docílený počet bodů ve hře bez HENDI","Ponechává jména hráčů pouze v případě, kdy katekorii MIN nához obsadí hráč bez HENDI","Převádí jména hráčů s jejich výsledky.",null,"Ruší nulové hodnoty z důvodu následného řazení pro MAKRO",null,"Sloupce, které jsou použity pro MAKRO - řadí hráče podle minimálního náhozu"]
[null,"Datum:",{"$f":"rozpis_příprava!C6","v":"2. ledna 2016 - sobota"},null,null,null,null,null,null,null,null,null,null,null,null,null,null,null,null,null,null,null,null,null,null,null,null,null,null,null,null,null,"U kategorie Žen v případě neodehrané hry ruší Hendikep (převádí na \"text\")"]
[null,"Čas:",{"$f":"rozpis_příprava!C7","v":"17:00 - 20:00 hod."}]
[]
[null,"CELKOVÉ UMÍSTĚNÍ - VŠECHNY KATEGORIE",null,null,null,null,null,null,null,null,null,null,null,null,null,null,null,"CENA PRO HRÁČE ZA UMÍSTĚNÍ"]
[null,"Pořadí","Jméno","kat.","1. hra","2. hra","3.hra","4. hra","5. hra","6. hra","7. hra","8. hra","9. hra","HK","SOUČET","PRŮMĚR",null,null,null,null,null,null,null,null,null,null,null,null,null,null,null,null,null,null,null,null,null,null,null,null,null,null,"MAX",null,null,"MIN"]
[null,"1.",{"$f":"rozpis_final_tisk!B83","v":"Mojka V."},{"$f":"rozpis_final_tisk!D83","v":"P"},{"$f":"IF(rozpis_final_tisk!E83>0,rozpis_final_tisk!E83)","v":158},{"$f":"IF(rozpis_final_tisk!F83>0,rozpis_final_tisk!F83)","v":146},{"$f":"IF(rozpis_final_tisk!G83>0,rozpis_final_tisk!G83)","v":214},{"$f":"IF(rozpis_final_tisk!H83>0,rozpis_final_tisk!H83)","v":179},{"$f":"IF(rozpis_final_tisk!I83>0,rozpis_final_tisk!I83)","v":223},{"$f":"IF(rozpis_final_tisk!J83>0,rozpis_final_tisk!J83)","v":false},{"$f":"IF(rozpis_final_tisk!K83>0,rozpis_final_tisk!K83)","v":false},{"$f":"IF(rozpis_final_tisk!L83>0,rozpis_final_tisk!L83)","v":false},{"$f":"IF(rozpis_final_tisk!M83>0,rozpis_final_tisk!M83)","v":false},{"$f":"IF(rozpis_final_tisk!N83>0,rozpis_final_tisk!N83)","v":false},{"$f":"IF(rozpis_final_tisk!O83>0,rozpis_final_tisk!O83)","v":920},{"$f":"IF(rozpis_final_tisk!P83>0,rozpis_final_tisk!P83)","v":184},null,{"$f":"#REF!","v":{"$error":"#REF!"}},null,null,null,null,null,{"$f":"IF(D10=rozpis_příprava!$E$20,F10+rozpis_final_tisk!$E$2,IF('celkové umístění'!D10<>rozpis_příprava!$E$20,F10))","v":146},{"$f":"IF(D10=rozpis_příprava!$E$20,G10+rozpis_final_tisk!$E$2,IF('celkové umístění'!D10<>rozpis_příprava!$E$20,G10))","v":214},{"$f":"IF(D10=rozpis_příprava!$E$20,H10+rozpis_final_tisk!$E$2,IF('celkové umístění'!D10<>rozpis_příprava!$E$20,H10))","v":179},{"$f":"IF(D10=rozpis_příprava!$E$20,I10+rozpis_final_tisk!$E$2,IF('celkové umístění'!D10<>rozpis_příprava!$E$20,I10))","v":223},{"$f":"IF(D10=rozpis_příprava!$E$20,J10+rozpis_final_tisk!$E$2,IF('celkové umístění'!D10<>rozpis_příprava!$E$20,J10))","v":false},{"$f":"IF(D10=rozpis_příprava!$E$20,K10+rozpis_final_tisk!$E$2,IF('celkové umístění'!D10<>rozpis_příprava!$E$20,K10))","v":false},{"$f":"IF(D10=rozpis_příprava!$E$20,L10+rozpis_final_tisk!$E$2,IF('celkové umístění'!D10<>rozpis_příprava!$E$20,L10))","v":false},{"$f":"IF(D10=rozpis_příprava!$E$20,M10+rozpis_final_tisk!$E$2,IF('celkové umístění'!D10<>rozpis_příprava!$E$20,M10))","v":false},null,{"$f":"IF(#REF!<>rozpis_final_tisk!$E$2,'celkové umístění'!#REF!,IF('celkové umístění'!#REF!=rozpis_final_tisk!$E$2,\"text\"))","v":{"$error":"#REF!"}},{"$f":"IF(X10<>rozpis_final_tisk!$E$2,'celkové umístění'!X10,IF('celkové umístění'!X10=rozpis_final_tisk!$E$2,\"text\"))","v":146},{"$f":"IF(Y10<>rozpis_final_tisk!$E$2,'celkové umístění'!Y10,IF('celkové umístění'!Y10=rozpis_final_tisk!$E$2,\"text\"))","v":214},{"$f":"IF(Z10<>rozpis_final_tisk!$E$2,'celkové umístění'!Z10,IF('celkové umístění'!Z10=rozpis_final_tisk!$E$2,\"text\"))","v":179},{"$f":"IF(AA10<>rozpis_final_tisk!$E$2,'celkové umístění'!AA10,IF('celkové umístění'!AA10=rozpis_final_tisk!$E$2,\"text\"))","v":223},{"$f":"IF(AB10<>rozpis_final_tisk!$E$2,'celkové umístění'!AB10,IF('celkové umístění'!AB10=rozpis_final_tisk!$E$2,\"text\"))","v":"text"},{"$f":"IF(AC10<>rozpis_final_tisk!$E$2,'celkové umístění'!AC10,IF('celkové umístění'!AC10=rozpis_final_tisk!$E$2,\"text\"))","v":"text"},{"$f":"IF(AD10<>rozpis_final_tisk!$E$2,'celkové umístění'!AD10,IF('celkové umístění'!AD10=rozpis_final_tisk!$E$2,\"text\"))","v":"text"},{"$f":"IF(AE10<>rozpis_final_tisk!$E$2,'celkové umístění'!AE10,IF('celkové umístění'!AE10=rozpis_final_tisk!$E$2,\"text\"))","v":"text"},null,{"$f":"MAXA(AG10:AO10)","v":{"$error":"#REF!"}},{"$f":"IF(AQ10=MAX($AQ$10:$AQ$41),P10,0)","v":{"$error":"#REF!"}},{"$f":"IF(AR10=MAX($AR$10:$AR$41),D10)","v":{"$error":"#REF!"}},{"$f":"IF(O10=FALSE,\"Na\",MIN(AG10:AO10))","v":{"$error":"#REF!"}},{"$f":"IF(AT10=MIN($AT$10:$AT$41),P10,\"Na\")","v":{"$error":"#REF!"}},{"$f":"IF(AU10=MIN($AU$10:$AU$41),D10)","v":{"$error":"#REF!"}},null,{"$f":"IF(AQ10+$AY$3>MAX($AQ$10:$AQ$41),AQ10)","v":{"$error":"#REF!"}},{"$f":"IF(AX10<>FALSE,D10)","v":{"$error":"#REF!"}},{"$f":"IF(AY10<>rozpis_příprava!$E$20,IF(AY10<>FALSE,'celkové umístění'!C10))","v":{"$error":"#REF!"}},{"$f":"IF(#REF!>1,IF(#REF!<>FALSE,AZ10))","v":{"$error":"#REF!"}},{"$f":"BA10","v":{"$error":"#REF!"}},{"$f":"IF(BA10=FALSE,0,IF(BA10<>FALSE,AX10))","v":{"$error":"#REF!"}},{"$error":"#DIV/0!"},{"$error":"#DIV/0!"},null,{"$f":"IF(AT10-$AY$3<MIN($AT$10:$AT$41),AT10)","v":{"$error":"#REF!"}},{"$f":"IF(BG10<>FALSE,D10)","v":{"$error":"#REF!"}},{"$f":"IF(BH10=rozpis_příprava!$E$20,'celkové umístění'!C10)","v":{"$error":"#REF!"}},{"$f":"IF(BI10<>FALSE,BG10-$AY$3)","v":{"$error":"#REF!"}},{"$f":"IF(#REF!=FALSE,BI10)","v":{"$error":"#REF!"}},{"$f":"BK10","v":{"$error":"#REF!"}},{"$f":"IFERROR(IF(BK10=FALSE,0,IF(BK10<>FALSE,BJ10)),0)","v":0},{"$f":"BL10","v":{"$error":"#REF!"}},{"$f":"IF(BM10=0,\"\",BM10)","v":""},{"$error":"#VALUE!"},""]
[null,"2.",{"$f":"rozpis_final_tisk!B85","v":"Štefan P."},{"$f":"rozpis_final_tisk!D85","v":"M"},{"$f":"IF(rozpis_final_tisk!E85>0,rozpis_final_tisk!E85)","v":258},{"$f":"IF(rozpis_final_tisk!F85>0,rozpis_final_tisk!F85)","v":147},{"$f":"IF(rozpis_final_tisk!G85>0,rozpis_final_tisk!G85)","v":153},{"$f":"IF(rozpis_final_tisk!H85>0,rozpis_final_tisk!H85)","v":186},{"$f":"IF(rozpis_final_tisk!I85>0,rozpis_final_tisk!I85)","v":173},{"$f":"IF(rozpis_final_tisk!J85>0,rozpis_final_tisk!J85)","v":160},{"$f":"IF(rozpis_final_tisk!K85>0,rozpis_final_tisk!K85)","v":false},{"$f":"IF(rozpis_final_tisk!L85>0,rozpis_final_tisk!L85)","v":false},{"$f":"IF(rozpis_final_tisk!M85>0,rozpis_final_tisk!M85)","v":false},{"$f":"IF(rozpis_final_tisk!N85>0,rozpis_final_tisk!N85)","v":false},{"$f":"IF(rozpis_final_tisk!O85>0,rozpis_final_tisk!O85)","v":1077},{"$f":"IF(rozpis_final_tisk!P85>0,rozpis_final_tisk!P85)","v":179.5},null,{"$f":"#REF!","v":{"$error":"#REF!"}},null,null,null,null,null,{"$f":"IF(D11=rozpis_příprava!$E$20,F11+rozpis_final_tisk!$E$2,IF('celkové umístění'!D11<>rozpis_příprava!$E$20,F11))","v":147},{"$f":"IF(D11=rozpis_příprava!$E$20,G11+rozpis_final_tisk!$E$2,IF('celkové umístění'!D11<>rozpis_příprava!$E$20,G11))","v":153},{"$f":"IF(D11=rozpis_příprava!$E$20,H11+rozpis_final_tisk!$E$2,IF('celkové umístění'!D11<>rozpis_příprava!$E$20,H11))","v":186},{"$f":"IF(D11=rozpis_příprava!$E$20,I11+rozpis_final_tisk!$E$2,IF('celkové umístění'!D11<>rozpis_příprava!$E$20,I11))","v":173},{"$f":"IF(D11=rozpis_příprava!$E$20,J11+rozpis_final_tisk!$E$2,IF('celkové umístění'!D11<>rozpis_příprava!$E$20,J11))","v":160},{"$f":"IF(D11=rozpis_příprava!$E$20,K11+rozpis_final_tisk!$E$2,IF('celkové umístění'!D11<>rozpis_příprava!$E$20,K11))","v":false},{"$f":"IF(D11=rozpis_příprava!$E$20,L11+rozpis_final_tisk!$E$2,IF('celkové umístění'!D11<>rozpis_příprava!$E$20,L11))","v":false},{"$f":"IF(D11=rozpis_příprava!$E$20,M11+rozpis_final_tisk!$E$2,IF('celkové umístění'!D11<>rozpis_příprava!$E$20,M11))","v":false},null,{"$f":"IF(#REF!<>rozpis_final_tisk!$E$2,'celkové umístění'!#REF!,IF('celkové umístění'!#REF!=rozpis_final_tisk!$E$2,\"text\"))","v":{"$error":"#REF!"}},{"$f":"IF(X11<>rozpis_final_tisk!$E$2,'celkové umístění'!X11,IF('celkové umístění'!X11=rozpis_final_tisk!$E$2,\"text\"))","v":147},{"$f":"IF(Y11<>rozpis_final_tisk!$E$2,'celkové umístění'!Y11,IF('celkové umístění'!Y11=rozpis_final_tisk!$E$2,\"text\"))","v":153},{"$f":"IF(Z11<>rozpis_final_tisk!$E$2,'celkové umístění'!Z11,IF('celkové umístění'!Z11=rozpis_final_tisk!$E$2,\"text\"))","v":186},{"$f":"IF(AA11<>rozpis_final_tisk!$E$2,'celkové umístění'!AA11,IF('celkové umístění'!AA11=rozpis_final_tisk!$E$2,\"text\"))","v":173},{"$f":"IF(AB11<>rozpis_final_tisk!$E$2,'celkové umístění'!AB11,IF('celkové umístění'!AB11=rozpis_final_tisk!$E$2,\"text\"))","v":160},{"$f":"IF(AC11<>rozpis_final_tisk!$E$2,'celkové umístění'!AC11,IF('celkové umístění'!AC11=rozpis_final_tisk!$E$2,\"text\"))","v":"text"},{"$f":"IF(AD11<>rozpis_final_tisk!$E$2,'celkové umístění'!AD11,IF('celkové umístění'!AD11=rozpis_final_tisk!$E$2,\"text\"))","v":"text"},{"$f":"IF(AE11<>rozpis_final_tisk!$E$2,'celkové umístění'!AE11,IF('celkové umístění'!AE11=rozpis_final_tisk!$E$2,\"text\"))","v":"text"},null,{"$f":"MAXA(AG11:AO11)","v":{"$error":"#REF!"}},{"$f":"IF(AQ11=MAX($AQ$10:$AQ$41),P11,0)","v":{"$error":"#REF!"}},{"$f":"IF(AR11=MAX($AR$10:$AR$41),D11)","v":{"$error":"#REF!"}},{"$f":"IF(O11=FALSE,\"Na\",MIN(AG11:AO11))","v":{"$error":"#REF!"}},{"$f":"IF(AT11=MIN($AT$10:$AT$41),P11,\"Na\")","v":{"$error":"#REF!"}},{"$f":"IF(AU11=MIN($AU$10:$AU$41),D11)","v":{"$error":"#REF!"}},null,{"$error":"#REF!"},{"$f":"IF(AX11<>FALSE,D11)","v":{"$error":"#REF!"}},{"$f":"IF(AY11<>rozpis_příprava!$E$20,IF(AY11<>FALSE,'celkové umístění'!C11))","v":{"$error":"#REF!"}},{"$f":"IF(#REF!>1,IF(#REF!<>FALSE,AZ11))","v":{"$error":"#REF!"}},{"$f":"BA11","v":{"$error":"#REF!"}},{"$f":"IF(BA11=FALSE,0,IF(BA11<>FALSE,AX11))","v":{"$error":"#REF!"}},{"$error":"#DIV/0!"},{"$error":"#DIV/0!"},null,{"$f":"IF(AT11-$AY$3<MIN($AT$10:$AT$41),AT11)","v":{"$error":"#REF!"}},{"$f":"IF(BG11<>FALSE,D11)","v":{"$error":"#REF!"}},{"$f":"IF(BH11=rozpis_příprava!$E$20,'celkové umístění'!C11)","v":{"$error":"#REF!"}},{"$f":"IF(BI11<>FALSE,BG11-$AY$3)","v":{"$error":"#REF!"}},{"$f":"IF(#REF!=FALSE,BI11)","v":{"$error":"#REF!"}},{"$f":"BK11","v":{"$error":"#REF!"}},{"$f":"IFERROR(IF(BK11=FALSE,0,IF(BK11<>FALSE,BJ11)),0)","v":0},{"$f":"BL11","v":{"$error":"#REF!"}},{"$f":"IF(BM11=0,\"\",BM11)","v":""},{"$error":"#VALUE!"},""]
[null,"3.",{"$f":"rozpis_final_tisk!B32","v":"Olina P."},{"$f":"rozpis_final_tisk!D32","v":"Ž"},{"$f":"IF(rozpis_final_tisk!E32>0,rozpis_final_tisk!E32)","v":187},{"$f":"IF(rozpis_final_tisk!F32>0,rozpis_final_tisk!F32)","v":124},{"$f":"IF(rozpis_final_tisk!G32>0,rozpis_final_tisk!G32)","v":147},{"$f":"IF(rozpis_final_tisk!H32>0,rozpis_final_tisk!H32)","v":146},{"$f":"IF(rozpis_final_tisk!I32>0,rozpis_final_tisk!I32)","v":265},{"$f":"IF(rozpis_final_tisk!J32>0,rozpis_final_tisk!J32)","v":false},{"$f":"IF(rozpis_final_tisk!K32>0,rozpis_final_tisk!K32)","v":false},{"$f":"IF(rozpis_final_tisk!L32>0,rozpis_final_tisk!L32)","v":false},{"$f":"IF(rozpis_final_tisk!M32>0,rozpis_final_tisk!M32)","v":false},{"$f":"IF(rozpis_final_tisk!N32>0,rozpis_final_tisk!N32)","v":false},{"$f":"IF(rozpis_final_tisk!O32>0,rozpis_final_tisk!O32)","v":869},{"$f":"IF(rozpis_final_tisk!P32>0,rozpis_final_tisk!P32)","v":173.8},null,{"$f":"#REF!","v":{"$error":"#REF!"}},null,null,null,null,null,{"$f":"IF(D12=rozpis_příprava!$E$20,F12+rozpis_final_tisk!$E$2,IF('celkové umístění'!D12<>rozpis_příprava!$E$20,F12))","v":124},{"$f":"IF(D12=rozpis_příprava!$E$20,G12+rozpis_final_tisk!$E$2,IF('celkové umístění'!D12<>rozpis_příprava!$E$20,G12))","v":147},{"$f":"IF(D12=rozpis_příprava!$E$20,H12+rozpis_final_tisk!$E$2,IF('celkové umístění'!D12<>rozpis_příprava!$E$20,H12))","v":146},{"$f":"IF(D12=rozpis_příprava!$E$20,I12+rozpis_final_tisk!$E$2,IF('celkové umístění'!D12<>rozpis_příprava!$E$20,I12))","v":265},{"$f":"IF(D12=rozpis_příprava!$E$20,J12+rozpis_final_tisk!$E$2,IF('celkové umístění'!D12<>rozpis_příprava!$E$20,J12))","v":0},{"$f":"IF(D12=rozpis_příprava!$E$20,K12+rozpis_final_tisk!$E$2,IF('celkové umístění'!D12<>rozpis_příprava!$E$20,K12))","v":0},{"$f":"IF(D12=rozpis_příprava!$E$20,L12+rozpis_final_tisk!$E$2,IF('celkové umístění'!D12<>rozpis_příprava!$E$20,L12))","v":0},{"$f":"IF(D12=rozpis_příprava!$E$20,M12+rozpis_final_tisk!$E$2,IF('celkové umístění'!D12<>rozpis_příprava!$E$20,M12))","v":0},null,{"$f":"IF(#REF!<>rozpis_final_tisk!$E$2,'celkové umístění'!#REF!,IF('celkové umístění'!#REF!=rozpis_final_tisk!$E$2,\"text\"))","v":{"$error":"#REF!"}},{"$f":"IF(X12<>rozpis_final_tisk!$E$2,'celkové umístění'!X12,IF('celkové umístění'!X12=rozpis_final_tisk!$E$2,\"text\"))","v":124},{"$f":"IF(Y12<>rozpis_final_tisk!$E$2,'celkové umístění'!Y12,IF('celkové umístění'!Y12=rozpis_final_tisk!$E$2,\"text\"))","v":147},{"$f":"IF(Z12<>rozpis_final_tisk!$E$2,'celkové umístění'!Z12,IF('celkové umístění'!Z12=rozpis_final_tisk!$E$2,\"text\"))","v":146},{"$f":"IF(AA12<>rozpis_final_tisk!$E$2,'celkové umístění'!AA12,IF('celkové umístění'!AA12=rozpis_final_tisk!$E$2,\"text\"))","v":265},{"$f":"IF(AB12<>rozpis_final_tisk!$E$2,'celkové umístění'!AB12,IF('celkové umístění'!AB12=rozpis_final_tisk!$E$2,\"text\"))","v":"text"},{"$f":"IF(AC12<>rozpis_final_tisk!$E$2,'celkové umístění'!AC12,IF('celkové umístění'!AC12=rozpis_final_tisk!$E$2,\"text\"))","v":"text"},{"$f":"IF(AD12<>rozpis_final_tisk!$E$2,'celkové umístění'!AD12,IF('celkové umístění'!AD12=rozpis_final_tisk!$E$2,\"text\"))","v":"text"},{"$f":"IF(AE12<>rozpis_final_tisk!$E$2,'celkové umístění'!AE12,IF('celkové umístění'!AE12=rozpis_final_tisk!$E$2,\"text\"))","v":"text"},null,{"$error":"#REF!"},{"$f":"IF(AQ12=MAX($AQ$10:$AQ$41),P12,0)","v":{"$error":"#REF!"}},{"$f":"IF(AR12=MAX($AR$10:$AR$41),D12)","v":{"$error":"#REF!"}},{"$f":"IF(O12=FALSE,\"Na\",MIN(AG12:AO12))","v":{"$error":"#REF!"}},{"$f":"IF(AT12=MIN($AT$10:$AT$41),P12,\"Na\")","v":{"$error":"#REF!"}},{"$f":"IF(AU12=MIN($AU$10:$AU$41),D12)","v":{"$error":"#REF!"}},null,{"$error":"#REF!"},{"$f":"IF(AX12<>FALSE,D12)","v":{"$error":"#REF!"}},{"$f":"IF(AY12<>rozpis_příprava!$E$20,IF(AY12<>FALSE,'celkové umístění'!C12))","v":{"$error":"#REF!"}},{"$f":"IF(#REF!>1,IF(#REF!<>FALSE,AZ12))","v":{"$error":"#REF!"}},{"$error":"#REF!"},{"$error":"#REF!"},{"$error":"#DIV/0!"},{"$error":"#DIV/0!"},null,{"$error":"#REF!"},{"$f":"IF(BG12<>FALSE,D12)","v":{"$error":"#REF!"}},{"$f":"IF(BH12=rozpis_příprava!$E$20,'celkové umístění'!C12)","v":{"$error":"#REF!"}},{"$error":"#REF!"},{"$f":"IF(#REF!=FALSE,BI12)","v":{"$error":"#REF!"}},{"$error":"#REF!"},0,{"$error":"#REF!"},"",{"$error":"#VALUE!"},""]
[null,"4.",{"$f":"rozpis_final_tisk!B103","v":"Petr V."},{"$f":"rozpis_final_tisk!D103","v":"P"},{"$f":"IF(rozpis_final_tisk!E103>0,rozpis_final_tisk!E103)","v":165},{"$f":"IF(rozpis_final_tisk!F103>0,rozpis_final_tisk!F103)","v":152},{"$f":"IF(rozpis_final_tisk!G103>0,rozpis_final_tisk!G103)","v":146},{"$f":"IF(rozpis_final_tisk!H103>0,rozpis_final_tisk!H103)","v":190},{"$f":"IF(rozpis_final_tisk!I103>0,rozpis_final_tisk!I103)","v":209},{"$f":"IF(rozpis_final_tisk!J103>0,rozpis_final_tisk!J103)","v":158},{"$f":"IF(rozpis_final_tisk!K103>0,rozpis_final_tisk!K103)","v":false},{"$f":"IF(rozpis_final_tisk!L103>0,rozpis_final_tisk!L103)","v":false},{"$f":"IF(rozpis_final_tisk!M103>0,rozpis_final_tisk!M103)","v":false},{"$f":"IF(rozpis_final_tisk!N103>0,rozpis_final_tisk!N103)","v":false},{"$f":"IF(rozpis_final_tisk!O103>0,rozpis_final_tisk!O103)","v":1020},{"$f":"IF(rozpis_final_tisk!P103>0,rozpis_final_tisk!P103)","v":170},null,{"$f":"#REF!","v":{"$error":"#REF!"}},null,null,null,null,null,{"$f":"IF(D13=rozpis_příprava!$E$20,F13+rozpis_final_tisk!$E$2,IF('celkové umístění'!D13<>rozpis_příprava!$E$20,F13))","v":152},{"$f":"IF(D13=rozpis_příprava!$E$20,G13+rozpis_final_tisk!$E$2,IF('celkové umístění'!D13<>rozpis_příprava!$E$20,G13))","v":146},{"$f":"IF(D13=rozpis_příprava!$E$20,H13+rozpis_final_tisk!$E$2,IF('celkové umístění'!D13<>rozpis_příprava!$E$20,H13))","v":190},{"$f":"IF(D13=rozpis_příprava!$E$20,I13+rozpis_final_tisk!$E$2,IF('celkové umístění'!D13<>rozpis_příprava!$E$20,I13))","v":209},{"$f":"IF(D13=rozpis_příprava!$E$20,J13+rozpis_final_tisk!$E$2,IF('celkové umístění'!D13<>rozpis_příprava!$E$20,J13))","v":158},{"$f":"IF(D13=rozpis_příprava!$E$20,K13+rozpis_final_tisk!$E$2,IF('celkové umístění'!D13<>rozpis_příprava!$E$20,K13))","v":false},{"$f":"IF(D13=rozpis_příprava!$E$20,L13+rozpis_final_tisk!$E$2,IF('celkové umístění'!D13<>rozpis_příprava!$E$20,L13))","v":false},{"$f":"IF(D13=rozpis_příprava!$E$20,M13+rozpis_final_tisk!$E$2,IF('celkové umístění'!D13<>rozpis_příprava!$E$20,M13))","v":false},null,{"$f":"IF(#REF!<>rozpis_final_tisk!$E$2,'celkové umístění'!#REF!,IF('celkové umístění'!#REF!=rozpis_final_tisk!$E$2,\"text\"))","v":{"$error":"#REF!"}},{"$f":"IF(X13<>rozpis_final_tisk!$E$2,'celkové umístění'!X13,IF('celkové umístění'!X13=rozpis_final_tisk!$E$2,\"text\"))","v":152},{"$f":"IF(Y13<>rozpis_final_tisk!$E$2,'celkové umístění'!Y13,IF('celkové umístění'!Y13=rozpis_final_tisk!$E$2,\"text\"))","v":146},{"$f":"IF(Z13<>rozpis_final_tisk!$E$2,'celkové umístění'!Z13,IF('celkové umístění'!Z13=rozpis_final_tisk!$E$2,\"text\"))","v":190},{"$f":"IF(AA13<>rozpis_final_tisk!$E$2,'celkové umístění'!AA13,IF('celkové umístění'!AA13=rozpis_final_tisk!$E$2,\"text\"))","v":209},{"$f":"IF(AB13<>rozpis_final_tisk!$E$2,'celkové umístění'!AB13,IF('celkové umístění'!AB13=rozpis_final_tisk!$E$2,\"text\"))","v":158},{"$f":"IF(AC13<>rozpis_final_tisk!$E$2,'celkové umístění'!AC13,IF('celkové umístění'!AC13=rozpis_final_tisk!$E$2,\"text\"))","v":"text"},{"$f":"IF(AD13<>rozpis_final_tisk!$E$2,'celkové umístění'!AD13,IF('celkové umístění'!AD13=rozpis_final_tisk!$E$2,\"text\"))","v":"text"},{"$f":"IF(AE13<>rozpis_final_tisk!$E$2,'celkové umístění'!AE13,IF('celkové umístění'!AE13=rozpis_final_tisk!$E$2,\"text\"))","v":"text"},null,{"$error":"#REF!"},{"$f":"IF(AQ13=MAX($AQ$10:$AQ$41),P13,0)","v":{"$error":"#REF!"}},{"$f":"IF(AR13=MAX($AR$10:$AR$41),D13)","v":{"$error":"#REF!"}},{"$f":"IF(O13=FALSE,\"Na\",MIN(AG13:AO13))","v":{"$error":"#REF!"}},{"$f":"IF(AT13=MIN($AT$10:$AT$41),P13,\"Na\")","v":{"$error":"#REF!"}},{"$f":"IF(AU13=MIN($AU$10:$AU$41),D13)","v":{"$error":"#REF!"}},null,{"$error":"#REF!"},{"$f":"IF(AX13<>FALSE,D13)","v":{"$error":"#REF!"}},{"$f":"IF(AY13<>rozpis_příprava!$E$20,IF(AY13<>FALSE,'celkové umístění'!C13))","v":{"$error":"#REF!"}},{"$f":"IF(#REF!>1,IF(#REF!<>FALSE,AZ13))","v":{"$error":"#REF!"}},{"$error":"#REF!"},{"$error":"#REF!"},{"$error":"#DIV/0!"},{"$error":"#DIV/0!"},null,{"$error":"#REF!"},{"$f":"IF(BG13<>FALSE,D13)","v":{"$error":"#REF!"}},{"$f":"IF(BH13=rozpis_příprava!$E$20,'celkové umístění'!C13)","v":{"$error":"#REF!"}},{"$error":"#REF!"},{"$f":"IF(#REF!=FALSE,BI13)","v":{"$error":"#REF!"}},{"$error":"#REF!"},0,{"$error":"#REF!"},"",{"$error":"#VALUE!"},""]
[null,"5.",{"$f":"rozpis_final_tisk!B13","v":"Jana K."},{"$f":"rozpis_final_tisk!D13","v":"Ž"},{"$f":"IF(rozpis_final_tisk!E13>0,rozpis_final_tisk!E13)","v":189},{"$f":"IF(rozpis_final_tisk!F13>0,rozpis_final_tisk!F13)","v":145},{"$f":"IF(rozpis_final_tisk!G13>0,rozpis_final_tisk!G13)","v":185},{"$f":"IF(rozpis_final_tisk!H13>0,rozpis_final_tisk!H13)","v":206},{"$f":"IF(rozpis_final_tisk!I13>0,rozpis_final_tisk!I13)","v":122},{"$f":"IF(rozpis_final_tisk!J13>0,rozpis_final_tisk!J13)","v":false},{"$f":"IF(rozpis_final_tisk!K13>0,rozpis_final_tisk!K13)","v":false},{"$f":"IF(rozpis_final_tisk!L13>0,rozpis_final_tisk!L13)","v":false},{"$f":"IF(rozpis_final_tisk!M13>0,rozpis_final_tisk!M13)","v":false},{"$f":"IF(rozpis_final_tisk!N13>0,rozpis_final_tisk!N13)","v":false},{"$f":"IF(rozpis_final_tisk!O13>0,rozpis_final_tisk!O13)","v":847},{"$f":"IF(rozpis_final_tisk!P13>0,rozpis_final_tisk!P13)","v":169.4},null,null,null,null,null,null,null,{"$f":"IF(D14=rozpis_příprava!$E$20,F14+rozpis_final_tisk!$E$2,IF('celkové umístění'!D14<>rozpis_příprava!$E$20,F14))","v":145},{"$f":"IF(D14=rozpis_příprava!$E$20,G14+rozpis_final_tisk!$E$2,IF('celkové umístění'!D14<>rozpis_příprava!$E$20,G14))","v":185},{"$f":"IF(D14=rozpis_příprava!$E$20,H14+rozpis_final_tisk!$E$2,IF('celkové umístění'!D14<>rozpis_příprava!$E$20,H14))","v":206},{"$f":"IF(D14=rozpis_příprava!$E$20,I14+rozpis_final_tisk!$E$2,IF('celkové umístění'!D14<>rozpis_příprava!$E$20,I14))","v":122},{"$f":"IF(D14=rozpis_příprava!$E$20,J14+rozpis_final_tisk!$E$2,IF('celkové umístění'!D14<>rozpis_příprava!$E$20,J14))","v":0},{"$f":"IF(D14=rozpis_příprava!$E$20,K14+rozpis_final_tisk!$E$2,IF('celkové umístění'!D14<>rozpis_příprava!$E$20,K14))","v":0},{"$f":"IF(D14=rozpis_příprava!$E$20,L14+rozpis_final_tisk!$E$2,IF('celkové umístění'!D14<>rozpis_příprava!$E$20,L14))","v":0},{"$f":"IF(D14=rozpis_příprava!$E$20,M14+rozpis_final_tisk!$E$2,IF('celkové umístění'!D14<>rozpis_příprava!$E$20,M14))","v":0},null,{"$f":"IF(#REF!<>rozpis_final_tisk!$E$2,'celkové umístění'!#REF!,IF('celkové umístění'!#REF!=rozpis_final_tisk!$E$2,\"text\"))","v":{"$error":"#REF!"}},{"$f":"IF(X14<>rozpis_final_tisk!$E$2,'celkové umístění'!X14,IF('celkové umístění'!X14=rozpis_final_tisk!$E$2,\"text\"))","v":145},{"$f":"IF(Y14<>rozpis_final_tisk!$E$2,'celkové umístění'!Y14,IF('celkové umístění'!Y14=rozpis_final_tisk!$E$2,\"text\"))","v":185},{"$f":"IF(Z14<>rozpis_final_tisk!$E$2,'celkové umístění'!Z14,IF('celkové umístění'!Z14=rozpis_final_tisk!$E$2,\"text\"))","v":206},{"$f":"IF(AA14<>rozpis_final_tisk!$E$2,'celkové umístění'!AA14,IF('celkové umístění'!AA14=rozpis_final_tisk!$E$2,\"text\"))","v":122},{"$f":"IF(AB14<>rozpis_final_tisk!$E$2,'celkové umístění'!AB14,IF('celkové umístění'!AB14=rozpis_final_tisk!$E$2,\"text\"))","v":"text"},{"$f":"IF(AC14<>rozpis_final_tisk!$E$2,'celkové umístění'!AC14,IF('celkové umístění'!AC14=rozpis_final_tisk!$E$2,\"text\"))","v":"text"},{"$f":"IF(AD14<>rozpis_final_tisk!$E$2,'celkové umístění'!AD14,IF('celkové umístění'!AD14=rozpis_final_tisk!$E$2,\"text\"))","v":"text"},{"$f":"IF(AE14<>rozpis_final_tisk!$E$2,'celkové umístění'!AE14,IF('celkové umístění'!AE14=rozpis_final_tisk!$E$2,\"text\"))","v":"text"},null,{"$error":"#REF!"},{"$f":"IF(AQ14=MAX($AQ$10:$AQ$41),P14,0)","v":{"$error":"#REF!"}},{"$f":"IF(AR14=MAX($AR$10:$AR$41),D14)","v":{"$error":"#REF!"}},{"$f":"IF(O14=FALSE,\"Na\",MIN(AG14:AO14))","v":{"$error":"#REF!"}},{"$f":"IF(AT14=MIN($AT$10:$AT$41),P14,\"Na\")","v":{"$error":"#REF!"}},{"$f":"IF(AU14=MIN($AU$10:$AU$41),D14)","v":{"$error":"#REF!"}},null,{"$error":"#REF!"},{"$f":"IF(AX14<>FALSE,D14)","v":{"$error":"#REF!"}},{"$f":"IF(AY14<>rozpis_příprava!$E$20,IF(AY14<>FALSE,'celkové umístění'!C14))","v":{"$error":"#REF!"}},{"$f":"IF(#REF!>1,IF(#REF!<>FALSE,AZ14))","v":{"$error":"#REF!"}},{"$error":"#REF!"},{"$error":"#REF!"},{"$error":"#DIV/0!"},{"$error":"#DIV/0!"},null,{"$error":"#REF!"},{"$f":"IF(BG14<>FALSE,D14)","v":{"$error":"#REF!"}},{"$f":"IF(BH14=rozpis_příprava!$E$20,'celkové umístění'!C14)","v":{"$error":"#REF!"}},{"$error":"#REF!"},{"$f":"IF(#REF!=FALSE,BI14)","v":{"$error":"#REF!"}},{"$error":"#REF!"},0,{"$error":"#REF!"},"",{"$error":"#VALUE!"},""]
[null,"6.",{"$f":"rozpis_final_tisk!B104","v":"Honza R."},{"$f":"rozpis_final_tisk!D104","v":"P"},{"$f":"IF(rozpis_final_tisk!E104>0,rozpis_final_tisk!E104)","v":186},{"$f":"IF(rozpis_final_tisk!F104>0,rozpis_final_tisk!F104)","v":145},{"$f":"IF(rozpis_final_tisk!G104>0,rozpis_final_tisk!G104)","v":179},{"$f":"IF(rozpis_final_tisk!H104>0,rozpis_final_tisk!H104)","v":158},{"$f":"IF(rozpis_final_tisk!I104>0,rozpis_final_tisk!I104)","v":152},{"$f":"IF(rozpis_final_tisk!J104>0,rozpis_final_tisk!J104)","v":160},{"$f":"IF(rozpis_final_tisk!K104>0,rozpis_final_tisk!K104)","v":false},{"$f":"IF(rozpis_final_tisk!L104>0,rozpis_final_tisk!L104)","v":false},{"$f":"IF(rozpis_final_tisk!M104>0,rozpis_final_tisk!M104)","v":false},{"$f":"IF(rozpis_final_tisk!N104>0,rozpis_final_tisk!N104)","v":false},{"$f":"IF(rozpis_final_tisk!O104>0,rozpis_final_tisk!O104)","v":980},{"$f":"IF(rozpis_final_tisk!P104>0,rozpis_final_tisk!P104)","v":163.33333333333334},null,null,null,null,null,null,null,{"$f":"IF(D15=rozpis_příprava!$E$20,F15+rozpis_final_tisk!$E$2,IF('celkové umístění'!D15<>rozpis_příprava!$E$20,F15))","v":145},{"$f":"IF(D15=rozpis_příprava!$E$20,G15+rozpis_final_tisk!$E$2,IF('celkové umístění'!D15<>rozpis_příprava!$E$20,G15))","v":179},{"$f":"IF(D15=rozpis_příprava!$E$20,H15+rozpis_final_tisk!$E$2,IF('celkové umístění'!D15<>rozpis_příprava!$E$20,H15))","v":158},{"$f":"IF(D15=rozpis_příprava!$E$20,I15+rozpis_final_tisk!$E$2,IF('celkové umístění'!D15<>rozpis_příprava!$E$20,I15))","v":152},{"$f":"IF(D15=rozpis_příprava!$E$20,J15+rozpis_final_tisk!$E$2,IF('celkové umístění'!D15<>rozpis_příprava!$E$20,J15))","v":160},{"$f":"IF(D15=rozpis_příprava!$E$20,K15+rozpis_final_tisk!$E$2,IF('celkové umístění'!D15<>rozpis_příprava!$E$20,K15))","v":false},{"$f":"IF(D15=rozpis_příprava!$E$20,L15+rozpis_final_tisk!$E$2,IF('celkové umístění'!D15<>rozpis_příprava!$E$20,L15))","v":false},{"$f":"IF(D15=rozpis_příprava!$E$20,M15+rozpis_final_tisk!$E$2,IF('celkové umístění'!D15<>rozpis_příprava!$E$20,M15))","v":false},null,{"$f":"IF(#REF!<>rozpis_final_tisk!$E$2,'celkové umístění'!#REF!,IF('celkové umístění'!#REF!=rozpis_final_tisk!$E$2,\"text\"))","v":{"$error":"#REF!"}},{"$f":"IF(X15<>rozpis_final_tisk!$E$2,'celkové umístění'!X15,IF('celkové umístění'!X15=rozpis_final_tisk!$E$2,\"text\"))","v":145},{"$f":"IF(Y15<>rozpis_final_tisk!$E$2,'celkové umístění'!Y15,IF('celkové umístění'!Y15=rozpis_final_tisk!$E$2,\"text\"))","v":179},{"$f":"IF(Z15<>rozpis_final_tisk!$E$2,'celkové umístění'!Z15,IF('celkové umístění'!Z15=rozpis_final_tisk!$E$2,\"text\"))","v":158},{"$f":"IF(AA15<>rozpis_final_tisk!$E$2,'celkové umístění'!AA15,IF('celkové umístění'!AA15=rozpis_final_tisk!$E$2,\"text\"))","v":152},{"$f":"IF(AB15<>rozpis_final_tisk!$E$2,'celkové umístění'!AB15,IF('celkové umístění'!AB15=rozpis_final_tisk!$E$2,\"text\"))","v":160},{"$f":"IF(AC15<>rozpis_final_tisk!$E$2,'celkové umístění'!AC15,IF('celkové umístění'!AC15=rozpis_final_tisk!$E$2,\"text\"))","v":"text"},{"$f":"IF(AD15<>rozpis_final_tisk!$E$2,'celkové umístění'!AD15,IF('celkové umístění'!AD15=rozpis_final_tisk!$E$2,\"text\"))","v":"text"},{"$f":"IF(AE15<>rozpis_final_tisk!$E$2,'celkové umístění'!AE15,IF('celkové umístění'!AE15=rozpis_final_tisk!$E$2,\"text\"))","v":"text"},null,{"$error":"#REF!"},{"$f":"IF(AQ15=MAX($AQ$10:$AQ$41),P15,0)","v":{"$error":"#REF!"}},{"$f":"IF(AR15=MAX($AR$10:$AR$41),D15)","v":{"$error":"#REF!"}},{"$f":"IF(O15=FALSE,\"Na\",MIN(AG15:AO15))","v":{"$error":"#REF!"}},{"$f":"IF(AT15=MIN($AT$10:$AT$41),P15,\"Na\")","v":{"$error":"#REF!"}},{"$f":"IF(AU15=MIN($AU$10:$AU$41),D15)","v":{"$error":"#REF!"}},null,{"$error":"#REF!"},{"$f":"IF(AX15<>FALSE,D15)","v":{"$error":"#REF!"}},{"$f":"IF(AY15<>rozpis_příprava!$E$20,IF(AY15<>FALSE,'celkové umístění'!C15))","v":{"$error":"#REF!"}},{"$f":"IF(#REF!>1,IF(#REF!<>FALSE,AZ15))","v":{"$error":"#REF!"}},{"$error":"#REF!"},{"$error":"#REF!"},{"$error":"#DIV/0!"},{"$error":"#DIV/0!"},null,{"$error":"#REF!"},{"$f":"IF(BG15<>FALSE,D15)","v":{"$error":"#REF!"}},{"$f":"IF(BH15=rozpis_příprava!$E$20,'celkové umístění'!C15)","v":{"$error":"#REF!"}},{"$error":"#REF!"},{"$f":"IF(#REF!=FALSE,BI15)","v":{"$error":"#REF!"}},{"$error":"#REF!"},0,{"$error":"#REF!"},"",{"$error":"#VALUE!"},""]
[null,"7.",{"$f":"rozpis_final_tisk!B84","v":"Jarda H."},{"$f":"rozpis_final_tisk!D84","v":"P"},{"$f":"IF(rozpis_final_tisk!E84>0,rozpis_final_tisk!E84)","v":170},{"$f":"IF(rozpis_final_tisk!F84>0,rozpis_final_tisk!F84)","v":150},{"$f":"IF(rozpis_final_tisk!G84>0,rozpis_final_tisk!G84)","v":201},{"$f":"IF(rozpis_final_tisk!H84>0,rozpis_final_tisk!H84)","v":141},{"$f":"IF(rozpis_final_tisk!I84>0,rozpis_final_tisk!I84)","v":145},{"$f":"IF(rozpis_final_tisk!J84>0,rozpis_final_tisk!J84)","v":false},{"$f":"IF(rozpis_final_tisk!K84>0,rozpis_final_tisk!K84)","v":false},{"$f":"IF(rozpis_final_tisk!L84>0,rozpis_final_tisk!L84)","v":false},{"$f":"IF(rozpis_final_tisk!M84>0,rozpis_final_tisk!M84)","v":false},{"$f":"IF(rozpis_final_tisk!N84>0,rozpis_final_tisk!N84)","v":false},{"$f":"IF(rozpis_final_tisk!O84>0,rozpis_final_tisk!O84)","v":807},{"$f":"IF(rozpis_final_tisk!P84>0,rozpis_final_tisk!P84)","v":161.4},null,null,null,null,null,null,null,{"$f":"IF(D16=rozpis_příprava!$E$20,F16+rozpis_final_tisk!$E$2,IF('celkové umístění'!D16<>rozpis_příprava!$E$20,F16))","v":150},{"$f":"IF(D16=rozpis_příprava!$E$20,G16+rozpis_final_tisk!$E$2,IF('celkové umístění'!D16<>rozpis_příprava!$E$20,G16))","v":201},{"$f":"IF(D16=rozpis_příprava!$E$20,H16+rozpis_final_tisk!$E$2,IF('celkové umístění'!D16<>rozpis_příprava!$E$20,H16))","v":141},{"$f":"IF(D16=rozpis_příprava!$E$20,I16+rozpis_final_tisk!$E$2,IF('celkové umístění'!D16<>rozpis_příprava!$E$20,I16))","v":145},{"$f":"IF(D16=rozpis_příprava!$E$20,J16+rozpis_final_tisk!$E$2,IF('celkové umístění'!D16<>rozpis_příprava!$E$20,J16))","v":false},{"$f":"IF(D16=rozpis_příprava!$E$20,K16+rozpis_final_tisk!$E$2,IF('celkové umístění'!D16<>rozpis_příprava!$E$20,K16))","v":false},{"$f":"IF(D16=rozpis_příprava!$E$20,L16+rozpis_final_tisk!$E$2,IF('celkové umístění'!D16<>rozpis_příprava!$E$20,L16))","v":false},{"$f":"IF(D16=rozpis_příprava!$E$20,M16+rozpis_final_tisk!$E$2,IF('celkové umístění'!D16<>rozpis_příprava!$E$20,M16))","v":false},null,{"$f":"IF(#REF!<>rozpis_final_tisk!$E$2,'celkové umístění'!#REF!,IF('celkové umístění'!#REF!=rozpis_final_tisk!$E$2,\"text\"))","v":{"$error":"#REF!"}},{"$f":"IF(X16<>rozpis_final_tisk!$E$2,'celkové umístění'!X16,IF('celkové umístění'!X16=rozpis_final_tisk!$E$2,\"text\"))","v":150},{"$f":"IF(Y16<>rozpis_final_tisk!$E$2,'celkové umístění'!Y16,IF('celkové umístění'!Y16=rozpis_final_tisk!$E$2,\"text\"))","v":201},{"$f":"IF(Z16<>rozpis_final_tisk!$E$2,'celkové umístění'!Z16,IF('celkové umístění'!Z16=rozpis_final_tisk!$E$2,\"text\"))","v":141},{"$f":"IF(AA16<>rozpis_final_tisk!$E$2,'celkové umístění'!AA16,IF('celkové umístění'!AA16=rozpis_final_tisk!$E$2,\"text\"))","v":145},{"$f":"IF(AB16<>rozpis_final_tisk!$E$2,'celkové umístění'!AB16,IF('celkové umístění'!AB16=rozpis_final_tisk!$E$2,\"text\"))","v":"text"},{"$f":"IF(AC16<>rozpis_final_tisk!$E$2,'celkové umístění'!AC16,IF('celkové umístění'!AC16=rozpis_final_tisk!$E$2,\"text\"))","v":"text"},{"$f":"IF(AD16<>rozpis_final_tisk!$E$2,'celkové umístění'!AD16,IF('celkové umístění'!AD16=rozpis_final_tisk!$E$2,\"text\"))","v":"text"},{"$f":"IF(AE16<>rozpis_final_tisk!$E$2,'celkové umístění'!AE16,IF('celkové umístění'!AE16=rozpis_final_tisk!$E$2,\"text\"))","v":"text"},null,{"$error":"#REF!"},{"$f":"IF(AQ16=MAX($AQ$10:$AQ$41),P16,0)","v":{"$error":"#REF!"}},{"$f":"IF(AR16=MAX($AR$10:$AR$41),D16)","v":{"$error":"#REF!"}},{"$f":"IF(O16=FALSE,\"Na\",MIN(AG16:AO16))","v":{"$error":"#REF!"}},{"$f":"IF(AT16=MIN($AT$10:$AT$41),P16,\"Na\")","v":{"$error":"#REF!"}},{"$f":"IF(AU16=MIN($AU$10:$AU$41),D16)","v":{"$error":"#REF!"}},null,{"$error":"#REF!"},{"$f":"IF(AX16<>FALSE,D16)","v":{"$error":"#REF!"}},{"$f":"IF(AY16<>rozpis_příprava!$E$20,IF(AY16<>FALSE,'celkové umístění'!C16))","v":{"$error":"#REF!"}},{"$f":"IF(#REF!>1,IF(#REF!<>FALSE,AZ16))","v":{"$error":"#REF!"}},{"$error":"#REF!"},{"$error":"#REF!"},{"$error":"#DIV/0!"},{"$error":"#DIV/0!"},null,{"$error":"#REF!"},{"$f":"IF(BG16<>FALSE,D16)","v":{"$error":"#REF!"}},{"$f":"IF(BH16=rozpis_příprava!$E$20,'celkové umístění'!C16)","v":{"$error":"#REF!"}},{"$error":"#REF!"},{"$f":"IF(#REF!=FALSE,BI16)","v":{"$error":"#REF!"}},{"$error":"#REF!"},0,{"$error":"#REF!"},"",{"$error":"#VALUE!"},""]
[null,"8.",{"$f":"rozpis_final_tisk!B14","v":"Renata A."},{"$f":"rozpis_final_tisk!D14","v":"Ž"},{"$f":"IF(rozpis_final_tisk!E14>0,rozpis_final_tisk!E14)","v":127},{"$f":"IF(rozpis_final_tisk!F14>0,rozpis_final_tisk!F14)","v":118},{"$f":"IF(rozpis_final_tisk!G14>0,rozpis_final_tisk!G14)","v":158},{"$f":"IF(rozpis_final_tisk!H14>0,rozpis_final_tisk!H14)","v":165},{"$f":"IF(rozpis_final_tisk!I14>0,rozpis_final_tisk!I14)","v":124},{"$f":"IF(rozpis_final_tisk!J14>0,rozpis_final_tisk!J14)","v":222},{"$f":"IF(rozpis_final_tisk!K14>0,rozpis_final_tisk!K14)","v":false},{"$f":"IF(rozpis_final_tisk!L14>0,rozpis_final_tisk!L14)","v":false},{"$f":"IF(rozpis_final_tisk!M14>0,rozpis_final_tisk!M14)","v":false},{"$f":"IF(rozpis_final_tisk!N14>0,rozpis_final_tisk!N14)","v":false},{"$f":"IF(rozpis_final_tisk!O14>0,rozpis_final_tisk!O14)","v":914},{"$f":"IF(rozpis_final_tisk!P14>0,rozpis_final_tisk!P14)","v":152.33333333333334},null,null,null,null,null,null,null,{"$f":"IF(D17=rozpis_příprava!$E$20,F17+rozpis_final_tisk!$E$2,IF('celkové umístění'!D17<>rozpis_příprava!$E$20,F17))","v":118},{"$f":"IF(D17=rozpis_příprava!$E$20,G17+rozpis_final_tisk!$E$2,IF('celkové umístění'!D17<>rozpis_příprava!$E$20,G17))","v":158},{"$f":"IF(D17=rozpis_příprava!$E$20,H17+rozpis_final_tisk!$E$2,IF('celkové umístění'!D17<>rozpis_příprava!$E$20,H17))","v":165},{"$f":"IF(D17=rozpis_příprava!$E$20,I17+rozpis_final_tisk!$E$2,IF('celkové umístění'!D17<>rozpis_příprava!$E$20,I17))","v":124},{"$f":"IF(D17=rozpis_příprava!$E$20,J17+rozpis_final_tisk!$E$2,IF('celkové umístění'!D17<>rozpis_příprava!$E$20,J17))","v":222},{"$f":"IF(D17=rozpis_příprava!$E$20,K17+rozpis_final_tisk!$E$2,IF('celkové umístění'!D17<>rozpis_příprava!$E$20,K17))","v":0},{"$f":"IF(D17=rozpis_příprava!$E$20,L17+rozpis_final_tisk!$E$2,IF('celkové umístění'!D17<>rozpis_příprava!$E$20,L17))","v":0},{"$f":"IF(D17=rozpis_příprava!$E$20,M17+rozpis_final_tisk!$E$2,IF('celkové umístění'!D17<>rozpis_příprava!$E$20,M17))","v":0},null,{"$f":"IF(#REF!<>rozpis_final_tisk!$E$2,'celkové umístění'!#REF!,IF('celkové umístění'!#REF!=rozpis_final_tisk!$E$2,\"text\"))","v":{"$error":"#REF!"}},{"$f":"IF(X17<>rozpis_final_tisk!$E$2,'celkové umístění'!X17,IF('celkové umístění'!X17=rozpis_final_tisk!$E$2,\"text\"))","v":118},{"$f":"IF(Y17<>rozpis_final_tisk!$E$2,'celkové umístění'!Y17,IF('celkové umístění'!Y17=rozpis_final_tisk!$E$2,\"text\"))","v":158},{"$f":"IF(Z17<>rozpis_final_tisk!$E$2,'celkové umístění'!Z17,IF('celkové umístění'!Z17=rozpis_final_tisk!$E$2,\"text\"))","v":165},{"$f":"IF(AA17<>rozpis_final_tisk!$E$2,'celkové umístění'!AA17,IF('celkové umístění'!AA17=rozpis_final_tisk!$E$2,\"text\"))","v":124},{"$f":"IF(AB17<>rozpis_final_tisk!$E$2,'celkové umístění'!AB17,IF('celkové umístění'!AB17=rozpis_final_tisk!$E$2,\"text\"))","v":222},{"$f":"IF(AC17<>rozpis_final_tisk!$E$2,'celkové umístění'!AC17,IF('celkové umístění'!AC17=rozpis_final_tisk!$E$2,\"text\"))","v":"text"},{"$f":"IF(AD17<>rozpis_final_tisk!$E$2,'celkové umístění'!AD17,IF('celkové umístění'!AD17=rozpis_final_tisk!$E$2,\"text\"))","v":"text"},{"$f":"IF(AE17<>rozpis_final_tisk!$E$2,'celkové umístění'!AE17,IF('celkové umístění'!AE17=rozpis_final_tisk!$E$2,\"text\"))","v":"text"},null,{"$error":"#REF!"},{"$f":"IF(AQ17=MAX($AQ$10:$AQ$41),P17,0)","v":{"$error":"#REF!"}},{"$f":"IF(AR17=MAX($AR$10:$AR$41),D17)","v":{"$error":"#REF!"}},{"$f":"IF(O17=FALSE,\"Na\",MIN(AG17:AO17))","v":{"$error":"#REF!"}},{"$f":"IF(AT17=MIN($AT$10:$AT$41),P17,\"Na\")","v":{"$error":"#REF!"}},{"$f":"IF(AU17=MIN($AU$10:$AU$41),D17)","v":{"$error":"#REF!"}},null,{"$error":"#REF!"},{"$f":"IF(AX17<>FALSE,D17)","v":{"$error":"#REF!"}},{"$f":"IF(AY17<>rozpis_příprava!$E$20,IF(AY17<>FALSE,'celkové umístění'!C17))","v":{"$error":"#REF!"}},{"$f":"IF(#REF!>1,IF(#REF!<>FALSE,AZ17))","v":{"$error":"#REF!"}},{"$error":"#REF!"},{"$error":"#REF!"},{"$error":"#DIV/0!"},{"$error":"#DIV/0!"},null,{"$error":"#REF!"},{"$f":"IF(BG17<>FALSE,D17)","v":{"$error":"#REF!"}},{"$f":"IF(BH17=rozpis_příprava!$E$20,'celkové umístění'!C17)","v":{"$error":"#REF!"}},{"$error":"#REF!"},{"$f":"IF(#REF!=FALSE,BI17)","v":{"$error":"#REF!"}},{"$error":"#REF!"},0,{"$error":"#REF!"},"",{"$error":"#VALUE!"},""]
[null,"9.",{"$f":"rozpis_final_tisk!B102","v":"David D."},{"$f":"rozpis_final_tisk!D102","v":"M"},{"$f":"IF(rozpis_final_tisk!E102>0,rozpis_final_tisk!E102)","v":139},{"$f":"IF(rozpis_final_tisk!F102>0,rozpis_final_tisk!F102)","v":144},{"$f":"IF(rozpis_final_tisk!G102>0,rozpis_final_tisk!G102)","v":152},{"$f":"IF(rozpis_final_tisk!H102>0,rozpis_final_tisk!H102)","v":114},{"$f":"IF(rozpis_final_tisk!I102>0,rozpis_final_tisk!I102)","v":167},{"$f":"IF(rozpis_final_tisk!J102>0,rozpis_final_tisk!J102)","v":false},{"$f":"IF(rozpis_final_tisk!K102>0,rozpis_final_tisk!K102)","v":false},{"$f":"IF(rozpis_final_tisk!L102>0,rozpis_final_tisk!L102)","v":false},{"$f":"IF(rozpis_final_tisk!M102>0,rozpis_final_tisk!M102)","v":false},{"$f":"IF(rozpis_final_tisk!N102>0,rozpis_final_tisk!N102)","v":false},{"$f":"IF(rozpis_final_tisk!O102>0,rozpis_final_tisk!O102)","v":716},{"$f":"IF(rozpis_final_tisk!P102>0,rozpis_final_tisk!P102)","v":143.19999999999999},null,null,null,null,null,null,null,{"$f":"IF(D18=rozpis_příprava!$E$20,F18+rozpis_final_tisk!$E$2,IF('celkové umístění'!D18<>rozpis_příprava!$E$20,F18))","v":144},{"$f":"IF(D18=rozpis_příprava!$E$20,G18+rozpis_final_tisk!$E$2,IF('celkové umístění'!D18<>rozpis_příprava!$E$20,G18))","v":152},{"$f":"IF(D18=rozpis_příprava!$E$20,H18+rozpis_final_tisk!$E$2,IF('celkové umístění'!D18<>rozpis_příprava!$E$20,H18))","v":114},{"$f":"IF(D18=rozpis_příprava!$E$20,I18+rozpis_final_tisk!$E$2,IF('celkové umístění'!D18<>rozpis_příprava!$E$20,I18))","v":167},{"$f":"IF(D18=rozpis_příprava!$E$20,J18+rozpis_final_tisk!$E$2,IF('celkové umístění'!D18<>rozpis_příprava!$E$20,J18))","v":false},{"$f":"IF(D18=rozpis_příprava!$E$20,K18+rozpis_final_tisk!$E$2,IF('celkové umístění'!D18<>rozpis_příprava!$E$20,K18))","v":false},{"$f":"IF(D18=rozpis_příprava!$E$20,L18+rozpis_final_tisk!$E$2,IF('celkové umístění'!D18<>rozpis_příprava!$E$20,L18))","v":false},{"$f":"IF(D18=rozpis_příprava!$E$20,M18+rozpis_final_tisk!$E$2,IF('celkové umístění'!D18<>rozpis_příprava!$E$20,M18))","v":false},null,{"$f":"IF(#REF!<>rozpis_final_tisk!$E$2,'celkové umístění'!#REF!,IF('celkové umístění'!#REF!=rozpis_final_tisk!$E$2,\"text\"))","v":{"$error":"#REF!"}},{"$f":"IF(X18<>rozpis_final_tisk!$E$2,'celkové umístění'!X18,IF('celkové umístění'!X18=rozpis_final_tisk!$E$2,\"text\"))","v":144},{"$f":"IF(Y18<>rozpis_final_tisk!$E$2,'celkové umístění'!Y18,IF('celkové umístění'!Y18=rozpis_final_tisk!$E$2,\"text\"))","v":152},{"$f":"IF(Z18<>rozpis_final_tisk!$E$2,'celkové umístění'!Z18,IF('celkové umístění'!Z18=rozpis_final_tisk!$E$2,\"text\"))","v":114},{"$f":"IF(AA18<>rozpis_final_tisk!$E$2,'celkové umístění'!AA18,IF('celkové umístění'!AA18=rozpis_final_tisk!$E$2,\"text\"))","v":167},{"$f":"IF(AB18<>rozpis_final_tisk!$E$2,'celkové umístění'!AB18,IF('celkové umístění'!AB18=rozpis_final_tisk!$E$2,\"text\"))","v":"text"},{"$f":"IF(AC18<>rozpis_final_tisk!$E$2,'celkové umístění'!AC18,IF('celkové umístění'!AC18=rozpis_final_tisk!$E$2,\"text\"))","v":"text"},{"$f":"IF(AD18<>rozpis_final_tisk!$E$2,'celkové umístění'!AD18,IF('celkové umístění'!AD18=rozpis_final_tisk!$E$2,\"text\"))","v":"text"},{"$f":"IF(AE18<>rozpis_final_tisk!$E$2,'celkové umístění'!AE18,IF('celkové umístění'!AE18=rozpis_final_tisk!$E$2,\"text\"))","v":"text"},null,{"$error":"#REF!"},{"$f":"IF(AQ18=MAX($AQ$10:$AQ$41),P18,0)","v":{"$error":"#REF!"}},{"$f":"IF(AR18=MAX($AR$10:$AR$41),D18)","v":{"$error":"#REF!"}},{"$f":"IF(O18=FALSE,\"Na\",MIN(AG18:AO18))","v":{"$error":"#REF!"}},{"$f":"IF(AT18=MIN($AT$10:$AT$41),P18,\"Na\")","v":{"$error":"#REF!"}},{"$f":"IF(AU18=MIN($AU$10:$AU$41),D18)","v":{"$error":"#REF!"}},null,{"$error":"#REF!"},{"$f":"IF(AX18<>FALSE,D18)","v":{"$error":"#REF!"}},{"$f":"IF(AY18<>rozpis_příprava!$E$20,IF(AY18<>FALSE,'celkové umístění'!C18))","v":{"$error":"#REF!"}},{"$f":"IF(#REF!>1,IF(#REF!<>FALSE,AZ18))","v":{"$error":"#REF!"}},{"$error":"#REF!"},{"$error":"#REF!"},{"$error":"#DIV/0!"},{"$error":"#DIV/0!"},null,{"$error":"#REF!"},{"$f":"IF(BG18<>FALSE,D18)","v":{"$error":"#REF!"}},{"$f":"IF(BH18=rozpis_příprava!$E$20,'celkové umístění'!C18)","v":{"$error":"#REF!"}},{"$error":"#REF!"},{"$f":"IF(#REF!=FALSE,BI18)","v":{"$error":"#REF!"}},{"$error":"#REF!"},0,{"$error":"#REF!"},"",{"$error":"#VALUE!"},""]
[null,"10.",{"$f":"rozpis_final_tisk!B86","v":"Mirek K."},{"$f":"rozpis_final_tisk!D86","v":"M"},{"$f":"IF(rozpis_final_tisk!E86>0,rozpis_final_tisk!E86)","v":139},{"$f":"IF(rozpis_final_tisk!F86>0,rozpis_final_tisk!F86)","v":187},{"$f":"IF(rozpis_final_tisk!G86>0,rozpis_final_tisk!G86)","v":125},{"$f":"IF(rozpis_final_tisk!H86>0,rozpis_final_tisk!H86)","v":116},{"$f":"IF(rozpis_final_tisk!I86>0,rozpis_final_tisk!I86)","v":126},{"$f":"IF(rozpis_final_tisk!J86>0,rozpis_final_tisk!J86)","v":148},{"$f":"IF(rozpis_final_tisk!K86>0,rozpis_final_tisk!K86)","v":false},{"$f":"IF(rozpis_final_tisk!L86>0,rozpis_final_tisk!L86)","v":false},{"$f":"IF(rozpis_final_tisk!M86>0,rozpis_final_tisk!M86)","v":false},{"$f":"IF(rozpis_final_tisk!N86>0,rozpis_final_tisk!N86)","v":false},{"$f":"IF(rozpis_final_tisk!O86>0,rozpis_final_tisk!O86)","v":841},{"$f":"IF(rozpis_final_tisk!P86>0,rozpis_final_tisk!P86)","v":140.16666666666666},null,null,null,null,null,null,null,{"$f":"IF(D19=rozpis_příprava!$E$20,F19+rozpis_final_tisk!$E$2,IF('celkové umístění'!D19<>rozpis_příprava!$E$20,F19))","v":187},{"$f":"IF(D19=rozpis_příprava!$E$20,G19+rozpis_final_tisk!$E$2,IF('celkové umístění'!D19<>rozpis_příprava!$E$20,G19))","v":125},{"$f":"IF(D19=rozpis_příprava!$E$20,H19+rozpis_final_tisk!$E$2,IF('celkové umístění'!D19<>rozpis_příprava!$E$20,H19))","v":116},{"$f":"IF(D19=rozpis_příprava!$E$20,I19+rozpis_final_tisk!$E$2,IF('celkové umístění'!D19<>rozpis_příprava!$E$20,I19))","v":126},{"$f":"IF(D19=rozpis_příprava!$E$20,J19+rozpis_final_tisk!$E$2,IF('celkové umístění'!D19<>rozpis_příprava!$E$20,J19))","v":148},{"$f":"IF(D19=rozpis_příprava!$E$20,K19+rozpis_final_tisk!$E$2,IF('celkové umístění'!D19<>rozpis_příprava!$E$20,K19))","v":false},{"$f":"IF(D19=rozpis_příprava!$E$20,L19+rozpis_final_tisk!$E$2,IF('celkové umístění'!D19<>rozpis_příprava!$E$20,L19))","v":false},{"$f":"IF(D19=rozpis_příprava!$E$20,M19+rozpis_final_tisk!$E$2,IF('celkové umístění'!D19<>rozpis_příprava!$E$20,M19))","v":false},null,{"$f":"IF(#REF!<>rozpis_final_tisk!$E$2,'celkové umístění'!#REF!,IF('celkové umístění'!#REF!=rozpis_final_tisk!$E$2,\"text\"))","v":{"$error":"#REF!"}},{"$f":"IF(X19<>rozpis_final_tisk!$E$2,'celkové umístění'!X19,IF('celkové umístění'!X19=rozpis_final_tisk!$E$2,\"text\"))","v":187},{"$f":"IF(Y19<>rozpis_final_tisk!$E$2,'celkové umístění'!Y19,IF('celkové umístění'!Y19=rozpis_final_tisk!$E$2,\"text\"))","v":125},{"$f":"IF(Z19<>rozpis_final_tisk!$E$2,'celkové umístění'!Z19,IF('celkové umístění'!Z19=rozpis_final_tisk!$E$2,\"text\"))","v":116},{"$f":"IF(AA19<>rozpis_final_tisk!$E$2,'celkové umístění'!AA19,IF('celkové umístění'!AA19=rozpis_final_tisk!$E$2,\"text\"))","v":126},{"$f":"IF(AB19<>rozpis_final_tisk!$E$2,'celkové umístění'!AB19,IF('celkové umístění'!AB19=rozpis_final_tisk!$E$2,\"text\"))","v":148},{"$f":"IF(AC19<>rozpis_final_tisk!$E$2,'celkové umístění'!AC19,IF('celkové umístění'!AC19=rozpis_final_tisk!$E$2,\"text\"))","v":"text"},{"$f":"IF(AD19<>rozpis_final_tisk!$E$2,'celkové umístění'!AD19,IF('celkové umístění'!AD19=rozpis_final_tisk!$E$2,\"text\"))","v":"text"},{"$f":"IF(AE19<>rozpis_final_tisk!$E$2,'celkové umístění'!AE19,IF('celkové umístění'!AE19=rozpis_final_tisk!$E$2,\"text\"))","v":"text"},null,{"$error":"#REF!"},{"$f":"IF(AQ19=MAX($AQ$10:$AQ$41),P19,0)","v":{"$error":"#REF!"}},{"$f":"IF(AR19=MAX($AR$10:$AR$41),D19)","v":{"$error":"#REF!"}},{"$f":"IF(O19=FALSE,\"Na\",MIN(AG19:AO19))","v":{"$error":"#REF!"}},{"$f":"IF(AT19=MIN($AT$10:$AT$41),P19,\"Na\")","v":{"$error":"#REF!"}},{"$f":"IF(AU19=MIN($AU$10:$AU$41),D19)","v":{"$error":"#REF!"}},null,{"$error":"#REF!"},{"$f":"IF(AX19<>FALSE,D19)","v":{"$error":"#REF!"}},{"$f":"IF(AY19<>rozpis_příprava!$E$20,IF(AY19<>FALSE,'celkové umístění'!C19))","v":{"$error":"#REF!"}},{"$f":"IF(#REF!>1,IF(#REF!<>FALSE,AZ19))","v":{"$error":"#REF!"}},{"$error":"#REF!"},{"$error":"#REF!"},{"$error":"#DIV/0!"},{"$error":"#DIV/0!"},null,{"$error":"#REF!"},{"$f":"IF(BG19<>FALSE,D19)","v":{"$error":"#REF!"}},{"$f":"IF(BH19=rozpis_příprava!$E$20,'celkové umístění'!C19)","v":{"$error":"#REF!"}},{"$error":"#REF!"},{"$f":"IF(#REF!=FALSE,BI19)","v":{"$error":"#REF!"}},{"$error":"#REF!"},0,{"$error":"#REF!"},"",{"$error":"#VALUE!"},""]
[null,"11.",{"$f":"rozpis_final_tisk!B48","v":"Lucka N."},{"$f":"rozpis_final_tisk!D48","v":"Ž"},{"$f":"IF(rozpis_final_tisk!E48>0,rozpis_final_tisk!E48)","v":107},{"$f":"IF(rozpis_final_tisk!F48>0,rozpis_final_tisk!F48)","v":132},{"$f":"IF(rozpis_final_tisk!G48>0,rozpis_final_tisk!G48)","v":80},{"$f":"IF(rozpis_final_tisk!H48>0,rozpis_final_tisk!H48)","v":116},{"$f":"IF(rozpis_final_tisk!I48>0,rozpis_final_tisk!I48)","v":false},{"$f":"IF(rozpis_final_tisk!J48>0,rozpis_final_tisk!J48)","v":false},{"$f":"IF(rozpis_final_tisk!K48>0,rozpis_final_tisk!K48)","v":false},{"$f":"IF(rozpis_final_tisk!L48>0,rozpis_final_tisk!L48)","v":false},{"$f":"IF(rozpis_final_tisk!M48>0,rozpis_final_tisk!M48)","v":false},{"$f":"IF(rozpis_final_tisk!N48>0,rozpis_final_tisk!N48)","v":false},{"$f":"IF(rozpis_final_tisk!O48>0,rozpis_final_tisk!O48)","v":435},{"$f":"IF(rozpis_final_tisk!P48>0,rozpis_final_tisk!P48)","v":108.75},null,null,null,null,null,null,null,{"$f":"IF(D20=rozpis_příprava!$E$20,F20+rozpis_final_tisk!$E$2,IF('celkové umístění'!D20<>rozpis_příprava!$E$20,F20))","v":132},{"$f":"IF(D20=rozpis_příprava!$E$20,G20+rozpis_final_tisk!$E$2,IF('celkové umístění'!D20<>rozpis_příprava!$E$20,G20))","v":80},{"$f":"IF(D20=rozpis_příprava!$E$20,H20+rozpis_final_tisk!$E$2,IF('celkové umístění'!D20<>rozpis_příprava!$E$20,H20))","v":116},{"$f":"IF(D20=rozpis_příprava!$E$20,I20+rozpis_final_tisk!$E$2,IF('celkové umístění'!D20<>rozpis_příprava!$E$20,I20))","v":0},{"$f":"IF(D20=rozpis_příprava!$E$20,J20+rozpis_final_tisk!$E$2,IF('celkové umístění'!D20<>rozpis_příprava!$E$20,J20))","v":0},{"$f":"IF(D20=rozpis_příprava!$E$20,K20+rozpis_final_tisk!$E$2,IF('celkové umístění'!D20<>rozpis_příprava!$E$20,K20))","v":0},{"$f":"IF(D20=rozpis_příprava!$E$20,L20+rozpis_final_tisk!$E$2,IF('celkové umístění'!D20<>rozpis_příprava!$E$20,L20))","v":0},{"$f":"IF(D20=rozpis_příprava!$E$20,M20+rozpis_final_tisk!$E$2,IF('celkové umístění'!D20<>rozpis_příprava!$E$20,M20))","v":0},null,{"$f":"IF(#REF!<>rozpis_final_tisk!$E$2,'celkové umístění'!#REF!,IF('celkové umístění'!#REF!=rozpis_final_tisk!$E$2,\"text\"))","v":{"$error":"#REF!"}},{"$f":"IF(X20<>rozpis_final_tisk!$E$2,'celkové umístění'!X20,IF('celkové umístění'!X20=rozpis_final_tisk!$E$2,\"text\"))","v":132},{"$f":"IF(Y20<>rozpis_final_tisk!$E$2,'celkové umístění'!Y20,IF('celkové umístění'!Y20=rozpis_final_tisk!$E$2,\"text\"))","v":80},{"$f":"IF(Z20<>rozpis_final_tisk!$E$2,'celkové umístění'!Z20,IF('celkové umístění'!Z20=rozpis_final_tisk!$E$2,\"text\"))","v":116},{"$f":"IF(AA20<>rozpis_final_tisk!$E$2,'celkové umístění'!AA20,IF('celkové umístění'!AA20=rozpis_final_tisk!$E$2,\"text\"))","v":"text"},{"$f":"IF(AB20<>rozpis_final_tisk!$E$2,'celkové umístění'!AB20,IF('celkové umístění'!AB20=rozpis_final_tisk!$E$2,\"text\"))","v":"text"},{"$f":"IF(AC20<>rozpis_final_tisk!$E$2,'celkové umístění'!AC20,IF('celkové umístění'!AC20=rozpis_final_tisk!$E$2,\"text\"))","v":"text"},{"$f":"IF(AD20<>rozpis_final_tisk!$E$2,'celkové umístění'!AD20,IF('celkové umístění'!AD20=rozpis_final_tisk!$E$2,\"text\"))","v":"text"},{"$f":"IF(AE20<>rozpis_final_tisk!$E$2,'celkové umístění'!AE20,IF('celkové umístění'!AE20=rozpis_final_tisk!$E$2,\"text\"))","v":"text"},null,{"$error":"#REF!"},{"$f":"IF(AQ20=MAX($AQ$10:$AQ$41),P20,0)","v":{"$error":"#REF!"}},{"$f":"IF(AR20=MAX($AR$10:$AR$41),D20)","v":{"$error":"#REF!"}},{"$f":"IF(O20=FALSE,\"Na\",MIN(AG20:AO20))","v":{"$error":"#REF!"}},{"$f":"IF(AT20=MIN($AT$10:$AT$41),P20,\"Na\")","v":{"$error":"#REF!"}},{"$f":"IF(AU20=MIN($AU$10:$AU$41),D20)","v":{"$error":"#REF!"}},null,{"$error":"#REF!"},{"$f":"IF(AX20<>FALSE,D20)","v":{"$error":"#REF!"}},{"$f":"IF(AY20<>rozpis_příprava!$E$20,IF(AY20<>FALSE,'celkové umístění'!C20))","v":{"$error":"#REF!"}},{"$f":"IF(#REF!>1,IF(#REF!<>FALSE,AZ20))","v":{"$error":"#REF!"}},{"$error":"#REF!"},{"$error":"#REF!"},{"$error":"#DIV/0!"},{"$error":"#DIV/0!"},null,{"$error":"#REF!"},{"$f":"IF(BG20<>FALSE,D20)","v":{"$error":"#REF!"}},{"$f":"IF(BH20=rozpis_příprava!$E$20,'celkové umístění'!C20)","v":{"$error":"#REF!"}},{"$error":"#REF!"},{"$f":"IF(#REF!=FALSE,BI20)","v":{"$error":"#REF!"}},{"$error":"#REF!"},0,{"$error":"#REF!"},"",{"$error":"#VALUE!"},""]
[null,"12.",{"$f":"rozpis_final_tisk!B33","v":"Jitka M."},{"$f":"rozpis_final_tisk!D33","v":"Ž"},{"$f":"IF(rozpis_final_tisk!E33>0,rozpis_final_tisk!E33)","v":63},{"$f":"IF(rozpis_final_tisk!F33>0,rozpis_final_tisk!F33)","v":92},{"$f":"IF(rozpis_final_tisk!G33>0,rozpis_final_tisk!G33)","v":102},{"$f":"IF(rozpis_final_tisk!H33>0,rozpis_final_tisk!H33)","v":120},{"$f":"IF(rozpis_final_tisk!I33>0,rozpis_final_tisk!I33)","v":112},{"$f":"IF(rozpis_final_tisk!J33>0,rozpis_final_tisk!J33)","v":155},{"$f":"IF(rozpis_final_tisk!K33>0,rozpis_final_tisk!K33)","v":false},{"$f":"IF(rozpis_final_tisk!L33>0,rozpis_final_tisk!L33)","v":false},{"$f":"IF(rozpis_final_tisk!M33>0,rozpis_final_tisk!M33)","v":false},{"$f":"IF(rozpis_final_tisk!N33>0,rozpis_final_tisk!N33)","v":false},{"$f":"IF(rozpis_final_tisk!O33>0,rozpis_final_tisk!O33)","v":644},{"$f":"IF(rozpis_final_tisk!P33>0,rozpis_final_tisk!P33)","v":107.33333333333333},null,null,null,null,null,null,null,{"$f":"IF(D21=rozpis_příprava!$E$20,F21+rozpis_final_tisk!$E$2,IF('celkové umístění'!D21<>rozpis_příprava!$E$20,F21))","v":92},{"$f":"IF(D21=rozpis_příprava!$E$20,G21+rozpis_final_tisk!$E$2,IF('celkové umístění'!D21<>rozpis_příprava!$E$20,G21))","v":102},{"$f":"IF(D21=rozpis_příprava!$E$20,H21+rozpis_final_tisk!$E$2,IF('celkové umístění'!D21<>rozpis_příprava!$E$20,H21))","v":120},{"$f":"IF(D21=rozpis_příprava!$E$20,I21+rozpis_final_tisk!$E$2,IF('celkové umístění'!D21<>rozpis_příprava!$E$20,I21))","v":112},{"$f":"IF(D21=rozpis_příprava!$E$20,J21+rozpis_final_tisk!$E$2,IF('celkové umístění'!D21<>rozpis_příprava!$E$20,J21))","v":155},{"$f":"IF(D21=rozpis_příprava!$E$20,K21+rozpis_final_tisk!$E$2,IF('celkové umístění'!D21<>rozpis_příprava!$E$20,K21))","v":0},{"$f":"IF(D21=rozpis_příprava!$E$20,L21+rozpis_final_tisk!$E$2,IF('celkové umístění'!D21<>rozpis_příprava!$E$20,L21))","v":0},{"$f":"IF(D21=rozpis_příprava!$E$20,M21+rozpis_final_tisk!$E$2,IF('celkové umístění'!D21<>rozpis_příprava!$E$20,M21))","v":0},null,{"$f":"IF(#REF!<>rozpis_final_tisk!$E$2,'celkové umístění'!#REF!,IF('celkové umístění'!#REF!=rozpis_final_tisk!$E$2,\"text\"))","v":{"$error":"#REF!"}},{"$f":"IF(X21<>rozpis_final_tisk!$E$2,'celkové umístění'!X21,IF('celkové umístění'!X21=rozpis_final_tisk!$E$2,\"text\"))","v":92},{"$f":"IF(Y21<>rozpis_final_tisk!$E$2,'celkové umístění'!Y21,IF('celkové umístění'!Y21=rozpis_final_tisk!$E$2,\"text\"))","v":102},{"$f":"IF(Z21<>rozpis_final_tisk!$E$2,'celkové umístění'!Z21,IF('celkové umístění'!Z21=rozpis_final_tisk!$E$2,\"text\"))","v":120},{"$f":"IF(AA21<>rozpis_final_tisk!$E$2,'celkové umístění'!AA21,IF('celkové umístění'!AA21=rozpis_final_tisk!$E$2,\"text\"))","v":112},{"$f":"IF(AB21<>rozpis_final_tisk!$E$2,'celkové umístění'!AB21,IF('celkové umístění'!AB21=rozpis_final_tisk!$E$2,\"text\"))","v":155},{"$f":"IF(AC21<>rozpis_final_tisk!$E$2,'celkové umístění'!AC21,IF('celkové umístění'!AC21=rozpis_final_tisk!$E$2,\"text\"))","v":"text"},{"$f":"IF(AD21<>rozpis_final_tisk!$E$2,'celkové umístění'!AD21,IF('celkové umístění'!AD21=rozpis_final_tisk!$E$2,\"text\"))","v":"text"},{"$f":"IF(AE21<>rozpis_final_tisk!$E$2,'celkové umístění'!AE21,IF('celkové umístění'!AE21=rozpis_final_tisk!$E$2,\"text\"))","v":"text"},null,{"$error":"#REF!"},{"$f":"IF(AQ21=MAX($AQ$10:$AQ$41),P21,0)","v":{"$error":"#REF!"}},{"$f":"IF(AR21=MAX($AR$10:$AR$41),D21)","v":{"$error":"#REF!"}},{"$f":"IF(O21=FALSE,\"Na\",MIN(AG21:AO21))","v":{"$error":"#REF!"}},{"$f":"IF(AT21=MIN($AT$10:$AT$41),P21,\"Na\")","v":{"$error":"#REF!"}},{"$f":"IF(AU21=MIN($AU$10:$AU$41),D21)","v":{"$error":"#REF!"}},null,{"$error":"#REF!"},{"$f":"IF(AX21<>FALSE,D21)","v":{"$error":"#REF!"}},{"$f":"IF(AY21<>rozpis_příprava!$E$20,IF(AY21<>FALSE,'celkové umístění'!C21))","v":{"$error":"#REF!"}},{"$f":"IF(#REF!>1,IF(#REF!<>FALSE,AZ21))","v":{"$error":"#REF!"}},{"$error":"#REF!"},{"$error":"#REF!"},{"$error":"#DIV/0!"},{"$error":"#DIV/0!"},null,{"$error":"#REF!"},{"$f":"IF(BG21<>FALSE,D21)","v":{"$error":"#REF!"}},{"$f":"IF(BH21=rozpis_příprava!$E$20,'celkové umístění'!C21)","v":{"$error":"#REF!"}},{"$error":"#REF!"},{"$f":"IF(#REF!=FALSE,BI21)","v":{"$error":"#REF!"}},{"$error":"#REF!"},0,{"$error":"#REF!"},"",{"$error":"#VALUE!"},""]
[null,"13.",{"$f":"rozpis_final_tisk!B16","v":"Ivana V."},{"$f":"rozpis_final_tisk!D16","v":"Ž"},{"$f":"IF(rozpis_final_tisk!E16>0,rozpis_final_tisk!E16)","v":77},{"$f":"IF(rozpis_final_tisk!F16>0,rozpis_final_tisk!F16)","v":107},{"$f":"IF(rozpis_final_tisk!G16>0,rozpis_final_tisk!G16)","v":69},{"$f":"IF(rozpis_final_tisk!H16>0,rozpis_final_tisk!H16)","v":97},{"$f":"IF(rozpis_final_tisk!I16>0,rozpis_final_tisk!I16)","v":84},{"$f":"IF(rozpis_final_tisk!J16>0,rozpis_final_tisk!J16)","v":false},{"$f":"IF(rozpis_final_tisk!K16>0,rozpis_final_tisk!K16)","v":false},{"$f":"IF(rozpis_final_tisk!L16>0,rozpis_final_tisk!L16)","v":false},{"$f":"IF(rozpis_final_tisk!M16>0,rozpis_final_tisk!M16)","v":false},{"$f":"IF(rozpis_final_tisk!N16>0,rozpis_final_tisk!N16)","v":false},{"$f":"IF(rozpis_final_tisk!O16>0,rozpis_final_tisk!O16)","v":434},{"$f":"IF(rozpis_final_tisk!P16>0,rozpis_final_tisk!P16)","v":86.8},null,null,null,null,null,null,null,{"$f":"IF(D22=rozpis_příprava!$E$20,F22+rozpis_final_tisk!$E$2,IF('celkové umístění'!D22<>rozpis_příprava!$E$20,F22))","v":107},{"$f":"IF(D22=rozpis_příprava!$E$20,G22+rozpis_final_tisk!$E$2,IF('celkové umístění'!D22<>rozpis_příprava!$E$20,G22))","v":69},{"$f":"IF(D22=rozpis_příprava!$E$20,H22+rozpis_final_tisk!$E$2,IF('celkové umístění'!D22<>rozpis_příprava!$E$20,H22))","v":97},{"$f":"IF(D22=rozpis_příprava!$E$20,I22+rozpis_final_tisk!$E$2,IF('celkové umístění'!D22<>rozpis_příprava!$E$20,I22))","v":84},{"$f":"IF(D22=rozpis_příprava!$E$20,J22+rozpis_final_tisk!$E$2,IF('celkové umístění'!D22<>rozpis_příprava!$E$20,J22))","v":0},{"$f":"IF(D22=rozpis_příprava!$E$20,K22+rozpis_final_tisk!$E$2,IF('celkové umístění'!D22<>rozpis_příprava!$E$20,K22))","v":0},{"$f":"IF(D22=rozpis_příprava!$E$20,L22+rozpis_final_tisk!$E$2,IF('celkové umístění'!D22<>rozpis_příprava!$E$20,L22))","v":0},{"$f":"IF(D22=rozpis_příprava!$E$20,M22+rozpis_final_tisk!$E$2,IF('celkové umístění'!D22<>rozpis_příprava!$E$20,M22))","v":0},null,{"$f":"IF(#REF!<>rozpis_final_tisk!$E$2,'celkové umístění'!#REF!,IF('celkové umístění'!#REF!=rozpis_final_tisk!$E$2,\"text\"))","v":{"$error":"#REF!"}},{"$f":"IF(X22<>rozpis_final_tisk!$E$2,'celkové umístění'!X22,IF('celkové umístění'!X22=rozpis_final_tisk!$E$2,\"text\"))","v":107},{"$f":"IF(Y22<>rozpis_final_tisk!$E$2,'celkové umístění'!Y22,IF('celkové umístění'!Y22=rozpis_final_tisk!$E$2,\"text\"))","v":69},{"$f":"IF(Z22<>rozpis_final_tisk!$E$2,'celkové umístění'!Z22,IF('celkové umístění'!Z22=rozpis_final_tisk!$E$2,\"text\"))","v":97},{"$f":"IF(AA22<>rozpis_final_tisk!$E$2,'celkové umístění'!AA22,IF('celkové umístění'!AA22=rozpis_final_tisk!$E$2,\"text\"))","v":84},{"$f":"IF(AB22<>rozpis_final_tisk!$E$2,'celkové umístění'!AB22,IF('celkové umístění'!AB22=rozpis_final_tisk!$E$2,\"text\"))","v":"text"},{"$f":"IF(AC22<>rozpis_final_tisk!$E$2,'celkové umístění'!AC22,IF('celkové umístění'!AC22=rozpis_final_tisk!$E$2,\"text\"))","v":"text"},{"$f":"IF(AD22<>rozpis_final_tisk!$E$2,'celkové umístění'!AD22,IF('celkové umístění'!AD22=rozpis_final_tisk!$E$2,\"text\"))","v":"text"},{"$f":"IF(AE22<>rozpis_final_tisk!$E$2,'celkové umístění'!AE22,IF('celkové umístění'!AE22=rozpis_final_tisk!$E$2,\"text\"))","v":"text"},null,{"$error":"#REF!"},{"$f":"IF(AQ22=MAX($AQ$10:$AQ$41),P22,0)","v":{"$error":"#REF!"}},{"$f":"IF(AR22=MAX($AR$10:$AR$41),D22)","v":{"$error":"#REF!"}},{"$f":"IF(O22=FALSE,\"Na\",MIN(AG22:AO22))","v":{"$error":"#REF!"}},{"$f":"IF(AT22=MIN($AT$10:$AT$41),P22,\"Na\")","v":{"$error":"#REF!"}},{"$f":"IF(AU22=MIN($AU$10:$AU$41),D22)","v":{"$error":"#REF!"}},null,{"$error":"#REF!"},{"$f":"IF(AX22<>FALSE,D22)","v":{"$error":"#REF!"}},{"$f":"IF(AY22<>rozpis_příprava!$E$20,IF(AY22<>FALSE,'celkové umístění'!C22))","v":{"$error":"#REF!"}},{"$f":"IF(#REF!>1,IF(#REF!<>FALSE,AZ22))","v":{"$error":"#REF!"}},{"$error":"#REF!"},{"$error":"#REF!"},{"$error":"#DIV/0!"},{"$error":"#DIV/0!"},null,{"$error":"#REF!"},{"$f":"IF(BG22<>FALSE,D22)","v":{"$error":"#REF!"}},{"$f":"IF(BH22=rozpis_příprava!$E$20,'celkové umístění'!C22)","v":{"$error":"#REF!"}},{"$error":"#REF!"},{"$f":"IF(#REF!=FALSE,BI22)","v":{"$error":"#REF!"}},{"$error":"#REF!"},0,{"$error":"#REF!"},"",{"$error":"#VALUE!"},""]
[null,"14.",{"$f":"rozpis_final_tisk!B15","v":"Vlaďka C."},{"$f":"rozpis_final_tisk!D15","v":"Ž"},{"$f":"IF(rozpis_final_tisk!E15>0,rozpis_final_tisk!E15)","v":82},{"$f":"IF(rozpis_final_tisk!F15>0,rozpis_final_tisk!F15)","v":94},{"$f":"IF(rozpis_final_tisk!G15>0,rozpis_final_tisk!G15)","v":98},{"$f":"IF(rozpis_final_tisk!H15>0,rozpis_final_tisk!H15)","v":58},{"$f":"IF(rozpis_final_tisk!I15>0,rozpis_final_tisk!I15)","v":97},{"$f":"IF(rozpis_final_tisk!J15>0,rozpis_final_tisk!J15)","v":false},{"$f":"IF(rozpis_final_tisk!K15>0,rozpis_final_tisk!K15)","v":false},{"$f":"IF(rozpis_final_tisk!L15>0,rozpis_final_tisk!L15)","v":false},{"$f":"IF(rozpis_final_tisk!M15>0,rozpis_final_tisk!M15)","v":false},{"$f":"IF(rozpis_final_tisk!N15>0,rozpis_final_tisk!N15)","v":false},{"$f":"IF(rozpis_final_tisk!O15>0,rozpis_final_tisk!O15)","v":429},{"$f":"IF(rozpis_final_tisk!P15>0,rozpis_final_tisk!P15)","v":85.8},null,null,null,null,null,null,null,{"$f":"IF(D23=rozpis_příprava!$E$20,F23+rozpis_final_tisk!$E$2,IF('celkové umístění'!D23<>rozpis_příprava!$E$20,F23))","v":94},{"$f":"IF(D23=rozpis_příprava!$E$20,G23+rozpis_final_tisk!$E$2,IF('celkové umístění'!D23<>rozpis_příprava!$E$20,G23))","v":98},{"$f":"IF(D23=rozpis_příprava!$E$20,H23+rozpis_final_tisk!$E$2,IF('celkové umístění'!D23<>rozpis_příprava!$E$20,H23))","v":58},{"$f":"IF(D23=rozpis_příprava!$E$20,I23+rozpis_final_tisk!$E$2,IF('celkové umístění'!D23<>rozpis_příprava!$E$20,I23))","v":97},{"$f":"IF(D23=rozpis_příprava!$E$20,J23+rozpis_final_tisk!$E$2,IF('celkové umístění'!D23<>rozpis_příprava!$E$20,J23))","v":0},{"$f":"IF(D23=rozpis_příprava!$E$20,K23+rozpis_final_tisk!$E$2,IF('celkové umístění'!D23<>rozpis_příprava!$E$20,K23))","v":0},{"$f":"IF(D23=rozpis_příprava!$E$20,L23+rozpis_final_tisk!$E$2,IF('celkové umístění'!D23<>rozpis_příprava!$E$20,L23))","v":0},{"$f":"IF(D23=rozpis_příprava!$E$20,M23+rozpis_final_tisk!$E$2,IF('celkové umístění'!D23<>rozpis_příprava!$E$20,M23))","v":0},null,{"$f":"IF(#REF!<>rozpis_final_tisk!$E$2,'celkové umístění'!#REF!,IF('celkové umístění'!#REF!=rozpis_final_tisk!$E$2,\"text\"))","v":{"$error":"#REF!"}},{"$f":"IF(X23<>rozpis_final_tisk!$E$2,'celkové umístění'!X23,IF('celkové umístění'!X23=rozpis_final_tisk!$E$2,\"text\"))","v":94},{"$f":"IF(Y23<>rozpis_final_tisk!$E$2,'celkové umístění'!Y23,IF('celkové umístění'!Y23=rozpis_final_tisk!$E$2,\"text\"))","v":98},{"$f":"IF(Z23<>rozpis_final_tisk!$E$2,'celkové umístění'!Z23,IF('celkové umístění'!Z23=rozpis_final_tisk!$E$2,\"text\"))","v":58},{"$f":"IF(AA23<>rozpis_final_tisk!$E$2,'celkové umístění'!AA23,IF('celkové umístění'!AA23=rozpis_final_tisk!$E$2,\"text\"))","v":97},{"$f":"IF(AB23<>rozpis_final_tisk!$E$2,'celkové umístění'!AB23,IF('celkové umístění'!AB23=rozpis_final_tisk!$E$2,\"text\"))","v":"text"},{"$f":"IF(AC23<>rozpis_final_tisk!$E$2,'celkové umístění'!AC23,IF('celkové umístění'!AC23=rozpis_final_tisk!$E$2,\"text\"))","v":"text"},{"$f":"IF(AD23<>rozpis_final_tisk!$E$2,'celkové umístění'!AD23,IF('celkové umístění'!AD23=rozpis_final_tisk!$E$2,\"text\"))","v":"text"},{"$f":"IF(AE23<>rozpis_final_tisk!$E$2,'celkové umístění'!AE23,IF('celkové umístění'!AE23=rozpis_final_tisk!$E$2,\"text\"))","v":"text"},null,{"$error":"#REF!"},{"$f":"IF(AQ23=MAX($AQ$10:$AQ$41),P23,0)","v":{"$error":"#REF!"}},{"$f":"IF(AR23=MAX($AR$10:$AR$41),D23)","v":{"$error":"#REF!"}},{"$f":"IF(O23=FALSE,\"Na\",MIN(AG23:AO23))","v":{"$error":"#REF!"}},{"$f":"IF(AT23=MIN($AT$10:$AT$41),P23,\"Na\")","v":{"$error":"#REF!"}},{"$f":"IF(AU23=MIN($AU$10:$AU$41),D23)","v":{"$error":"#REF!"}},null,{"$error":"#REF!"},{"$f":"IF(AX23<>FALSE,D23)","v":{"$error":"#REF!"}},{"$f":"IF(AY23<>rozpis_příprava!$E$20,IF(AY23<>FALSE,'celkové umístění'!C23))","v":{"$error":"#REF!"}},{"$f":"IF(#REF!>1,IF(#REF!<>FALSE,AZ23))","v":{"$error":"#REF!"}},{"$error":"#REF!"},{"$error":"#REF!"},{"$error":"#DIV/0!"},{"$error":"#DIV/0!"},null,{"$error":"#REF!"},{"$f":"IF(BG23<>FALSE,D23)","v":{"$error":"#REF!"}},{"$f":"IF(BH23=rozpis_příprava!$E$20,'celkové umístění'!C23)","v":{"$error":"#REF!"}},{"$error":"#REF!"},{"$f":"IF(#REF!=FALSE,BI23)","v":{"$error":"#REF!"}},{"$error":"#REF!"},0,{"$error":"#REF!"},"",{"$error":"#VALUE!"},""]
[null,"15.",{"$f":"rozpis_final_tisk!B34","v":"Ilona K."},{"$f":"rozpis_final_tisk!D34","v":"Ž"},{"$f":"IF(rozpis_final_tisk!E34>0,rozpis_final_tisk!E34)","v":88},{"$f":"IF(rozpis_final_tisk!F34>0,rozpis_final_tisk!F34)","v":73},{"$f":"IF(rozpis_final_tisk!G34>0,rozpis_final_tisk!G34)","v":115},{"$f":"IF(rozpis_final_tisk!H34>0,rozpis_final_tisk!H34)","v":46},{"$f":"IF(rozpis_final_tisk!I34>0,rozpis_final_tisk!I34)","v":64},{"$f":"IF(rozpis_final_tisk!J34>0,rozpis_final_tisk!J34)","v":89},{"$f":"IF(rozpis_final_tisk!K34>0,rozpis_final_tisk!K34)","v":false},{"$f":"IF(rozpis_final_tisk!L34>0,rozpis_final_tisk!L34)","v":false},{"$f":"IF(rozpis_final_tisk!M34>0,rozpis_final_tisk!M34)","v":false},{"$f":"IF(rozpis_final_tisk!N34>0,rozpis_final_tisk!N34)","v":false},{"$f":"IF(rozpis_final_tisk!O34>0,rozpis_final_tisk!O34)","v":475},{"$f":"IF(rozpis_final_tisk!P34>0,rozpis_final_tisk!P34)","v":79.166666666666671},null,null,null,null,null,null,null,{"$f":"IF(D24=rozpis_příprava!$E$20,F24+rozpis_final_tisk!$E$2,IF('celkové umístění'!D24<>rozpis_příprava!$E$20,F24))","v":73},{"$f":"IF(D24=rozpis_příprava!$E$20,G24+rozpis_final_tisk!$E$2,IF('celkové umístění'!D24<>rozpis_příprava!$E$20,G24))","v":115},{"$f":"IF(D24=rozpis_příprava!$E$20,H24+rozpis_final_tisk!$E$2,IF('celkové umístění'!D24<>rozpis_příprava!$E$20,H24))","v":46},{"$f":"IF(D24=rozpis_příprava!$E$20,I24+rozpis_final_tisk!$E$2,IF('celkové umístění'!D24<>rozpis_příprava!$E$20,I24))","v":64},{"$f":"IF(D24=rozpis_příprava!$E$20,J24+rozpis_final_tisk!$E$2,IF('celkové umístění'!D24<>rozpis_příprava!$E$20,J24))","v":89},{"$f":"IF(D24=rozpis_příprava!$E$20,K24+rozpis_final_tisk!$E$2,IF('celkové umístění'!D24<>rozpis_příprava!$E$20,K24))","v":0},{"$f":"IF(D24=rozpis_příprava!$E$20,L24+rozpis_final_tisk!$E$2,IF('celkové umístění'!D24<>rozpis_příprava!$E$20,L24))","v":0},{"$f":"IF(D24=rozpis_příprava!$E$20,M24+rozpis_final_tisk!$E$2,IF('celkové umístění'!D24<>rozpis_příprava!$E$20,M24))","v":0},null,{"$f":"IF(#REF!<>rozpis_final_tisk!$E$2,'celkové umístění'!#REF!,IF('celkové umístění'!#REF!=rozpis_final_tisk!$E$2,\"text\"))","v":{"$error":"#REF!"}},{"$f":"IF(X24<>rozpis_final_tisk!$E$2,'celkové umístění'!X24,IF('celkové umístění'!X24=rozpis_final_tisk!$E$2,\"text\"))","v":73},{"$f":"IF(Y24<>rozpis_final_tisk!$E$2,'celkové umístění'!Y24,IF('celkové umístění'!Y24=rozpis_final_tisk!$E$2,\"text\"))","v":115},{"$f":"IF(Z24<>rozpis_final_tisk!$E$2,'celkové umístění'!Z24,IF('celkové umístění'!Z24=rozpis_final_tisk!$E$2,\"text\"))","v":46},{"$f":"IF(AA24<>rozpis_final_tisk!$E$2,'celkové umístění'!AA24,IF('celkové umístění'!AA24=rozpis_final_tisk!$E$2,\"text\"))","v":64},{"$f":"IF(AB24<>rozpis_final_tisk!$E$2,'celkové umístění'!AB24,IF('celkové umístění'!AB24=rozpis_final_tisk!$E$2,\"text\"))","v":89},{"$f":"IF(AC24<>rozpis_final_tisk!$E$2,'celkové umístění'!AC24,IF('celkové umístění'!AC24=rozpis_final_tisk!$E$2,\"text\"))","v":"text"},{"$f":"IF(AD24<>rozpis_final_tisk!$E$2,'celkové umístění'!AD24,IF('celkové umístění'!AD24=rozpis_final_tisk!$E$2,\"text\"))","v":"text"},{"$f":"IF(AE24<>rozpis_final_tisk!$E$2,'celkové umístění'!AE24,IF('celkové umístění'!AE24=rozpis_final_tisk!$E$2,\"text\"))","v":"text"},null,{"$error":"#REF!"},{"$f":"IF(AQ24=MAX($AQ$10:$AQ$41),P24,0)","v":{"$error":"#REF!"}},{"$f":"IF(AR24=MAX($AR$10:$AR$41),D24)","v":{"$error":"#REF!"}},{"$f":"IF(O24=FALSE,\"Na\",MIN(AG24:AO24))","v":{"$error":"#REF!"}},{"$f":"IF(AT24=MIN($AT$10:$AT$41),P24,\"Na\")","v":{"$error":"#REF!"}},{"$f":"IF(AU24=MIN($AU$10:$AU$41),D24)","v":{"$error":"#REF!"}},null,{"$error":"#REF!"},{"$f":"IF(AX24<>FALSE,D24)","v":{"$error":"#REF!"}},{"$f":"IF(AY24<>rozpis_příprava!$E$20,IF(AY24<>FALSE,'celkové umístění'!C24))","v":{"$error":"#REF!"}},{"$f":"IF(#REF!>1,IF(#REF!<>FALSE,AZ24))","v":{"$error":"#REF!"}},{"$error":"#REF!"},{"$error":"#REF!"},{"$error":"#DIV/0!"},{"$error":"#DIV/0!"},null,{"$error":"#REF!"},{"$f":"IF(BG24<>FALSE,D24)","v":{"$error":"#REF!"}},{"$f":"IF(BH24=rozpis_příprava!$E$20,'celkové umístění'!C24)","v":{"$error":"#REF!"}},{"$error":"#REF!"},{"$f":"IF(#REF!=FALSE,BI24)","v":{"$error":"#REF!"}},{"$error":"#REF!"},0,{"$error":"#REF!"},"",{"$error":"#VALUE!"},""]
[null,"16.",{"$f":"rozpis_final_tisk!B31","v":"Mirka M."},{"$f":"rozpis_final_tisk!D31","v":"Ž"},{"$f":"IF(rozpis_final_tisk!E31>0,rozpis_final_tisk!E31)","v":79},{"$f":"IF(rozpis_final_tisk!F31>0,rozpis_final_tisk!F31)","v":53},{"$f":"IF(rozpis_final_tisk!G31>0,rozpis_final_tisk!G31)","v":97},{"$f":"IF(rozpis_final_tisk!H31>0,rozpis_final_tisk!H31)","v":72},{"$f":"IF(rozpis_final_tisk!I31>0,rozpis_final_tisk!I31)","v":90},{"$f":"IF(rozpis_final_tisk!J31>0,rozpis_final_tisk!J31)","v":false},{"$f":"IF(rozpis_final_tisk!K31>0,rozpis_final_tisk!K31)","v":false},{"$f":"IF(rozpis_final_tisk!L31>0,rozpis_final_tisk!L31)","v":false},{"$f":"IF(rozpis_final_tisk!M31>0,rozpis_final_tisk!M31)","v":false},{"$f":"IF(rozpis_final_tisk!N31>0,rozpis_final_tisk!N31)","v":false},{"$f":"IF(rozpis_final_tisk!O31>0,rozpis_final_tisk!O31)","v":391},{"$f":"IF(rozpis_final_tisk!P31>0,rozpis_final_tisk!P31)","v":78.2},null,null,null,null,null,null,null,{"$f":"IF(D25=rozpis_příprava!$E$20,F25+rozpis_final_tisk!$E$2,IF('celkové umístění'!D25<>rozpis_příprava!$E$20,F25))","v":53},{"$f":"IF(D25=rozpis_příprava!$E$20,G25+rozpis_final_tisk!$E$2,IF('celkové umístění'!D25<>rozpis_příprava!$E$20,G25))","v":97},{"$f":"IF(D25=rozpis_příprava!$E$20,H25+rozpis_final_tisk!$E$2,IF('celkové umístění'!D25<>rozpis_příprava!$E$20,H25))","v":72},{"$f":"IF(D25=rozpis_příprava!$E$20,I25+rozpis_final_tisk!$E$2,IF('celkové umístění'!D25<>rozpis_příprava!$E$20,I25))","v":90},{"$f":"IF(D25=rozpis_příprava!$E$20,J25+rozpis_final_tisk!$E$2,IF('celkové umístění'!D25<>rozpis_příprava!$E$20,J25))","v":0},{"$f":"IF(D25=rozpis_příprava!$E$20,K25+rozpis_final_tisk!$E$2,IF('celkové umístění'!D25<>rozpis_příprava!$E$20,K25))","v":0},{"$f":"IF(D25=rozpis_příprava!$E$20,L25+rozpis_final_tisk!$E$2,IF('celkové umístění'!D25<>rozpis_příprava!$E$20,L25))","v":0},{"$f":"IF(D25=rozpis_příprava!$E$20,M25+rozpis_final_tisk!$E$2,IF('celkové umístění'!D25<>rozpis_příprava!$E$20,M25))","v":0},null,{"$f":"IF(#REF!<>rozpis_final_tisk!$E$2,'celkové umístění'!#REF!,IF('celkové umístění'!#REF!=rozpis_final_tisk!$E$2,\"text\"))","v":{"$error":"#REF!"}},{"$f":"IF(X25<>rozpis_final_tisk!$E$2,'celkové umístění'!X25,IF('celkové umístění'!X25=rozpis_final_tisk!$E$2,\"text\"))","v":53},{"$f":"IF(Y25<>rozpis_final_tisk!$E$2,'celkové umístění'!Y25,IF('celkové umístění'!Y25=rozpis_final_tisk!$E$2,\"text\"))","v":97},{"$f":"IF(Z25<>rozpis_final_tisk!$E$2,'celkové umístění'!Z25,IF('celkové umístění'!Z25=rozpis_final_tisk!$E$2,\"text\"))","v":72},{"$f":"IF(AA25<>rozpis_final_tisk!$E$2,'celkové umístění'!AA25,IF('celkové umístění'!AA25=rozpis_final_tisk!$E$2,\"text\"))","v":90},{"$f":"IF(AB25<>rozpis_final_tisk!$E$2,'celkové umístění'!AB25,IF('celkové umístění'!AB25=rozpis_final_tisk!$E$2,\"text\"))","v":"text"},{"$f":"IF(AC25<>rozpis_final_tisk!$E$2,'celkové umístění'!AC25,IF('celkové umístění'!AC25=rozpis_final_tisk!$E$2,\"text\"))","v":"text"},{"$f":"IF(AD25<>rozpis_final_tisk!$E$2,'celkové umístění'!AD25,IF('celkové umístění'!AD25=rozpis_final_tisk!$E$2,\"text\"))","v":"text"},{"$f":"IF(AE25<>rozpis_final_tisk!$E$2,'celkové umístění'!AE25,IF('celkové umístění'!AE25=rozpis_final_tisk!$E$2,\"text\"))","v":"text"},null,{"$error":"#REF!"},{"$f":"IF(AQ25=MAX($AQ$10:$AQ$41),P25,0)","v":{"$error":"#REF!"}},{"$f":"IF(AR25=MAX($AR$10:$AR$41),D25)","v":{"$error":"#REF!"}},{"$f":"IF(O25=FALSE,\"Na\",MIN(AG25:AO25))","v":{"$error":"#REF!"}},{"$f":"IF(AT25=MIN($AT$10:$AT$41),P25,\"Na\")","v":{"$error":"#REF!"}},{"$f":"IF(AU25=MIN($AU$10:$AU$41),D25)","v":{"$error":"#REF!"}},null,{"$error":"#REF!"},{"$f":"IF(AX25<>FALSE,D25)","v":{"$error":"#REF!"}},{"$f":"IF(AY25<>rozpis_příprava!$E$20,IF(AY25<>FALSE,'celkové umístění'!C25))","v":{"$error":"#REF!"}},{"$f":"IF(#REF!>1,IF(#REF!<>FALSE,AZ25))","v":{"$error":"#REF!"}},{"$error":"#REF!"},{"$error":"#REF!"},{"$error":"#DIV/0!"},{"$error":"#DIV/0!"},null,{"$error":"#REF!"},{"$f":"IF(BG25<>FALSE,D25)","v":{"$error":"#REF!"}},{"$f":"IF(BH25=rozpis_příprava!$E$20,'celkové umístění'!C25)","v":{"$error":"#REF!"}},{"$error":"#REF!"},{"$f":"IF(#REF!=FALSE,BI25)","v":{"$error":"#REF!"}},{"$error":"#REF!"},0,{"$error":"#REF!"},"",{"$error":"#VALUE!"},""]
[null,"17.",{"$f":"rozpis_final_tisk!B66","v":0},{"$f":"rozpis_final_tisk!D66","v":0},{"$f":"IF(rozpis_final_tisk!E66>0,rozpis_final_tisk!E66)","v":false},{"$f":"IF(rozpis_final_tisk!F66>0,rozpis_final_tisk!F66)","v":false},{"$f":"IF(rozpis_final_tisk!G66>0,rozpis_final_tisk!G66)","v":false},{"$f":"IF(rozpis_final_tisk!H66>0,rozpis_final_tisk!H66)","v":false},{"$f":"IF(rozpis_final_tisk!I66>0,rozpis_final_tisk!I66)","v":false},{"$f":"IF(rozpis_final_tisk!J66>0,rozpis_final_tisk!J66)","v":false},{"$f":"IF(rozpis_final_tisk!K66>0,rozpis_final_tisk!K66)","v":false},{"$f":"IF(rozpis_final_tisk!L66>0,rozpis_final_tisk!L66)","v":false},{"$f":"IF(rozpis_final_tisk!M66>0,rozpis_final_tisk!M66)","v":false},{"$f":"IF(rozpis_final_tisk!N66>0,rozpis_final_tisk!N66)","v":false},{"$f":"IF(rozpis_final_tisk!O66>0,rozpis_final_tisk!O66)","v":false},{"$f":"IF(rozpis_final_tisk!P66>0,rozpis_final_tisk!P66)","v":{"$error":"#DIV/0!"}},null,null,null,null,null,null,null,{"$f":"IF(D26=rozpis_příprava!$E$20,F26+rozpis_final_tisk!$E$2,IF('celkové umístění'!D26<>rozpis_příprava!$E$20,F26))","v":false},{"$f":"IF(D26=rozpis_příprava!$E$20,G26+rozpis_final_tisk!$E$2,IF('celkové umístění'!D26<>rozpis_příprava!$E$20,G26))","v":false},{"$f":"IF(D26=rozpis_příprava!$E$20,H26+rozpis_final_tisk!$E$2,IF('celkové umístění'!D26<>rozpis_příprava!$E$20,H26))","v":false},{"$f":"IF(D26=rozpis_příprava!$E$20,I26+rozpis_final_tisk!$E$2,IF('celkové umístění'!D26<>rozpis_příprava!$E$20,I26))","v":false},{"$f":"IF(D26=rozpis_příprava!$E$20,J26+rozpis_final_tisk!$E$2,IF('celkové umístění'!D26<>rozpis_příprava!$E$20,J26))","v":false},{"$f":"IF(D26=rozpis_příprava!$E$20,K26+rozpis_final_tisk!$E$2,IF('celkové umístění'!D26<>rozpis_příprava!$E$20,K26))","v":false},{"$f":"IF(D26=rozpis_příprava!$E$20,L26+rozpis_final_tisk!$E$2,IF('celkové umístění'!D26<>rozpis_příprava!$E$20,L26))","v":false},{"$f":"IF(D26=rozpis_příprava!$E$20,M26+rozpis_final_tisk!$E$2,IF('celkové umístění'!D26<>rozpis_příprava!$E$20,M26))","v":false},null,{"$f":"IF(#REF!<>rozpis_final_tisk!$E$2,'celkové umístění'!#REF!,IF('celkové umístění'!#REF!=rozpis_final_tisk!$E$2,\"text\"))","v":{"$error":"#REF!"}},{"$f":"IF(X26<>rozpis_final_tisk!$E$2,'celkové umístění'!X26,IF('celkové umístění'!X26=rozpis_final_tisk!$E$2,\"text\"))","v":"text"},{"$f":"IF(Y26<>rozpis_final_tisk!$E$2,'celkové umístění'!Y26,IF('celkové umístění'!Y26=rozpis_final_tisk!$E$2,\"text\"))","v":"text"},{"$f":"IF(Z26<>rozpis_final_tisk!$E$2,'celkové umístění'!Z26,IF('celkové umístění'!Z26=rozpis_final_tisk!$E$2,\"text\"))","v":"text"},{"$f":"IF(AA26<>rozpis_final_tisk!$E$2,'celkové umístění'!AA26,IF('celkové umístění'!AA26=rozpis_final_tisk!$E$2,\"text\"))","v":"text"},{"$f":"IF(AB26<>rozpis_final_tisk!$E$2,'celkové umístění'!AB26,IF('celkové umístění'!AB26=rozpis_final_tisk!$E$2,\"text\"))","v":"text"},{"$f":"IF(AC26<>rozpis_final_tisk!$E$2,'celkové umístění'!AC26,IF('celkové umístění'!AC26=rozpis_final_tisk!$E$2,\"text\"))","v":"text"},{"$f":"IF(AD26<>rozpis_final_tisk!$E$2,'celkové umístění'!AD26,IF('celkové umístění'!AD26=rozpis_final_tisk!$E$2,\"text\"))","v":"text"},{"$f":"IF(AE26<>rozpis_final_tisk!$E$2,'celkové umístění'!AE26,IF('celkové umístění'!AE26=rozpis_final_tisk!$E$2,\"text\"))","v":"text"},null,{"$error":"#REF!"},{"$f":"IF(AQ26=MAX($AQ$10:$AQ$41),P26,0)","v":{"$error":"#REF!"}},{"$f":"IF(AR26=MAX($AR$10:$AR$41),D26)","v":{"$error":"#REF!"}},{"$f":"IF(O26=FALSE,\"Na\",MIN(AG26:AO26))","v":"Na"},{"$f":"IF(AT26=MIN($AT$10:$AT$41),P26,\"Na\")","v":{"$error":"#REF!"}},{"$f":"IF(AU26=MIN($AU$10:$AU$41),D26)","v":{"$error":"#REF!"}},null,{"$error":"#REF!"},{"$f":"IF(AX26<>FALSE,D26)","v":{"$error":"#REF!"}},{"$f":"IF(AY26<>rozpis_příprava!$E$20,IF(AY26<>FALSE,'celkové umístění'!C26))","v":{"$error":"#REF!"}},{"$f":"IF(#REF!>1,IF(#REF!<>FALSE,AZ26))","v":{"$error":"#REF!"}},{"$error":"#REF!"},{"$error":"#REF!"},{"$error":"#DIV/0!"},{"$error":"#DIV/0!"},null,{"$error":"#VALUE!"},{"$f":"IF(BG26<>FALSE,D26)","v":{"$error":"#VALUE!"}},{"$f":"IF(BH26=rozpis_příprava!$E$20,'celkové umístění'!C26)","v":{"$error":"#VALUE!"}},{"$error":"#VALUE!"},{"$f":"IF(#REF!=FALSE,BI26)","v":{"$error":"#REF!"}},{"$error":"#REF!"},0,{"$error":"#REF!"},"",{"$error":"#VALUE!"},""]
[null,"18.",{"$f":"rozpis_final_tisk!B101","v":0},{"$f":"rozpis_final_tisk!D101","v":0},{"$f":"IF(rozpis_final_tisk!E101>0,rozpis_final_tisk!E101)","v":false},{"$f":"IF(rozpis_final_tisk!F101>0,rozpis_final_tisk!F101)","v":false},{"$f":"IF(rozpis_final_tisk!G101>0,rozpis_final_tisk!G101)","v":false},{"$f":"IF(rozpis_final_tisk!H101>0,rozpis_final_tisk!H101)","v":false},{"$f":"IF(rozpis_final_tisk!I101>0,rozpis_final_tisk!I101)","v":false},{"$f":"IF(rozpis_final_tisk!J101>0,rozpis_final_tisk!J101)","v":false},{"$f":"IF(rozpis_final_tisk!K101>0,rozpis_final_tisk!K101)","v":false},{"$f":"IF(rozpis_final_tisk!L101>0,rozpis_final_tisk!L101)","v":false},{"$f":"IF(rozpis_final_tisk!M101>0,rozpis_final_tisk!M101)","v":false},{"$f":"IF(rozpis_final_tisk!N101>0,rozpis_final_tisk!N101)","v":false},{"$f":"IF(rozpis_final_tisk!O101>0,rozpis_final_tisk!O101)","v":false},{"$f":"IF(rozpis_final_tisk!P101>0,rozpis_final_tisk!P101)","v":{"$error":"#DIV/0!"}},null,null,null,null,null,null,null,{"$f":"IF(D27=rozpis_příprava!$E$20,F27+rozpis_final_tisk!$E$2,IF('celkové umístění'!D27<>rozpis_příprava!$E$20,F27))","v":false},{"$f":"IF(D27=rozpis_příprava!$E$20,G27+rozpis_final_tisk!$E$2,IF('celkové umístění'!D27<>rozpis_příprava!$E$20,G27))","v":false},{"$f":"IF(D27=rozpis_příprava!$E$20,H27+rozpis_final_tisk!$E$2,IF('celkové umístění'!D27<>rozpis_příprava!$E$20,H27))","v":false},{"$f":"IF(D27=rozpis_příprava!$E$20,I27+rozpis_final_tisk!$E$2,IF('celkové umístění'!D27<>rozpis_příprava!$E$20,I27))","v":false},{"$f":"IF(D27=rozpis_příprava!$E$20,J27+rozpis_final_tisk!$E$2,IF('celkové umístění'!D27<>rozpis_příprava!$E$20,J27))","v":false},{"$f":"IF(D27=rozpis_příprava!$E$20,K27+rozpis_final_tisk!$E$2,IF('celkové umístění'!D27<>rozpis_příprava!$E$20,K27))","v":false},{"$f":"IF(D27=rozpis_příprava!$E$20,L27+rozpis_final_tisk!$E$2,IF('celkové umístění'!D27<>rozpis_příprava!$E$20,L27))","v":false},{"$f":"IF(D27=rozpis_příprava!$E$20,M27+rozpis_final_tisk!$E$2,IF('celkové umístění'!D27<>rozpis_příprava!$E$20,M27))","v":false},null,{"$f":"IF(#REF!<>rozpis_final_tisk!$E$2,'celkové umístění'!#REF!,IF('celkové umístění'!#REF!=rozpis_final_tisk!$E$2,\"text\"))","v":{"$error":"#REF!"}},{"$f":"IF(X27<>rozpis_final_tisk!$E$2,'celkové umístění'!X27,IF('celkové umístění'!X27=rozpis_final_tisk!$E$2,\"text\"))","v":"text"},{"$f":"IF(Y27<>rozpis_final_tisk!$E$2,'celkové umístění'!Y27,IF('celkové umístění'!Y27=rozpis_final_tisk!$E$2,\"text\"))","v":"text"},{"$f":"IF(Z27<>rozpis_final_tisk!$E$2,'celkové umístění'!Z27,IF('celkové umístění'!Z27=rozpis_final_tisk!$E$2,\"text\"))","v":"text"},{"$f":"IF(AA27<>rozpis_final_tisk!$E$2,'celkové umístění'!AA27,IF('celkové umístění'!AA27=rozpis_final_tisk!$E$2,\"text\"))","v":"text"},{"$f":"IF(AB27<>rozpis_final_tisk!$E$2,'celkové umístění'!AB27,IF('celkové umístění'!AB27=rozpis_final_tisk!$E$2,\"text\"))","v":"text"},{"$f":"IF(AC27<>rozpis_final_tisk!$E$2,'celkové umístění'!AC27,IF('celkové umístění'!AC27=rozpis_final_tisk!$E$2,\"text\"))","v":"text"},{"$f":"IF(AD27<>rozpis_final_tisk!$E$2,'celkové umístění'!AD27,IF('celkové umístění'!AD27=rozpis_final_tisk!$E$2,\"text\"))","v":"text"},{"$f":"IF(AE27<>rozpis_final_tisk!$E$2,'celkové umístění'!AE27,IF('celkové umístění'!AE27=rozpis_final_tisk!$E$2,\"text\"))","v":"text"},null,{"$error":"#REF!"},{"$f":"IF(AQ27=MAX($AQ$10:$AQ$41),P27,0)","v":{"$error":"#REF!"}},{"$f":"IF(AR27=MAX($AR$10:$AR$41),D27)","v":{"$error":"#REF!"}},{"$f":"IF(O27=FALSE,\"Na\",MIN(AG27:AO27))","v":"Na"},{"$f":"IF(AT27=MIN($AT$10:$AT$41),P27,\"Na\")","v":{"$error":"#REF!"}},{"$f":"IF(AU27=MIN($AU$10:$AU$41),D27)","v":{"$error":"#REF!"}},null,{"$error":"#REF!"},{"$f":"IF(AX27<>FALSE,D27)","v":{"$error":"#REF!"}},{"$f":"IF(AY27<>rozpis_příprava!$E$20,IF(AY27<>FALSE,'celkové umístění'!C27))","v":{"$error":"#REF!"}},{"$f":"IF(#REF!>1,IF(#REF!<>FALSE,AZ27))","v":{"$error":"#REF!"}},{"$error":"#REF!"},{"$error":"#REF!"},{"$error":"#DIV/0!"},{"$error":"#DIV/0!"},null,{"$error":"#VALUE!"},{"$f":"IF(BG27<>FALSE,D27)","v":{"$error":"#VALUE!"}},{"$f":"IF(BH27=rozpis_příprava!$E$20,'celkové umístění'!C27)","v":{"$error":"#VALUE!"}},{"$error":"#VALUE!"},{"$f":"IF(#REF!=FALSE,BI27)","v":{"$error":"#REF!"}},{"$error":"#REF!"},0,{"$error":"#REF!"},"",{"$error":"#VALUE!"},""]
[null,"19.",{"$f":"rozpis_final_tisk!B68","v":0},{"$f":"rozpis_final_tisk!D68","v":0},{"$f":"IF(rozpis_final_tisk!E68>0,rozpis_final_tisk!E68)","v":false},{"$f":"IF(rozpis_final_tisk!F68>0,rozpis_final_tisk!F68)","v":false},{"$f":"IF(rozpis_final_tisk!G68>0,rozpis_final_tisk!G68)","v":false},{"$f":"IF(rozpis_final_tisk!H68>0,rozpis_final_tisk!H68)","v":false},{"$f":"IF(rozpis_final_tisk!I68>0,rozpis_final_tisk!I68)","v":false},{"$f":"IF(rozpis_final_tisk!J68>0,rozpis_final_tisk!J68)","v":false},{"$f":"IF(rozpis_final_tisk!K68>0,rozpis_final_tisk!K68)","v":false},{"$f":"IF(rozpis_final_tisk!L68>0,rozpis_final_tisk!L68)","v":false},{"$f":"IF(rozpis_final_tisk!M68>0,rozpis_final_tisk!M68)","v":false},{"$f":"IF(rozpis_final_tisk!N68>0,rozpis_final_tisk!N68)","v":false},{"$f":"IF(rozpis_final_tisk!O68>0,rozpis_final_tisk!O68)","v":false},{"$f":"IF(rozpis_final_tisk!P68>0,rozpis_final_tisk!P68)","v":{"$error":"#DIV/0!"}},null,null,null,null,null,null,null,{"$f":"IF(D28=rozpis_příprava!$E$20,F28+rozpis_final_tisk!$E$2,IF('celkové umístění'!D28<>rozpis_příprava!$E$20,F28))","v":false},{"$f":"IF(D28=rozpis_příprava!$E$20,G28+rozpis_final_tisk!$E$2,IF('celkové umístění'!D28<>rozpis_příprava!$E$20,G28))","v":false},{"$f":"IF(D28=rozpis_příprava!$E$20,H28+rozpis_final_tisk!$E$2,IF('celkové umístění'!D28<>rozpis_příprava!$E$20,H28))","v":false},{"$f":"IF(D28=rozpis_příprava!$E$20,I28+rozpis_final_tisk!$E$2,IF('celkové umístění'!D28<>rozpis_příprava!$E$20,I28))","v":false},{"$f":"IF(D28=rozpis_příprava!$E$20,J28+rozpis_final_tisk!$E$2,IF('celkové umístění'!D28<>rozpis_příprava!$E$20,J28))","v":false},{"$f":"IF(D28=rozpis_příprava!$E$20,K28+rozpis_final_tisk!$E$2,IF('celkové umístění'!D28<>rozpis_příprava!$E$20,K28))","v":false},{"$f":"IF(D28=rozpis_příprava!$E$20,L28+rozpis_final_tisk!$E$2,IF('celkové umístění'!D28<>rozpis_příprava!$E$20,L28))","v":false},{"$f":"IF(D28=rozpis_příprava!$E$20,M28+rozpis_final_tisk!$E$2,IF('celkové umístění'!D28<>rozpis_příprava!$E$20,M28))","v":false},null,{"$f":"IF(#REF!<>rozpis_final_tisk!$E$2,'celkové umístění'!#REF!,IF('celkové umístění'!#REF!=rozpis_final_tisk!$E$2,\"text\"))","v":{"$error":"#REF!"}},{"$f":"IF(X28<>rozpis_final_tisk!$E$2,'celkové umístění'!X28,IF('celkové umístění'!X28=rozpis_final_tisk!$E$2,\"text\"))","v":"text"},{"$f":"IF(Y28<>rozpis_final_tisk!$E$2,'celkové umístění'!Y28,IF('celkové umístění'!Y28=rozpis_final_tisk!$E$2,\"text\"))","v":"text"},{"$f":"IF(Z28<>rozpis_final_tisk!$E$2,'celkové umístění'!Z28,IF('celkové umístění'!Z28=rozpis_final_tisk!$E$2,\"text\"))","v":"text"},{"$f":"IF(AA28<>rozpis_final_tisk!$E$2,'celkové umístění'!AA28,IF('celkové umístění'!AA28=rozpis_final_tisk!$E$2,\"text\"))","v":"text"},{"$f":"IF(AB28<>rozpis_final_tisk!$E$2,'celkové umístění'!AB28,IF('celkové umístění'!AB28=rozpis_final_tisk!$E$2,\"text\"))","v":"text"},{"$f":"IF(AC28<>rozpis_final_tisk!$E$2,'celkové umístění'!AC28,IF('celkové umístění'!AC28=rozpis_final_tisk!$E$2,\"text\"))","v":"text"},{"$f":"IF(AD28<>rozpis_final_tisk!$E$2,'celkové umístění'!AD28,IF('celkové umístění'!AD28=rozpis_final_tisk!$E$2,\"text\"))","v":"text"},{"$f":"IF(AE28<>rozpis_final_tisk!$E$2,'celkové umístění'!AE28,IF('celkové umístění'!AE28=rozpis_final_tisk!$E$2,\"text\"))","v":"text"},null,{"$error":"#REF!"},{"$f":"IF(AQ28=MAX($AQ$10:$AQ$41),P28,0)","v":{"$error":"#REF!"}},{"$f":"IF(AR28=MAX($AR$10:$AR$41),D28)","v":{"$error":"#REF!"}},{"$f":"IF(O28=FALSE,\"Na\",MIN(AG28:AO28))","v":"Na"},{"$f":"IF(AT28=MIN($AT$10:$AT$41),P28,\"Na\")","v":{"$error":"#REF!"}},{"$f":"IF(AU28=MIN($AU$10:$AU$41),D28)","v":{"$error":"#REF!"}},null,{"$error":"#REF!"},{"$f":"IF(AX28<>FALSE,D28)","v":{"$error":"#REF!"}},{"$f":"IF(AY28<>rozpis_příprava!$E$20,IF(AY28<>FALSE,'celkové umístění'!C28))","v":{"$error":"#REF!"}},{"$f":"IF(#REF!>1,IF(#REF!<>FALSE,AZ28))","v":{"$error":"#REF!"}},{"$error":"#REF!"},{"$error":"#REF!"},{"$error":"#DIV/0!"},{"$error":"#DIV/0!"},null,{"$error":"#VALUE!"},{"$f":"IF(BG28<>FALSE,D28)","v":{"$error":"#VALUE!"}},{"$f":"IF(BH28=rozpis_příprava!$E$20,'celkové umístění'!C28)","v":{"$error":"#VALUE!"}},{"$error":"#VALUE!"},{"$f":"IF(#REF!=FALSE,BI28)","v":{"$error":"#REF!"}},{"$error":"#REF!"},0,{"$error":"#REF!"},"",{"$error":"#VALUE!"},""]
[null,"20.",{"$f":"rozpis_final_tisk!B67","v":0},{"$f":"rozpis_final_tisk!D67","v":0},{"$f":"IF(rozpis_final_tisk!E67>0,rozpis_final_tisk!E67)","v":false},{"$f":"IF(rozpis_final_tisk!F67>0,rozpis_final_tisk!F67)","v":false},{"$f":"IF(rozpis_final_tisk!G67>0,rozpis_final_tisk!G67)","v":false},{"$f":"IF(rozpis_final_tisk!H67>0,rozpis_final_tisk!H67)","v":false},{"$f":"IF(rozpis_final_tisk!I67>0,rozpis_final_tisk!I67)","v":false},{"$f":"IF(rozpis_final_tisk!J67>0,rozpis_final_tisk!J67)","v":false},{"$f":"IF(rozpis_final_tisk!K67>0,rozpis_final_tisk!K67)","v":false},{"$f":"IF(rozpis_final_tisk!L67>0,rozpis_final_tisk!L67)","v":false},{"$f":"IF(rozpis_final_tisk!M67>0,rozpis_final_tisk!M67)","v":false},{"$f":"IF(rozpis_final_tisk!N67>0,rozpis_final_tisk!N67)","v":false},{"$f":"IF(rozpis_final_tisk!O67>0,rozpis_final_tisk!O67)","v":false},{"$f":"IF(rozpis_final_tisk!P67>0,rozpis_final_tisk!P67)","v":{"$error":"#DIV/0!"}},null,null,null,null,null,null,null,{"$f":"IF(D29=rozpis_příprava!$E$20,F29+rozpis_final_tisk!$E$2,IF('celkové umístění'!D29<>rozpis_příprava!$E$20,F29))","v":false},{"$f":"IF(D29=rozpis_příprava!$E$20,G29+rozpis_final_tisk!$E$2,IF('celkové umístění'!D29<>rozpis_příprava!$E$20,G29))","v":false},{"$f":"IF(D29=rozpis_příprava!$E$20,H29+rozpis_final_tisk!$E$2,IF('celkové umístění'!D29<>rozpis_příprava!$E$20,H29))","v":false},{"$f":"IF(D29=rozpis_příprava!$E$20,I29+rozpis_final_tisk!$E$2,IF('celkové umístění'!D29<>rozpis_příprava!$E$20,I29))","v":false},{"$f":"IF(D29=rozpis_příprava!$E$20,J29+rozpis_final_tisk!$E$2,IF('celkové umístění'!D29<>rozpis_příprava!$E$20,J29))","v":false},{"$f":"IF(D29=rozpis_příprava!$E$20,K29+rozpis_final_tisk!$E$2,IF('celkové umístění'!D29<>rozpis_příprava!$E$20,K29))","v":false},{"$f":"IF(D29=rozpis_příprava!$E$20,L29+rozpis_final_tisk!$E$2,IF('celkové umístění'!D29<>rozpis_příprava!$E$20,L29))","v":false},{"$f":"IF(D29=rozpis_příprava!$E$20,M29+rozpis_final_tisk!$E$2,IF('celkové umístění'!D29<>rozpis_příprava!$E$20,M29))","v":false},null,{"$f":"IF(#REF!<>rozpis_final_tisk!$E$2,'celkové umístění'!#REF!,IF('celkové umístění'!#REF!=rozpis_final_tisk!$E$2,\"text\"))","v":{"$error":"#REF!"}},{"$f":"IF(X29<>rozpis_final_tisk!$E$2,'celkové umístění'!X29,IF('celkové umístění'!X29=rozpis_final_tisk!$E$2,\"text\"))","v":"text"},{"$f":"IF(Y29<>rozpis_final_tisk!$E$2,'celkové umístění'!Y29,IF('celkové umístění'!Y29=rozpis_final_tisk!$E$2,\"text\"))","v":"text"},{"$f":"IF(Z29<>rozpis_final_tisk!$E$2,'celkové umístění'!Z29,IF('celkové umístění'!Z29=rozpis_final_tisk!$E$2,\"text\"))","v":"text"},{"$f":"IF(AA29<>rozpis_final_tisk!$E$2,'celkové umístění'!AA29,IF('celkové umístění'!AA29=rozpis_final_tisk!$E$2,\"text\"))","v":"text"},{"$f":"IF(AB29<>rozpis_final_tisk!$E$2,'celkové umístění'!AB29,IF('celkové umístění'!AB29=rozpis_final_tisk!$E$2,\"text\"))","v":"text"},{"$f":"IF(AC29<>rozpis_final_tisk!$E$2,'celkové umístění'!AC29,IF('celkové umístění'!AC29=rozpis_final_tisk!$E$2,\"text\"))","v":"text"},{"$f":"IF(AD29<>rozpis_final_tisk!$E$2,'celkové umístění'!AD29,IF('celkové umístění'!AD29=rozpis_final_tisk!$E$2,\"text\"))","v":"text"},{"$f":"IF(AE29<>rozpis_final_tisk!$E$2,'celkové umístění'!AE29,IF('celkové umístění'!AE29=rozpis_final_tisk!$E$2,\"text\"))","v":"text"},null,{"$error":"#REF!"},{"$f":"IF(AQ29=MAX($AQ$10:$AQ$41),P29,0)","v":{"$error":"#REF!"}},{"$f":"IF(AR29=MAX($AR$10:$AR$41),D29)","v":{"$error":"#REF!"}},{"$f":"IF(O29=FALSE,\"Na\",MIN(AG29:AO29))","v":"Na"},{"$f":"IF(AT29=MIN($AT$10:$AT$41),P29,\"Na\")","v":{"$error":"#REF!"}},{"$f":"IF(AU29=MIN($AU$10:$AU$41),D29)","v":{"$error":"#REF!"}},null,{"$error":"#REF!"},{"$f":"IF(AX29<>FALSE,D29)","v":{"$error":"#REF!"}},{"$f":"IF(AY29<>rozpis_příprava!$E$20,IF(AY29<>FALSE,'celkové umístění'!C29))","v":{"$error":"#REF!"}},{"$f":"IF(#REF!>1,IF(#REF!<>FALSE,AZ29))","v":{"$error":"#REF!"}},{"$error":"#REF!"},{"$error":"#REF!"},{"$error":"#DIV/0!"},{"$error":"#DIV/0!"},null,{"$error":"#VALUE!"},{"$f":"IF(BG29<>FALSE,D29)","v":{"$error":"#VALUE!"}},{"$f":"IF(BH29=rozpis_příprava!$E$20,'celkové umístění'!C29)","v":{"$error":"#VALUE!"}},{"$error":"#VALUE!"},{"$f":"IF(#REF!=FALSE,BI29)","v":{"$error":"#REF!"}},{"$error":"#REF!"},0,{"$error":"#REF!"},"",{"$error":"#VALUE!"},""]
[null,"21.",{"$f":"rozpis_final_tisk!B69","v":0},{"$f":"rozpis_final_tisk!D69","v":0},{"$f":"IF(rozpis_final_tisk!E69>0,rozpis_final_tisk!E69)","v":false},{"$f":"IF(rozpis_final_tisk!F69>0,rozpis_final_tisk!F69)","v":false},{"$f":"IF(rozpis_final_tisk!G69>0,rozpis_final_tisk!G69)","v":false},{"$f":"IF(rozpis_final_tisk!H69>0,rozpis_final_tisk!H69)","v":false},{"$f":"IF(rozpis_final_tisk!I69>0,rozpis_final_tisk!I69)","v":false},{"$f":"IF(rozpis_final_tisk!J69>0,rozpis_final_tisk!J69)","v":false},{"$f":"IF(rozpis_final_tisk!K69>0,rozpis_final_tisk!K69)","v":false},{"$f":"IF(rozpis_final_tisk!L69>0,rozpis_final_tisk!L69)","v":false},{"$f":"IF(rozpis_final_tisk!M69>0,rozpis_final_tisk!M69)","v":false},{"$f":"IF(rozpis_final_tisk!N69>0,rozpis_final_tisk!N69)","v":false},{"$f":"IF(rozpis_final_tisk!O69>0,rozpis_final_tisk!O69)","v":false},{"$f":"IF(rozpis_final_tisk!P69>0,rozpis_final_tisk!P69)","v":{"$error":"#DIV/0!"}},null,null,null,null,null,null,null,{"$f":"IF(D30=rozpis_příprava!$E$20,F30+rozpis_final_tisk!$E$2,IF('celkové umístění'!D30<>rozpis_příprava!$E$20,F30))","v":false},{"$f":"IF(D30=rozpis_příprava!$E$20,G30+rozpis_final_tisk!$E$2,IF('celkové umístění'!D30<>rozpis_příprava!$E$20,G30))","v":false},{"$f":"IF(D30=rozpis_příprava!$E$20,H30+rozpis_final_tisk!$E$2,IF('celkové umístění'!D30<>rozpis_příprava!$E$20,H30))","v":false},{"$f":"IF(D30=rozpis_příprava!$E$20,I30+rozpis_final_tisk!$E$2,IF('celkové umístění'!D30<>rozpis_příprava!$E$20,I30))","v":false},{"$f":"IF(D30=rozpis_příprava!$E$20,J30+rozpis_final_tisk!$E$2,IF('celkové umístění'!D30<>rozpis_příprava!$E$20,J30))","v":false},{"$f":"IF(D30=rozpis_příprava!$E$20,K30+rozpis_final_tisk!$E$2,IF('celkové umístění'!D30<>rozpis_příprava!$E$20,K30))","v":false},{"$f":"IF(D30=rozpis_příprava!$E$20,L30+rozpis_final_tisk!$E$2,IF('celkové umístění'!D30<>rozpis_příprava!$E$20,L30))","v":false},{"$f":"IF(D30=rozpis_příprava!$E$20,M30+rozpis_final_tisk!$E$2,IF('celkové umístění'!D30<>rozpis_příprava!$E$20,M30))","v":false},null,{"$f":"IF(#REF!<>rozpis_final_tisk!$E$2,'celkové umístění'!#REF!,IF('celkové umístění'!#REF!=rozpis_final_tisk!$E$2,\"text\"))","v":{"$error":"#REF!"}},{"$f":"IF(X30<>rozpis_final_tisk!$E$2,'celkové umístění'!X30,IF('celkové umístění'!X30=rozpis_final_tisk!$E$2,\"text\"))","v":"text"},{"$f":"IF(Y30<>rozpis_final_tisk!$E$2,'celkové umístění'!Y30,IF('celkové umístění'!Y30=rozpis_final_tisk!$E$2,\"text\"))","v":"text"},{"$f":"IF(Z30<>rozpis_final_tisk!$E$2,'celkové umístění'!Z30,IF('celkové umístění'!Z30=rozpis_final_tisk!$E$2,\"text\"))","v":"text"},{"$f":"IF(AA30<>rozpis_final_tisk!$E$2,'celkové umístění'!AA30,IF('celkové umístění'!AA30=rozpis_final_tisk!$E$2,\"text\"))","v":"text"},{"$f":"IF(AB30<>rozpis_final_tisk!$E$2,'celkové umístění'!AB30,IF('celkové umístění'!AB30=rozpis_final_tisk!$E$2,\"text\"))","v":"text"},{"$f":"IF(AC30<>rozpis_final_tisk!$E$2,'celkové umístění'!AC30,IF('celkové umístění'!AC30=rozpis_final_tisk!$E$2,\"text\"))","v":"text"},{"$f":"IF(AD30<>rozpis_final_tisk!$E$2,'celkové umístění'!AD30,IF('celkové umístění'!AD30=rozpis_final_tisk!$E$2,\"text\"))","v":"text"},{"$f":"IF(AE30<>rozpis_final_tisk!$E$2,'celkové umístění'!AE30,IF('celkové umístění'!AE30=rozpis_final_tisk!$E$2,\"text\"))","v":"text"},null,{"$error":"#REF!"},{"$f":"IF(AQ30=MAX($AQ$10:$AQ$41),P30,0)","v":{"$error":"#REF!"}},{"$f":"IF(AR30=MAX($AR$10:$AR$41),D30)","v":{"$error":"#REF!"}},{"$f":"IF(O30=FALSE,\"Na\",MIN(AG30:AO30))","v":"Na"},{"$f":"IF(AT30=MIN($AT$10:$AT$41),P30,\"Na\")","v":{"$error":"#REF!"}},{"$f":"IF(AU30=MIN($AU$10:$AU$41),D30)","v":{"$error":"#REF!"}},null,{"$error":"#REF!"},{"$f":"IF(AX30<>FALSE,D30)","v":{"$error":"#REF!"}},{"$f":"IF(AY30<>rozpis_příprava!$E$20,IF(AY30<>FALSE,'celkové umístění'!C30))","v":{"$error":"#REF!"}},{"$f":"IF(#REF!>1,IF(#REF!<>FALSE,AZ30))","v":{"$error":"#REF!"}},{"$error":"#REF!"},{"$error":"#REF!"},{"$error":"#DIV/0!"},{"$error":"#DIV/0!"},null,{"$error":"#VALUE!"},{"$f":"IF(BG30<>FALSE,D30)","v":{"$error":"#VALUE!"}},{"$f":"IF(BH30=rozpis_příprava!$E$20,'celkové umístění'!C30)","v":{"$error":"#VALUE!"}},{"$error":"#VALUE!"},{"$f":"IF(#REF!=FALSE,BI30)","v":{"$error":"#REF!"}},{"$error":"#REF!"},0,{"$error":"#REF!"},"",{"$error":"#VALUE!"},""]
[null,"22.",{"$f":"rozpis_final_tisk!B49","v":0},{"$f":"rozpis_final_tisk!D49","v":0},{"$f":"IF(rozpis_final_tisk!E49>0,rozpis_final_tisk!E49)","v":false},{"$f":"IF(rozpis_final_tisk!F49>0,rozpis_final_tisk!F49)","v":false},{"$f":"IF(rozpis_final_tisk!G49>0,rozpis_final_tisk!G49)","v":false},{"$f":"IF(rozpis_final_tisk!H49>0,rozpis_final_tisk!H49)","v":false},{"$f":"IF(rozpis_final_tisk!I49>0,rozpis_final_tisk!I49)","v":false},{"$f":"IF(rozpis_final_tisk!J49>0,rozpis_final_tisk!J49)","v":false},{"$f":"IF(rozpis_final_tisk!K49>0,rozpis_final_tisk!K49)","v":false},{"$f":"IF(rozpis_final_tisk!L49>0,rozpis_final_tisk!L49)","v":false},{"$f":"IF(rozpis_final_tisk!M49>0,rozpis_final_tisk!M49)","v":false},{"$f":"IF(rozpis_final_tisk!N49>0,rozpis_final_tisk!N49)","v":false},{"$f":"IF(rozpis_final_tisk!O49>0,rozpis_final_tisk!O49)","v":false},{"$f":"IF(rozpis_final_tisk!P49>0,rozpis_final_tisk!P49)","v":{"$error":"#DIV/0!"}},null,null,null,null,null,null,null,{"$f":"IF(D31=rozpis_příprava!$E$20,F31+rozpis_final_tisk!$E$2,IF('celkové umístění'!D31<>rozpis_příprava!$E$20,F31))","v":false},{"$f":"IF(D31=rozpis_příprava!$E$20,G31+rozpis_final_tisk!$E$2,IF('celkové umístění'!D31<>rozpis_příprava!$E$20,G31))","v":false},{"$f":"IF(D31=rozpis_příprava!$E$20,H31+rozpis_final_tisk!$E$2,IF('celkové umístění'!D31<>rozpis_příprava!$E$20,H31))","v":false},{"$f":"IF(D31=rozpis_příprava!$E$20,I31+rozpis_final_tisk!$E$2,IF('celkové umístění'!D31<>rozpis_příprava!$E$20,I31))","v":false},{"$f":"IF(D31=rozpis_příprava!$E$20,J31+rozpis_final_tisk!$E$2,IF('celkové umístění'!D31<>rozpis_příprava!$E$20,J31))","v":false},{"$f":"IF(D31=rozpis_příprava!$E$20,K31+rozpis_final_tisk!$E$2,IF('celkové umístění'!D31<>rozpis_příprava!$E$20,K31))","v":false},{"$f":"IF(D31=rozpis_příprava!$E$20,L31+rozpis_final_tisk!$E$2,IF('celkové umístění'!D31<>rozpis_příprava!$E$20,L31))","v":false},{"$f":"IF(D31=rozpis_příprava!$E$20,M31+rozpis_final_tisk!$E$2,IF('celkové umístění'!D31<>rozpis_příprava!$E$20,M31))","v":false},null,{"$f":"IF(#REF!<>rozpis_final_tisk!$E$2,'celkové umístění'!#REF!,IF('celkové umístění'!#REF!=rozpis_final_tisk!$E$2,\"text\"))","v":{"$error":"#REF!"}},{"$f":"IF(X31<>rozpis_final_tisk!$E$2,'celkové umístění'!X31,IF('celkové umístění'!X31=rozpis_final_tisk!$E$2,\"text\"))","v":"text"},{"$f":"IF(Y31<>rozpis_final_tisk!$E$2,'celkové umístění'!Y31,IF('celkové umístění'!Y31=rozpis_final_tisk!$E$2,\"text\"))","v":"text"},{"$f":"IF(Z31<>rozpis_final_tisk!$E$2,'celkové umístění'!Z31,IF('celkové umístění'!Z31=rozpis_final_tisk!$E$2,\"text\"))","v":"text"},{"$f":"IF(AA31<>rozpis_final_tisk!$E$2,'celkové umístění'!AA31,IF('celkové umístění'!AA31=rozpis_final_tisk!$E$2,\"text\"))","v":"text"},{"$f":"IF(AB31<>rozpis_final_tisk!$E$2,'celkové umístění'!AB31,IF('celkové umístění'!AB31=rozpis_final_tisk!$E$2,\"text\"))","v":"text"},{"$f":"IF(AC31<>rozpis_final_tisk!$E$2,'celkové umístění'!AC31,IF('celkové umístění'!AC31=rozpis_final_tisk!$E$2,\"text\"))","v":"text"},{"$f":"IF(AD31<>rozpis_final_tisk!$E$2,'celkové umístění'!AD31,IF('celkové umístění'!AD31=rozpis_final_tisk!$E$2,\"text\"))","v":"text"},{"$f":"IF(AE31<>rozpis_final_tisk!$E$2,'celkové umístění'!AE31,IF('celkové umístění'!AE31=rozpis_final_tisk!$E$2,\"text\"))","v":"text"},null,{"$error":"#REF!"},{"$f":"IF(AQ31=MAX($AQ$10:$AQ$41),P31,0)","v":{"$error":"#REF!"}},{"$f":"IF(AR31=MAX($AR$10:$AR$41),D31)","v":{"$error":"#REF!"}},{"$f":"IF(O31=FALSE,\"Na\",MIN(AG31:AO31))","v":"Na"},{"$f":"IF(AT31=MIN($AT$10:$AT$41),P31,\"Na\")","v":{"$error":"#REF!"}},{"$f":"IF(AU31=MIN($AU$10:$AU$41),D31)","v":{"$error":"#REF!"}},null,{"$error":"#REF!"},{"$f":"IF(AX31<>FALSE,D31)","v":{"$error":"#REF!"}},{"$f":"IF(AY31<>rozpis_příprava!$E$20,IF(AY31<>FALSE,'celkové umístění'!C31))","v":{"$error":"#REF!"}},{"$f":"IF(#REF!>1,IF(#REF!<>FALSE,AZ31))","v":{"$error":"#REF!"}},{"$error":"#REF!"},{"$error":"#REF!"},{"$error":"#DIV/0!"},{"$error":"#DIV/0!"},null,{"$error":"#VALUE!"},{"$f":"IF(BG31<>FALSE,D31)","v":{"$error":"#VALUE!"}},{"$f":"IF(BH31=rozpis_příprava!$E$20,'celkové umístění'!C31)","v":{"$error":"#VALUE!"}},{"$error":"#VALUE!"},{"$f":"IF(#REF!=FALSE,BI31)","v":{"$error":"#REF!"}},{"$error":"#REF!"},0,{"$error":"#REF!"},"",{"$error":"#VALUE!"},""]
[null,"23.",{"$f":"rozpis_final_tisk!B51","v":0},{"$f":"rozpis_final_tisk!D51","v":0},{"$f":"IF(rozpis_final_tisk!E51>0,rozpis_final_tisk!E51)","v":false},{"$f":"IF(rozpis_final_tisk!F51>0,rozpis_final_tisk!F51)","v":false},{"$f":"IF(rozpis_final_tisk!G51>0,rozpis_final_tisk!G51)","v":false},{"$f":"IF(rozpis_final_tisk!H51>0,rozpis_final_tisk!H51)","v":false},{"$f":"IF(rozpis_final_tisk!I51>0,rozpis_final_tisk!I51)","v":false},{"$f":"IF(rozpis_final_tisk!J51>0,rozpis_final_tisk!J51)","v":false},{"$f":"IF(rozpis_final_tisk!K51>0,rozpis_final_tisk!K51)","v":false},{"$f":"IF(rozpis_final_tisk!L51>0,rozpis_final_tisk!L51)","v":false},{"$f":"IF(rozpis_final_tisk!M51>0,rozpis_final_tisk!M51)","v":false},{"$f":"IF(rozpis_final_tisk!N51>0,rozpis_final_tisk!N51)","v":false},{"$f":"IF(rozpis_final_tisk!O51>0,rozpis_final_tisk!O51)","v":false},{"$f":"IF(rozpis_final_tisk!P51>0,rozpis_final_tisk!P51)","v":{"$error":"#DIV/0!"}},null,null,null,null,null,null,null,{"$f":"IF(D32=rozpis_příprava!$E$20,F32+rozpis_final_tisk!$E$2,IF('celkové umístění'!D32<>rozpis_příprava!$E$20,F32))","v":false},{"$f":"IF(D32=rozpis_příprava!$E$20,G32+rozpis_final_tisk!$E$2,IF('celkové umístění'!D32<>rozpis_příprava!$E$20,G32))","v":false},{"$f":"IF(D32=rozpis_příprava!$E$20,H32+rozpis_final_tisk!$E$2,IF('celkové umístění'!D32<>rozpis_příprava!$E$20,H32))","v":false},{"$f":"IF(D32=rozpis_příprava!$E$20,I32+rozpis_final_tisk!$E$2,IF('celkové umístění'!D32<>rozpis_příprava!$E$20,I32))","v":false},{"$f":"IF(D32=rozpis_příprava!$E$20,J32+rozpis_final_tisk!$E$2,IF('celkové umístění'!D32<>rozpis_příprava!$E$20,J32))","v":false},{"$f":"IF(D32=rozpis_příprava!$E$20,K32+rozpis_final_tisk!$E$2,IF('celkové umístění'!D32<>rozpis_příprava!$E$20,K32))","v":false},{"$f":"IF(D32=rozpis_příprava!$E$20,L32+rozpis_final_tisk!$E$2,IF('celkové umístění'!D32<>rozpis_příprava!$E$20,L32))","v":false},{"$f":"IF(D32=rozpis_příprava!$E$20,M32+rozpis_final_tisk!$E$2,IF('celkové umístění'!D32<>rozpis_příprava!$E$20,M32))","v":false},null,{"$f":"IF(#REF!<>rozpis_final_tisk!$E$2,'celkové umístění'!#REF!,IF('celkové umístění'!#REF!=rozpis_final_tisk!$E$2,\"text\"))","v":{"$error":"#REF!"}},{"$f":"IF(X32<>rozpis_final_tisk!$E$2,'celkové umístění'!X32,IF('celkové umístění'!X32=rozpis_final_tisk!$E$2,\"text\"))","v":"text"},{"$f":"IF(Y32<>rozpis_final_tisk!$E$2,'celkové umístění'!Y32,IF('celkové umístění'!Y32=rozpis_final_tisk!$E$2,\"text\"))","v":"text"},{"$f":"IF(Z32<>rozpis_final_tisk!$E$2,'celkové umístění'!Z32,IF('celkové umístění'!Z32=rozpis_final_tisk!$E$2,\"text\"))","v":"text"},{"$f":"IF(AA32<>rozpis_final_tisk!$E$2,'celkové umístění'!AA32,IF('celkové umístění'!AA32=rozpis_final_tisk!$E$2,\"text\"))","v":"text"},{"$f":"IF(AB32<>rozpis_final_tisk!$E$2,'celkové umístění'!AB32,IF('celkové umístění'!AB32=rozpis_final_tisk!$E$2,\"text\"))","v":"text"},{"$f":"IF(AC32<>rozpis_final_tisk!$E$2,'celkové umístění'!AC32,IF('celkové umístění'!AC32=rozpis_final_tisk!$E$2,\"text\"))","v":"text"},{"$f":"IF(AD32<>rozpis_final_tisk!$E$2,'celkové umístění'!AD32,IF('celkové umístění'!AD32=rozpis_final_tisk!$E$2,\"text\"))","v":"text"},{"$f":"IF(AE32<>rozpis_final_tisk!$E$2,'celkové umístění'!AE32,IF('celkové umístění'!AE32=rozpis_final_tisk!$E$2,\"text\"))","v":"text"},null,{"$error":"#REF!"},{"$f":"IF(AQ32=MAX($AQ$10:$AQ$41),P32,0)","v":{"$error":"#REF!"}},{"$f":"IF(AR32=MAX($AR$10:$AR$41),D32)","v":{"$error":"#REF!"}},{"$f":"IF(O32=FALSE,\"Na\",MIN(AG32:AO32))","v":"Na"},{"$f":"IF(AT32=MIN($AT$10:$AT$41),P32,\"Na\")","v":{"$error":"#REF!"}},{"$f":"IF(AU32=MIN($AU$10:$AU$41),D32)","v":{"$error":"#REF!"}},null,{"$error":"#REF!"},{"$f":"IF(AX32<>FALSE,D32)","v":{"$error":"#REF!"}},{"$f":"IF(AY32<>rozpis_příprava!$E$20,IF(AY32<>FALSE,'celkové umístění'!C32))","v":{"$error":"#REF!"}},{"$f":"IF(#REF!>1,IF(#REF!<>FALSE,AZ32))","v":{"$error":"#REF!"}},{"$error":"#REF!"},{"$error":"#REF!"},{"$error":"#DIV/0!"},{"$error":"#DIV/0!"},null,{"$error":"#VALUE!"},{"$f":"IF(BG32<>FALSE,D32)","v":{"$error":"#VALUE!"}},{"$f":"IF(BH32=rozpis_příprava!$E$20,'celkové umístění'!C32)","v":{"$error":"#VALUE!"}},{"$error":"#VALUE!"},{"$f":"IF(#REF!=FALSE,BI32)","v":{"$error":"#REF!"}},{"$error":"#REF!"},0,{"$error":"#REF!"},"",{"$error":"#VALUE!"},""]
[null,"24.",{"$f":"rozpis_final_tisk!B50","v":0},{"$f":"rozpis_final_tisk!D50","v":0},{"$f":"IF(rozpis_final_tisk!E50>0,rozpis_final_tisk!E50)","v":false},{"$f":"IF(rozpis_final_tisk!F50>0,rozpis_final_tisk!F50)","v":false},{"$f":"IF(rozpis_final_tisk!G50>0,rozpis_final_tisk!G50)","v":false},{"$f":"IF(rozpis_final_tisk!H50>0,rozpis_final_tisk!H50)","v":false},{"$f":"IF(rozpis_final_tisk!I50>0,rozpis_final_tisk!I50)","v":false},{"$f":"IF(rozpis_final_tisk!J50>0,rozpis_final_tisk!J50)","v":false},{"$f":"IF(rozpis_final_tisk!K50>0,rozpis_final_tisk!K50)","v":false},{"$f":"IF(rozpis_final_tisk!L50>0,rozpis_final_tisk!L50)","v":false},{"$f":"IF(rozpis_final_tisk!M50>0,rozpis_final_tisk!M50)","v":false},{"$f":"IF(rozpis_final_tisk!N50>0,rozpis_final_tisk!N50)","v":false},{"$f":"IF(rozpis_final_tisk!O50>0,rozpis_final_tisk!O50)","v":false},{"$f":"IF(rozpis_final_tisk!P50>0,rozpis_final_tisk!P50)","v":{"$error":"#DIV/0!"}},null,null,null,null,null,null,null,{"$f":"IF(D33=rozpis_příprava!$E$20,F33+rozpis_final_tisk!$E$2,IF('celkové umístění'!D33<>rozpis_příprava!$E$20,F33))","v":false},{"$f":"IF(D33=rozpis_příprava!$E$20,G33+rozpis_final_tisk!$E$2,IF('celkové umístění'!D33<>rozpis_příprava!$E$20,G33))","v":false},{"$f":"IF(D33=rozpis_příprava!$E$20,H33+rozpis_final_tisk!$E$2,IF('celkové umístění'!D33<>rozpis_příprava!$E$20,H33))","v":false},{"$f":"IF(D33=rozpis_příprava!$E$20,I33+rozpis_final_tisk!$E$2,IF('celkové umístění'!D33<>rozpis_příprava!$E$20,I33))","v":false},{"$f":"IF(D33=rozpis_příprava!$E$20,J33+rozpis_final_tisk!$E$2,IF('celkové umístění'!D33<>rozpis_příprava!$E$20,J33))","v":false},{"$f":"IF(D33=rozpis_příprava!$E$20,K33+rozpis_final_tisk!$E$2,IF('celkové umístění'!D33<>rozpis_příprava!$E$20,K33))","v":false},{"$f":"IF(D33=rozpis_příprava!$E$20,L33+rozpis_final_tisk!$E$2,IF('celkové umístění'!D33<>rozpis_příprava!$E$20,L33))","v":false},{"$f":"IF(D33=rozpis_příprava!$E$20,M33+rozpis_final_tisk!$E$2,IF('celkové umístění'!D33<>rozpis_příprava!$E$20,M33))","v":false},null,{"$f":"IF(#REF!<>rozpis_final_tisk!$E$2,'celkové umístění'!#REF!,IF('celkové umístění'!#REF!=rozpis_final_tisk!$E$2,\"text\"))","v":{"$error":"#REF!"}},{"$f":"IF(X33<>rozpis_final_tisk!$E$2,'celkové umístění'!X33,IF('celkové umístění'!X33=rozpis_final_tisk!$E$2,\"text\"))","v":"text"},{"$f":"IF(Y33<>rozpis_final_tisk!$E$2,'celkové umístění'!Y33,IF('celkové umístění'!Y33=rozpis_final_tisk!$E$2,\"text\"))","v":"text"},{"$f":"IF(Z33<>rozpis_final_tisk!$E$2,'celkové umístění'!Z33,IF('celkové umístění'!Z33=rozpis_final_tisk!$E$2,\"text\"))","v":"text"},{"$f":"IF(AA33<>rozpis_final_tisk!$E$2,'celkové umístění'!AA33,IF('celkové umístění'!AA33=rozpis_final_tisk!$E$2,\"text\"))","v":"text"},{"$f":"IF(AB33<>rozpis_final_tisk!$E$2,'celkové umístění'!AB33,IF('celkové umístění'!AB33=rozpis_final_tisk!$E$2,\"text\"))","v":"text"},{"$f":"IF(AC33<>rozpis_final_tisk!$E$2,'celkové umístění'!AC33,IF('celkové umístění'!AC33=rozpis_final_tisk!$E$2,\"text\"))","v":"text"},{"$f":"IF(AD33<>rozpis_final_tisk!$E$2,'celkové umístění'!AD33,IF('celkové umístění'!AD33=rozpis_final_tisk!$E$2,\"text\"))","v":"text"},{"$f":"IF(AE33<>rozpis_final_tisk!$E$2,'celkové umístění'!AE33,IF('celkové umístění'!AE33=rozpis_final_tisk!$E$2,\"text\"))","v":"text"},null,{"$error":"#REF!"},{"$f":"IF(AQ33=MAX($AQ$10:$AQ$41),P33,0)","v":{"$error":"#REF!"}},{"$f":"IF(AR33=MAX($AR$10:$AR$41),D33)","v":{"$error":"#REF!"}},{"$f":"IF(O33=FALSE,\"Na\",MIN(AG33:AO33))","v":"Na"},{"$f":"IF(AT33=MIN($AT$10:$AT$41),P33,\"Na\")","v":{"$error":"#REF!"}},{"$f":"IF(AU33=MIN($AU$10:$AU$41),D33)","v":{"$error":"#REF!"}},null,{"$error":"#REF!"},{"$f":"IF(AX33<>FALSE,D33)","v":{"$error":"#REF!"}},{"$f":"IF(AY33<>rozpis_příprava!$E$20,IF(AY33<>FALSE,'celkové umístění'!C33))","v":{"$error":"#REF!"}},{"$f":"IF(#REF!>1,IF(#REF!<>FALSE,AZ33))","v":{"$error":"#REF!"}},{"$error":"#REF!"},{"$error":"#REF!"},{"$error":"#DIV/0!"},{"$error":"#DIV/0!"},null,{"$error":"#VALUE!"},{"$f":"IF(BG33<>FALSE,D33)","v":{"$error":"#VALUE!"}},{"$f":"IF(BH33=rozpis_příprava!$E$20,'celkové umístění'!C33)","v":{"$error":"#VALUE!"}},{"$error":"#VALUE!"},{"$f":"IF(#REF!=FALSE,BI33)","v":{"$error":"#REF!"}},{"$error":"#REF!"},0,{"$error":"#REF!"},"",{"$error":"#VALUE!"},""]
[null,"25.",{"$f":"rozpis_final_tisk!B139","v":0},{"$f":"rozpis_final_tisk!D139","v":0},{"$f":"IF(rozpis_final_tisk!E139>0,rozpis_final_tisk!E139)","v":false},{"$f":"IF(rozpis_final_tisk!F139>0,rozpis_final_tisk!F139)","v":false},{"$f":"IF(rozpis_final_tisk!G139>0,rozpis_final_tisk!G139)","v":false},{"$f":"IF(rozpis_final_tisk!H139>0,rozpis_final_tisk!H139)","v":false},{"$f":"IF(rozpis_final_tisk!I139>0,rozpis_final_tisk!I139)","v":false},{"$f":"IF(rozpis_final_tisk!J139>0,rozpis_final_tisk!J139)","v":false},{"$f":"IF(rozpis_final_tisk!K139>0,rozpis_final_tisk!K139)","v":false},{"$f":"IF(rozpis_final_tisk!L139>0,rozpis_final_tisk!L139)","v":false},{"$f":"IF(rozpis_final_tisk!M139>0,rozpis_final_tisk!M139)","v":false},{"$f":"IF(rozpis_final_tisk!N139>0,rozpis_final_tisk!N139)","v":false},{"$f":"IF(rozpis_final_tisk!O139>0,rozpis_final_tisk!O139)","v":false},{"$f":"IF(rozpis_final_tisk!P139>0,rozpis_final_tisk!P139)","v":{"$error":"#DIV/0!"}},null,null,null,null,null,null,null,{"$f":"IF(D34=rozpis_příprava!$E$20,F34+rozpis_final_tisk!$E$2,IF('celkové umístění'!D34<>rozpis_příprava!$E$20,F34))","v":false},{"$f":"IF(D34=rozpis_příprava!$E$20,G34+rozpis_final_tisk!$E$2,IF('celkové umístění'!D34<>rozpis_příprava!$E$20,G34))","v":false},{"$f":"IF(D34=rozpis_příprava!$E$20,H34+rozpis_final_tisk!$E$2,IF('celkové umístění'!D34<>rozpis_příprava!$E$20,H34))","v":false},{"$f":"IF(D34=rozpis_příprava!$E$20,I34+rozpis_final_tisk!$E$2,IF('celkové umístění'!D34<>rozpis_příprava!$E$20,I34))","v":false},{"$f":"IF(D34=rozpis_příprava!$E$20,J34+rozpis_final_tisk!$E$2,IF('celkové umístění'!D34<>rozpis_příprava!$E$20,J34))","v":false},{"$f":"IF(D34=rozpis_příprava!$E$20,K34+rozpis_final_tisk!$E$2,IF('celkové umístění'!D34<>rozpis_příprava!$E$20,K34))","v":false},{"$f":"IF(D34=rozpis_příprava!$E$20,L34+rozpis_final_tisk!$E$2,IF('celkové umístění'!D34<>rozpis_příprava!$E$20,L34))","v":false},{"$f":"IF(D34=rozpis_příprava!$E$20,M34+rozpis_final_tisk!$E$2,IF('celkové umístění'!D34<>rozpis_příprava!$E$20,M34))","v":false},null,{"$f":"IF(#REF!<>rozpis_final_tisk!$E$2,'celkové umístění'!#REF!,IF('celkové umístění'!#REF!=rozpis_final_tisk!$E$2,\"text\"))","v":{"$error":"#REF!"}},{"$f":"IF(X34<>rozpis_final_tisk!$E$2,'celkové umístění'!X34,IF('celkové umístění'!X34=rozpis_final_tisk!$E$2,\"text\"))","v":"text"},{"$f":"IF(Y34<>rozpis_final_tisk!$E$2,'celkové umístění'!Y34,IF('celkové umístění'!Y34=rozpis_final_tisk!$E$2,\"text\"))","v":"text"},{"$f":"IF(Z34<>rozpis_final_tisk!$E$2,'celkové umístění'!Z34,IF('celkové umístění'!Z34=rozpis_final_tisk!$E$2,\"text\"))","v":"text"},{"$f":"IF(AA34<>rozpis_final_tisk!$E$2,'celkové umístění'!AA34,IF('celkové umístění'!AA34=rozpis_final_tisk!$E$2,\"text\"))","v":"text"},{"$f":"IF(AB34<>rozpis_final_tisk!$E$2,'celkové umístění'!AB34,IF('celkové umístění'!AB34=rozpis_final_tisk!$E$2,\"text\"))","v":"text"},{"$f":"IF(AC34<>rozpis_final_tisk!$E$2,'celkové umístění'!AC34,IF('celkové umístění'!AC34=rozpis_final_tisk!$E$2,\"text\"))","v":"text"},{"$f":"IF(AD34<>rozpis_final_tisk!$E$2,'celkové umístění'!AD34,IF('celkové umístění'!AD34=rozpis_final_tisk!$E$2,\"text\"))","v":"text"},{"$f":"IF(AE34<>rozpis_final_tisk!$E$2,'celkové umístění'!AE34,IF('celkové umístění'!AE34=rozpis_final_tisk!$E$2,\"text\"))","v":"text"},null,{"$error":"#REF!"},{"$f":"IF(AQ34=MAX($AQ$10:$AQ$41),P34,0)","v":{"$error":"#REF!"}},{"$f":"IF(AR34=MAX($AR$10:$AR$41),D34)","v":{"$error":"#REF!"}},{"$f":"IF(O34=FALSE,\"Na\",MIN(AG34:AO34))","v":"Na"},{"$f":"IF(AT34=MIN($AT$10:$AT$41),P34,\"Na\")","v":{"$error":"#REF!"}},{"$f":"IF(AU34=MIN($AU$10:$AU$41),D34)","v":{"$error":"#REF!"}},null,{"$error":"#REF!"},{"$f":"IF(AX34<>FALSE,D34)","v":{"$error":"#REF!"}},{"$f":"IF(AY34<>rozpis_příprava!$E$20,IF(AY34<>FALSE,'celkové umístění'!C34))","v":{"$error":"#REF!"}},{"$f":"IF(#REF!>1,IF(#REF!<>FALSE,AZ34))","v":{"$error":"#REF!"}},{"$error":"#REF!"},{"$error":"#REF!"},{"$error":"#DIV/0!"},{"$error":"#DIV/0!"},null,{"$error":"#VALUE!"},{"$f":"IF(BG34<>FALSE,D34)","v":{"$error":"#VALUE!"}},{"$f":"IF(BH34=rozpis_příprava!$E$20,'celkové umístění'!C34)","v":{"$error":"#VALUE!"}},{"$error":"#VALUE!"},{"$f":"IF(#REF!=FALSE,BI34)","v":{"$error":"#REF!"}},{"$error":"#REF!"},0,{"$error":"#REF!"},"",{"$error":"#VALUE!"},""]
[null,"26.",{"$f":"rozpis_final_tisk!B136","v":0},{"$f":"rozpis_final_tisk!D136","v":0},{"$f":"IF(rozpis_final_tisk!E136>0,rozpis_final_tisk!E136)","v":false},{"$f":"IF(rozpis_final_tisk!F136>0,rozpis_final_tisk!F136)","v":false},{"$f":"IF(rozpis_final_tisk!G136>0,rozpis_final_tisk!G136)","v":false},{"$f":"IF(rozpis_final_tisk!H136>0,rozpis_final_tisk!H136)","v":false},{"$f":"IF(rozpis_final_tisk!I136>0,rozpis_final_tisk!I136)","v":false},{"$f":"IF(rozpis_final_tisk!J136>0,rozpis_final_tisk!J136)","v":false},{"$f":"IF(rozpis_final_tisk!K136>0,rozpis_final_tisk!K136)","v":false},{"$f":"IF(rozpis_final_tisk!L136>0,rozpis_final_tisk!L136)","v":false},{"$f":"IF(rozpis_final_tisk!M136>0,rozpis_final_tisk!M136)","v":false},{"$f":"IF(rozpis_final_tisk!N136>0,rozpis_final_tisk!N136)","v":false},{"$f":"IF(rozpis_final_tisk!O136>0,rozpis_final_tisk!O136)","v":false},{"$f":"IF(rozpis_final_tisk!P136>0,rozpis_final_tisk!P136)","v":{"$error":"#DIV/0!"}},null,null,null,null,null,null,null,{"$f":"IF(D35=rozpis_příprava!$E$20,F35+rozpis_final_tisk!$E$2,IF('celkové umístění'!D35<>rozpis_příprava!$E$20,F35))","v":false},{"$f":"IF(D35=rozpis_příprava!$E$20,G35+rozpis_final_tisk!$E$2,IF('celkové umístění'!D35<>rozpis_příprava!$E$20,G35))","v":false},{"$f":"IF(D35=rozpis_příprava!$E$20,H35+rozpis_final_tisk!$E$2,IF('celkové umístění'!D35<>rozpis_příprava!$E$20,H35))","v":false},{"$f":"IF(D35=rozpis_příprava!$E$20,I35+rozpis_final_tisk!$E$2,IF('celkové umístění'!D35<>rozpis_příprava!$E$20,I35))","v":false},{"$f":"IF(D35=rozpis_příprava!$E$20,J35+rozpis_final_tisk!$E$2,IF('celkové umístění'!D35<>rozpis_příprava!$E$20,J35))","v":false},{"$f":"IF(D35=rozpis_příprava!$E$20,K35+rozpis_final_tisk!$E$2,IF('celkové umístění'!D35<>rozpis_příprava!$E$20,K35))","v":false},{"$f":"IF(D35=rozpis_příprava!$E$20,L35+rozpis_final_tisk!$E$2,IF('celkové umístění'!D35<>rozpis_příprava!$E$20,L35))","v":false},{"$f":"IF(D35=rozpis_příprava!$E$20,M35+rozpis_final_tisk!$E$2,IF('celkové umístění'!D35<>rozpis_příprava!$E$20,M35))","v":false},null,{"$f":"IF(#REF!<>rozpis_final_tisk!$E$2,'celkové umístění'!#REF!,IF('celkové umístění'!#REF!=rozpis_final_tisk!$E$2,\"text\"))","v":{"$error":"#REF!"}},{"$f":"IF(X35<>rozpis_final_tisk!$E$2,'celkové umístění'!X35,IF('celkové umístění'!X35=rozpis_final_tisk!$E$2,\"text\"))","v":"text"},{"$f":"IF(Y35<>rozpis_final_tisk!$E$2,'celkové umístění'!Y35,IF('celkové umístění'!Y35=rozpis_final_tisk!$E$2,\"text\"))","v":"text"},{"$f":"IF(Z35<>rozpis_final_tisk!$E$2,'celkové umístění'!Z35,IF('celkové umístění'!Z35=rozpis_final_tisk!$E$2,\"text\"))","v":"text"},{"$f":"IF(AA35<>rozpis_final_tisk!$E$2,'celkové umístění'!AA35,IF('celkové umístění'!AA35=rozpis_final_tisk!$E$2,\"text\"))","v":"text"},{"$f":"IF(AB35<>rozpis_final_tisk!$E$2,'celkové umístění'!AB35,IF('celkové umístění'!AB35=rozpis_final_tisk!$E$2,\"text\"))","v":"text"},{"$f":"IF(AC35<>rozpis_final_tisk!$E$2,'celkové umístění'!AC35,IF('celkové umístění'!AC35=rozpis_final_tisk!$E$2,\"text\"))","v":"text"},{"$f":"IF(AD35<>rozpis_final_tisk!$E$2,'celkové umístění'!AD35,IF('celkové umístění'!AD35=rozpis_final_tisk!$E$2,\"text\"))","v":"text"},{"$f":"IF(AE35<>rozpis_final_tisk!$E$2,'celkové umístění'!AE35,IF('celkové umístění'!AE35=rozpis_final_tisk!$E$2,\"text\"))","v":"text"},null,{"$error":"#REF!"},{"$f":"IF(AQ35=MAX($AQ$10:$AQ$41),P35,0)","v":{"$error":"#REF!"}},{"$f":"IF(AR35=MAX($AR$10:$AR$41),D35)","v":{"$error":"#REF!"}},{"$f":"IF(O35=FALSE,\"Na\",MIN(AG35:AO35))","v":"Na"},{"$f":"IF(AT35=MIN($AT$10:$AT$41),P35,\"Na\")","v":{"$error":"#REF!"}},{"$f":"IF(AU35=MIN($AU$10:$AU$41),D35)","v":{"$error":"#REF!"}},null,{"$error":"#REF!"},{"$f":"IF(AX35<>FALSE,D35)","v":{"$error":"#REF!"}},{"$f":"IF(AY35<>rozpis_příprava!$E$20,IF(AY35<>FALSE,'celkové umístění'!C35))","v":{"$error":"#REF!"}},{"$f":"IF(#REF!>1,IF(#REF!<>FALSE,AZ35))","v":{"$error":"#REF!"}},{"$error":"#REF!"},{"$error":"#REF!"},{"$error":"#DIV/0!"},{"$error":"#DIV/0!"},null,{"$error":"#VALUE!"},{"$f":"IF(BG35<>FALSE,D35)","v":{"$error":"#VALUE!"}},{"$f":"IF(BH35=rozpis_příprava!$E$20,'celkové umístění'!C35)","v":{"$error":"#VALUE!"}},{"$error":"#VALUE!"},{"$f":"IF(#REF!=FALSE,BI35)","v":{"$error":"#REF!"}},{"$error":"#REF!"},0,{"$error":"#REF!"},"",{"$error":"#VALUE!"},""]
[null,"27.",{"$f":"rozpis_final_tisk!B119","v":0},{"$f":"rozpis_final_tisk!D119","v":0},{"$f":"IF(rozpis_final_tisk!E119>0,rozpis_final_tisk!E119)","v":false},{"$f":"IF(rozpis_final_tisk!F119>0,rozpis_final_tisk!F119)","v":false},{"$f":"IF(rozpis_final_tisk!G119>0,rozpis_final_tisk!G119)","v":false},{"$f":"IF(rozpis_final_tisk!H119>0,rozpis_final_tisk!H119)","v":false},{"$f":"IF(rozpis_final_tisk!I119>0,rozpis_final_tisk!I119)","v":false},{"$f":"IF(rozpis_final_tisk!J119>0,rozpis_final_tisk!J119)","v":false},{"$f":"IF(rozpis_final_tisk!K119>0,rozpis_final_tisk!K119)","v":false},{"$f":"IF(rozpis_final_tisk!L119>0,rozpis_final_tisk!L119)","v":false},{"$f":"IF(rozpis_final_tisk!M119>0,rozpis_final_tisk!M119)","v":false},{"$f":"IF(rozpis_final_tisk!N119>0,rozpis_final_tisk!N119)","v":false},{"$f":"IF(rozpis_final_tisk!O119>0,rozpis_final_tisk!O119)","v":false},{"$f":"IF(rozpis_final_tisk!P119>0,rozpis_final_tisk!P119)","v":{"$error":"#DIV/0!"}},null,null,null,null,null,null,null,{"$f":"IF(D36=rozpis_příprava!$E$20,F36+rozpis_final_tisk!$E$2,IF('celkové umístění'!D36<>rozpis_příprava!$E$20,F36))","v":false},{"$f":"IF(D36=rozpis_příprava!$E$20,G36+rozpis_final_tisk!$E$2,IF('celkové umístění'!D36<>rozpis_příprava!$E$20,G36))","v":false},{"$f":"IF(D36=rozpis_příprava!$E$20,H36+rozpis_final_tisk!$E$2,IF('celkové umístění'!D36<>rozpis_příprava!$E$20,H36))","v":false},{"$f":"IF(D36=rozpis_příprava!$E$20,I36+rozpis_final_tisk!$E$2,IF('celkové umístění'!D36<>rozpis_příprava!$E$20,I36))","v":false},{"$f":"IF(D36=rozpis_příprava!$E$20,J36+rozpis_final_tisk!$E$2,IF('celkové umístění'!D36<>rozpis_příprava!$E$20,J36))","v":false},{"$f":"IF(D36=rozpis_příprava!$E$20,K36+rozpis_final_tisk!$E$2,IF('celkové umístění'!D36<>rozpis_příprava!$E$20,K36))","v":false},{"$f":"IF(D36=rozpis_příprava!$E$20,L36+rozpis_final_tisk!$E$2,IF('celkové umístění'!D36<>rozpis_příprava!$E$20,L36))","v":false},{"$f":"IF(D36=rozpis_příprava!$E$20,M36+rozpis_final_tisk!$E$2,IF('celkové umístění'!D36<>rozpis_příprava!$E$20,M36))","v":false},null,{"$f":"IF(#REF!<>rozpis_final_tisk!$E$2,'celkové umístění'!#REF!,IF('celkové umístění'!#REF!=rozpis_final_tisk!$E$2,\"text\"))","v":{"$error":"#REF!"}},{"$f":"IF(X36<>rozpis_final_tisk!$E$2,'celkové umístění'!X36,IF('celkové umístění'!X36=rozpis_final_tisk!$E$2,\"text\"))","v":"text"},{"$f":"IF(Y36<>rozpis_final_tisk!$E$2,'celkové umístění'!Y36,IF('celkové umístění'!Y36=rozpis_final_tisk!$E$2,\"text\"))","v":"text"},{"$f":"IF(Z36<>rozpis_final_tisk!$E$2,'celkové umístění'!Z36,IF('celkové umístění'!Z36=rozpis_final_tisk!$E$2,\"text\"))","v":"text"},{"$f":"IF(AA36<>rozpis_final_tisk!$E$2,'celkové umístění'!AA36,IF('celkové umístění'!AA36=rozpis_final_tisk!$E$2,\"text\"))","v":"text"},{"$f":"IF(AB36<>rozpis_final_tisk!$E$2,'celkové umístění'!AB36,IF('celkové umístění'!AB36=rozpis_final_tisk!$E$2,\"text\"))","v":"text"},{"$f":"IF(AC36<>rozpis_final_tisk!$E$2,'celkové umístění'!AC36,IF('celkové umístění'!AC36=rozpis_final_tisk!$E$2,\"text\"))","v":"text"},{"$f":"IF(AD36<>rozpis_final_tisk!$E$2,'celkové umístění'!AD36,IF('celkové umístění'!AD36=rozpis_final_tisk!$E$2,\"text\"))","v":"text"},{"$f":"IF(AE36<>rozpis_final_tisk!$E$2,'celkové umístění'!AE36,IF('celkové umístění'!AE36=rozpis_final_tisk!$E$2,\"text\"))","v":"text"},null,{"$error":"#REF!"},{"$f":"IF(AQ36=MAX($AQ$10:$AQ$41),P36,0)","v":{"$error":"#REF!"}},{"$f":"IF(AR36=MAX($AR$10:$AR$41),D36)","v":{"$error":"#REF!"}},{"$f":"IF(O36=FALSE,\"Na\",MIN(AG36:AO36))","v":"Na"},{"$f":"IF(AT36=MIN($AT$10:$AT$41),P36,\"Na\")","v":{"$error":"#REF!"}},{"$f":"IF(AU36=MIN($AU$10:$AU$41),D36)","v":{"$error":"#REF!"}},null,{"$error":"#REF!"},{"$f":"IF(AX36<>FALSE,D36)","v":{"$error":"#REF!"}},{"$f":"IF(AY36<>rozpis_příprava!$E$20,IF(AY36<>FALSE,'celkové umístění'!C36))","v":{"$error":"#REF!"}},{"$f":"IF(#REF!>1,IF(#REF!<>FALSE,AZ36))","v":{"$error":"#REF!"}},{"$error":"#REF!"},{"$error":"#REF!"},{"$error":"#DIV/0!"},{"$error":"#DIV/0!"},null,{"$error":"#VALUE!"},{"$f":"IF(BG36<>FALSE,D36)","v":{"$error":"#VALUE!"}},{"$f":"IF(BH36=rozpis_příprava!$E$20,'celkové umístění'!C36)","v":{"$error":"#VALUE!"}},{"$error":"#VALUE!"},{"$f":"IF(#REF!=FALSE,BI36)","v":{"$error":"#REF!"}},{"$error":"#REF!"},0,{"$error":"#REF!"},"",{"$error":"#VALUE!"},""]
[null,"28.",{"$f":"rozpis_final_tisk!B118","v":0},{"$f":"rozpis_final_tisk!D118","v":0},{"$f":"IF(rozpis_final_tisk!E118>0,rozpis_final_tisk!E118)","v":false},{"$f":"IF(rozpis_final_tisk!F118>0,rozpis_final_tisk!F118)","v":false},{"$f":"IF(rozpis_final_tisk!G118>0,rozpis_final_tisk!G118)","v":false},{"$f":"IF(rozpis_final_tisk!H118>0,rozpis_final_tisk!H118)","v":false},{"$f":"IF(rozpis_final_tisk!I118>0,rozpis_final_tisk!I118)","v":false},{"$f":"IF(rozpis_final_tisk!J118>0,rozpis_final_tisk!J118)","v":false},{"$f":"IF(rozpis_final_tisk!K118>0,rozpis_final_tisk!K118)","v":false},{"$f":"IF(rozpis_final_tisk!L118>0,rozpis_final_tisk!L118)","v":false},{"$f":"IF(rozpis_final_tisk!M118>0,rozpis_final_tisk!M118)","v":false},{"$f":"IF(rozpis_final_tisk!N118>0,rozpis_final_tisk!N118)","v":false},{"$f":"IF(rozpis_final_tisk!O118>0,rozpis_final_tisk!O118)","v":false},{"$f":"IF(rozpis_final_tisk!P118>0,rozpis_final_tisk!P118)","v":{"$error":"#DIV/0!"}},null,null,null,null,null,null,null,{"$f":"IF(D37=rozpis_příprava!$E$20,F37+rozpis_final_tisk!$E$2,IF('celkové umístění'!D37<>rozpis_příprava!$E$20,F37))","v":false},{"$f":"IF(D37=rozpis_příprava!$E$20,G37+rozpis_final_tisk!$E$2,IF('celkové umístění'!D37<>rozpis_příprava!$E$20,G37))","v":false},{"$f":"IF(D37=rozpis_příprava!$E$20,H37+rozpis_final_tisk!$E$2,IF('celkové umístění'!D37<>rozpis_příprava!$E$20,H37))","v":false},{"$f":"IF(D37=rozpis_příprava!$E$20,I37+rozpis_final_tisk!$E$2,IF('celkové umístění'!D37<>rozpis_příprava!$E$20,I37))","v":false},{"$f":"IF(D37=rozpis_příprava!$E$20,J37+rozpis_final_tisk!$E$2,IF('celkové umístění'!D37<>rozpis_příprava!$E$20,J37))","v":false},{"$f":"IF(D37=rozpis_příprava!$E$20,K37+rozpis_final_tisk!$E$2,IF('celkové umístění'!D37<>rozpis_příprava!$E$20,K37))","v":false},{"$f":"IF(D37=rozpis_příprava!$E$20,L37+rozpis_final_tisk!$E$2,IF('celkové umístění'!D37<>rozpis_příprava!$E$20,L37))","v":false},{"$f":"IF(D37=rozpis_příprava!$E$20,M37+rozpis_final_tisk!$E$2,IF('celkové umístění'!D37<>rozpis_příprava!$E$20,M37))","v":false},null,{"$f":"IF(#REF!<>rozpis_final_tisk!$E$2,'celkové umístění'!#REF!,IF('celkové umístění'!#REF!=rozpis_final_tisk!$E$2,\"text\"))","v":{"$error":"#REF!"}},{"$f":"IF(X37<>rozpis_final_tisk!$E$2,'celkové umístění'!X37,IF('celkové umístění'!X37=rozpis_final_tisk!$E$2,\"text\"))","v":"text"},{"$f":"IF(Y37<>rozpis_final_tisk!$E$2,'celkové umístění'!Y37,IF('celkové umístění'!Y37=rozpis_final_tisk!$E$2,\"text\"))","v":"text"},{"$f":"IF(Z37<>rozpis_final_tisk!$E$2,'celkové umístění'!Z37,IF('celkové umístění'!Z37=rozpis_final_tisk!$E$2,\"text\"))","v":"text"},{"$f":"IF(AA37<>rozpis_final_tisk!$E$2,'celkové umístění'!AA37,IF('celkové umístění'!AA37=rozpis_final_tisk!$E$2,\"text\"))","v":"text"},{"$f":"IF(AB37<>rozpis_final_tisk!$E$2,'celkové umístění'!AB37,IF('celkové umístění'!AB37=rozpis_final_tisk!$E$2,\"text\"))","v":"text"},{"$f":"IF(AC37<>rozpis_final_tisk!$E$2,'celkové umístění'!AC37,IF('celkové umístění'!AC37=rozpis_final_tisk!$E$2,\"text\"))","v":"text"},{"$f":"IF(AD37<>rozpis_final_tisk!$E$2,'celkové umístění'!AD37,IF('celkové umístění'!AD37=rozpis_final_tisk!$E$2,\"text\"))","v":"text"},{"$f":"IF(AE37<>rozpis_final_tisk!$E$2,'celkové umístění'!AE37,IF('celkové umístění'!AE37=rozpis_final_tisk!$E$2,\"text\"))","v":"text"},null,{"$error":"#REF!"},{"$f":"IF(AQ37=MAX($AQ$10:$AQ$41),P37,0)","v":{"$error":"#REF!"}},{"$f":"IF(AR37=MAX($AR$10:$AR$41),D37)","v":{"$error":"#REF!"}},{"$f":"IF(O37=FALSE,\"Na\",MIN(AG37:AO37))","v":"Na"},{"$f":"IF(AT37=MIN($AT$10:$AT$41),P37,\"Na\")","v":{"$error":"#REF!"}},{"$f":"IF(AU37=MIN($AU$10:$AU$41),D37)","v":{"$error":"#REF!"}},null,{"$error":"#REF!"},{"$f":"IF(AX37<>FALSE,D37)","v":{"$error":"#REF!"}},{"$f":"IF(AY37<>rozpis_příprava!$E$20,IF(AY37<>FALSE,'celkové umístění'!C37))","v":{"$error":"#REF!"}},{"$f":"IF(#REF!>1,IF(#REF!<>FALSE,AZ37))","v":{"$error":"#REF!"}},{"$error":"#REF!"},{"$error":"#REF!"},{"$error":"#DIV/0!"},{"$error":"#DIV/0!"},null,{"$error":"#VALUE!"},{"$f":"IF(BG37<>FALSE,D37)","v":{"$error":"#VALUE!"}},{"$f":"IF(BH37=rozpis_příprava!$E$20,'celkové umístění'!C37)","v":{"$error":"#VALUE!"}},{"$error":"#VALUE!"},{"$f":"IF(#REF!=FALSE,BI37)","v":{"$error":"#REF!"}},{"$error":"#REF!"},0,{"$error":"#REF!"},"",{"$error":"#VALUE!"},""]
[null,"29.",{"$f":"rozpis_final_tisk!B138","v":0},{"$f":"rozpis_final_tisk!D138","v":0},{"$f":"IF(rozpis_final_tisk!E138>0,rozpis_final_tisk!E138)","v":false},{"$f":"IF(rozpis_final_tisk!F138>0,rozpis_final_tisk!F138)","v":false},{"$f":"IF(rozpis_final_tisk!G138>0,rozpis_final_tisk!G138)","v":false},{"$f":"IF(rozpis_final_tisk!H138>0,rozpis_final_tisk!H138)","v":false},{"$f":"IF(rozpis_final_tisk!I138>0,rozpis_final_tisk!I138)","v":false},{"$f":"IF(rozpis_final_tisk!J138>0,rozpis_final_tisk!J138)","v":false},{"$f":"IF(rozpis_final_tisk!K138>0,rozpis_final_tisk!K138)","v":false},{"$f":"IF(rozpis_final_tisk!L138>0,rozpis_final_tisk!L138)","v":false},{"$f":"IF(rozpis_final_tisk!M138>0,rozpis_final_tisk!M138)","v":false},{"$f":"IF(rozpis_final_tisk!N138>0,rozpis_final_tisk!N138)","v":false},{"$f":"IF(rozpis_final_tisk!O138>0,rozpis_final_tisk!O138)","v":false},{"$f":"IF(rozpis_final_tisk!P138>0,rozpis_final_tisk!P138)","v":{"$error":"#DIV/0!"}},null,null,null,null,null,null,null,{"$f":"IF(D38=rozpis_příprava!$E$20,F38+rozpis_final_tisk!$E$2,IF('celkové umístění'!D38<>rozpis_příprava!$E$20,F38))","v":false},{"$f":"IF(D38=rozpis_příprava!$E$20,G38+rozpis_final_tisk!$E$2,IF('celkové umístění'!D38<>rozpis_příprava!$E$20,G38))","v":false},{"$f":"IF(D38=rozpis_příprava!$E$20,H38+rozpis_final_tisk!$E$2,IF('celkové umístění'!D38<>rozpis_příprava!$E$20,H38))","v":false},{"$f":"IF(D38=rozpis_příprava!$E$20,I38+rozpis_final_tisk!$E$2,IF('celkové umístění'!D38<>rozpis_příprava!$E$20,I38))","v":false},{"$f":"IF(D38=rozpis_příprava!$E$20,J38+rozpis_final_tisk!$E$2,IF('celkové umístění'!D38<>rozpis_příprava!$E$20,J38))","v":false},{"$f":"IF(D38=rozpis_příprava!$E$20,K38+rozpis_final_tisk!$E$2,IF('celkové umístění'!D38<>rozpis_příprava!$E$20,K38))","v":false},{"$f":"IF(D38=rozpis_příprava!$E$20,L38+rozpis_final_tisk!$E$2,IF('celkové umístění'!D38<>rozpis_příprava!$E$20,L38))","v":false},{"$f":"IF(D38=rozpis_příprava!$E$20,M38+rozpis_final_tisk!$E$2,IF('celkové umístění'!D38<>rozpis_příprava!$E$20,M38))","v":false},null,{"$f":"IF(#REF!<>rozpis_final_tisk!$E$2,'celkové umístění'!#REF!,IF('celkové umístění'!#REF!=rozpis_final_tisk!$E$2,\"text\"))","v":{"$error":"#REF!"}},{"$f":"IF(X38<>rozpis_final_tisk!$E$2,'celkové umístění'!X38,IF('celkové umístění'!X38=rozpis_final_tisk!$E$2,\"text\"))","v":"text"},{"$f":"IF(Y38<>rozpis_final_tisk!$E$2,'celkové umístění'!Y38,IF('celkové umístění'!Y38=rozpis_final_tisk!$E$2,\"text\"))","v":"text"},{"$f":"IF(Z38<>rozpis_final_tisk!$E$2,'celkové umístění'!Z38,IF('celkové umístění'!Z38=rozpis_final_tisk!$E$2,\"text\"))","v":"text"},{"$f":"IF(AA38<>rozpis_final_tisk!$E$2,'celkové umístění'!AA38,IF('celkové umístění'!AA38=rozpis_final_tisk!$E$2,\"text\"))","v":"text"},{"$f":"IF(AB38<>rozpis_final_tisk!$E$2,'celkové umístění'!AB38,IF('celkové umístění'!AB38=rozpis_final_tisk!$E$2,\"text\"))","v":"text"},{"$f":"IF(AC38<>rozpis_final_tisk!$E$2,'celkové umístění'!AC38,IF('celkové umístění'!AC38=rozpis_final_tisk!$E$2,\"text\"))","v":"text"},{"$f":"IF(AD38<>rozpis_final_tisk!$E$2,'celkové umístění'!AD38,IF('celkové umístění'!AD38=rozpis_final_tisk!$E$2,\"text\"))","v":"text"},{"$f":"IF(AE38<>rozpis_final_tisk!$E$2,'celkové umístění'!AE38,IF('celkové umístění'!AE38=rozpis_final_tisk!$E$2,\"text\"))","v":"text"},null,{"$error":"#REF!"},{"$f":"IF(AQ38=MAX($AQ$10:$AQ$41),P38,0)","v":{"$error":"#REF!"}},{"$f":"IF(AR38=MAX($AR$10:$AR$41),D38)","v":{"$error":"#REF!"}},{"$f":"IF(O38=FALSE,\"Na\",MIN(AG38:AO38))","v":"Na"},{"$f":"IF(AT38=MIN($AT$10:$AT$41),P38,\"Na\")","v":{"$error":"#REF!"}},{"$f":"IF(AU38=MIN($AU$10:$AU$41),D38)","v":{"$error":"#REF!"}},null,{"$error":"#REF!"},{"$f":"IF(AX38<>FALSE,D38)","v":{"$error":"#REF!"}},{"$f":"IF(AY38<>rozpis_příprava!$E$20,IF(AY38<>FALSE,'celkové umístění'!C38))","v":{"$error":"#REF!"}},{"$f":"IF(#REF!>1,IF(#REF!<>FALSE,AZ38))","v":{"$error":"#REF!"}},{"$error":"#REF!"},{"$error":"#REF!"},{"$error":"#DIV/0!"},{"$error":"#DIV/0!"},null,{"$error":"#VALUE!"},{"$f":"IF(BG38<>FALSE,D38)","v":{"$error":"#VALUE!"}},{"$f":"IF(BH38=rozpis_příprava!$E$20,'celkové umístění'!C38)","v":{"$error":"#VALUE!"}},{"$error":"#VALUE!"},{"$f":"IF(#REF!=FALSE,BI38)","v":{"$error":"#REF!"}},{"$error":"#REF!"},0,{"$error":"#REF!"},"",{"$error":"#VALUE!"},""]
[null,"30.",{"$f":"rozpis_final_tisk!B137","v":0},{"$f":"rozpis_final_tisk!D137","v":0},{"$f":"IF(rozpis_final_tisk!E137>0,rozpis_final_tisk!E137)","v":false},{"$f":"IF(rozpis_final_tisk!F137>0,rozpis_final_tisk!F137)","v":false},{"$f":"IF(rozpis_final_tisk!G137>0,rozpis_final_tisk!G137)","v":false},{"$f":"IF(rozpis_final_tisk!H137>0,rozpis_final_tisk!H137)","v":false},{"$f":"IF(rozpis_final_tisk!I137>0,rozpis_final_tisk!I137)","v":false},{"$f":"IF(rozpis_final_tisk!J137>0,rozpis_final_tisk!J137)","v":false},{"$f":"IF(rozpis_final_tisk!K137>0,rozpis_final_tisk!K137)","v":false},{"$f":"IF(rozpis_final_tisk!L137>0,rozpis_final_tisk!L137)","v":false},{"$f":"IF(rozpis_final_tisk!M137>0,rozpis_final_tisk!M137)","v":false},{"$f":"IF(rozpis_final_tisk!N137>0,rozpis_final_tisk!N137)","v":false},{"$f":"IF(rozpis_final_tisk!O137>0,rozpis_final_tisk!O137)","v":false},{"$f":"IF(rozpis_final_tisk!P137>0,rozpis_final_tisk!P137)","v":{"$error":"#DIV/0!"}},null,null,null,null,null,null,null,{"$f":"IF(D39=rozpis_příprava!$E$20,F39+rozpis_final_tisk!$E$2,IF('celkové umístění'!D39<>rozpis_příprava!$E$20,F39))","v":false},{"$f":"IF(D39=rozpis_příprava!$E$20,G39+rozpis_final_tisk!$E$2,IF('celkové umístění'!D39<>rozpis_příprava!$E$20,G39))","v":false},{"$f":"IF(D39=rozpis_příprava!$E$20,H39+rozpis_final_tisk!$E$2,IF('celkové umístění'!D39<>rozpis_příprava!$E$20,H39))","v":false},{"$f":"IF(D39=rozpis_příprava!$E$20,I39+rozpis_final_tisk!$E$2,IF('celkové umístění'!D39<>rozpis_příprava!$E$20,I39))","v":false},{"$f":"IF(D39=rozpis_příprava!$E$20,J39+rozpis_final_tisk!$E$2,IF('celkové umístění'!D39<>rozpis_příprava!$E$20,J39))","v":false},{"$f":"IF(D39=rozpis_příprava!$E$20,K39+rozpis_final_tisk!$E$2,IF('celkové umístění'!D39<>rozpis_příprava!$E$20,K39))","v":false},{"$f":"IF(D39=rozpis_příprava!$E$20,L39+rozpis_final_tisk!$E$2,IF('celkové umístění'!D39<>rozpis_příprava!$E$20,L39))","v":false},{"$f":"IF(D39=rozpis_příprava!$E$20,M39+rozpis_final_tisk!$E$2,IF('celkové umístění'!D39<>rozpis_příprava!$E$20,M39))","v":false},null,{"$f":"IF(#REF!<>rozpis_final_tisk!$E$2,'celkové umístění'!#REF!,IF('celkové umístění'!#REF!=rozpis_final_tisk!$E$2,\"text\"))","v":{"$error":"#REF!"}},{"$f":"IF(X39<>rozpis_final_tisk!$E$2,'celkové umístění'!X39,IF('celkové umístění'!X39=rozpis_final_tisk!$E$2,\"text\"))","v":"text"},{"$f":"IF(Y39<>rozpis_final_tisk!$E$2,'celkové umístění'!Y39,IF('celkové umístění'!Y39=rozpis_final_tisk!$E$2,\"text\"))","v":"text"},{"$f":"IF(Z39<>rozpis_final_tisk!$E$2,'celkové umístění'!Z39,IF('celkové umístění'!Z39=rozpis_final_tisk!$E$2,\"text\"))","v":"text"},{"$f":"IF(AA39<>rozpis_final_tisk!$E$2,'celkové umístění'!AA39,IF('celkové umístění'!AA39=rozpis_final_tisk!$E$2,\"text\"))","v":"text"},{"$f":"IF(AB39<>rozpis_final_tisk!$E$2,'celkové umístění'!AB39,IF('celkové umístění'!AB39=rozpis_final_tisk!$E$2,\"text\"))","v":"text"},{"$f":"IF(AC39<>rozpis_final_tisk!$E$2,'celkové umístění'!AC39,IF('celkové umístění'!AC39=rozpis_final_tisk!$E$2,\"text\"))","v":"text"},{"$f":"IF(AD39<>rozpis_final_tisk!$E$2,'celkové umístění'!AD39,IF('celkové umístění'!AD39=rozpis_final_tisk!$E$2,\"text\"))","v":"text"},{"$f":"IF(AE39<>rozpis_final_tisk!$E$2,'celkové umístění'!AE39,IF('celkové umístění'!AE39=rozpis_final_tisk!$E$2,\"text\"))","v":"text"},null,{"$error":"#REF!"},{"$f":"IF(AQ39=MAX($AQ$10:$AQ$41),P39,0)","v":{"$error":"#REF!"}},{"$f":"IF(AR39=MAX($AR$10:$AR$41),D39)","v":{"$error":"#REF!"}},{"$f":"IF(O39=FALSE,\"Na\",MIN(AG39:AO39))","v":"Na"},{"$f":"IF(AT39=MIN($AT$10:$AT$41),P39,\"Na\")","v":{"$error":"#REF!"}},{"$f":"IF(AU39=MIN($AU$10:$AU$41),D39)","v":{"$error":"#REF!"}},null,{"$error":"#REF!"},{"$f":"IF(AX39<>FALSE,D39)","v":{"$error":"#REF!"}},{"$f":"IF(AY39<>rozpis_příprava!$E$20,IF(AY39<>FALSE,'celkové umístění'!C39))","v":{"$error":"#REF!"}},{"$f":"IF(#REF!>1,IF(#REF!<>FALSE,AZ39))","v":{"$error":"#REF!"}},{"$error":"#REF!"},{"$error":"#REF!"},{"$error":"#DIV/0!"},{"$error":"#DIV/0!"},null,{"$error":"#VALUE!"},{"$f":"IF(BG39<>FALSE,D39)","v":{"$error":"#VALUE!"}},{"$f":"IF(BH39=rozpis_příprava!$E$20,'celkové umístění'!C39)","v":{"$error":"#VALUE!"}},{"$error":"#VALUE!"},{"$f":"IF(#REF!=FALSE,BI39)","v":{"$error":"#REF!"}},{"$error":"#REF!"},0,{"$error":"#REF!"},"",{"$error":"#VALUE!"},""]
[null,"31.",{"$f":"rozpis_final_tisk!B121","v":0},{"$f":"rozpis_final_tisk!D121","v":0},{"$f":"IF(rozpis_final_tisk!E121>0,rozpis_final_tisk!E121)","v":false},{"$f":"IF(rozpis_final_tisk!F121>0,rozpis_final_tisk!F121)","v":false},{"$f":"IF(rozpis_final_tisk!G121>0,rozpis_final_tisk!G121)","v":false},{"$f":"IF(rozpis_final_tisk!H121>0,rozpis_final_tisk!H121)","v":false},{"$f":"IF(rozpis_final_tisk!I121>0,rozpis_final_tisk!I121)","v":false},{"$f":"IF(rozpis_final_tisk!J121>0,rozpis_final_tisk!J121)","v":false},{"$f":"IF(rozpis_final_tisk!K121>0,rozpis_final_tisk!K121)","v":false},{"$f":"IF(rozpis_final_tisk!L121>0,rozpis_final_tisk!L121)","v":false},{"$f":"IF(rozpis_final_tisk!M121>0,rozpis_final_tisk!M121)","v":false},{"$f":"IF(rozpis_final_tisk!N121>0,rozpis_final_tisk!N121)","v":false},{"$f":"IF(rozpis_final_tisk!O121>0,rozpis_final_tisk!O121)","v":false},{"$f":"IF(rozpis_final_tisk!P121>0,rozpis_final_tisk!P121)","v":{"$error":"#DIV/0!"}},null,null,null,null,null,null,null,{"$f":"IF(D40=rozpis_příprava!$E$20,F40+rozpis_final_tisk!$E$2,IF('celkové umístění'!D40<>rozpis_příprava!$E$20,F40))","v":false},{"$f":"IF(D40=rozpis_příprava!$E$20,G40+rozpis_final_tisk!$E$2,IF('celkové umístění'!D40<>rozpis_příprava!$E$20,G40))","v":false},{"$f":"IF(D40=rozpis_příprava!$E$20,H40+rozpis_final_tisk!$E$2,IF('celkové umístění'!D40<>rozpis_příprava!$E$20,H40))","v":false},{"$f":"IF(D40=rozpis_příprava!$E$20,I40+rozpis_final_tisk!$E$2,IF('celkové umístění'!D40<>rozpis_příprava!$E$20,I40))","v":false},{"$f":"IF(D40=rozpis_příprava!$E$20,J40+rozpis_final_tisk!$E$2,IF('celkové umístění'!D40<>rozpis_příprava!$E$20,J40))","v":false},{"$f":"IF(D40=rozpis_příprava!$E$20,K40+rozpis_final_tisk!$E$2,IF('celkové umístění'!D40<>rozpis_příprava!$E$20,K40))","v":false},{"$f":"IF(D40=rozpis_příprava!$E$20,L40+rozpis_final_tisk!$E$2,IF('celkové umístění'!D40<>rozpis_příprava!$E$20,L40))","v":false},{"$f":"IF(D40=rozpis_příprava!$E$20,M40+rozpis_final_tisk!$E$2,IF('celkové umístění'!D40<>rozpis_příprava!$E$20,M40))","v":false},null,{"$f":"IF(#REF!<>rozpis_final_tisk!$E$2,'celkové umístění'!#REF!,IF('celkové umístění'!#REF!=rozpis_final_tisk!$E$2,\"text\"))","v":{"$error":"#REF!"}},{"$f":"IF(X40<>rozpis_final_tisk!$E$2,'celkové umístění'!X40,IF('celkové umístění'!X40=rozpis_final_tisk!$E$2,\"text\"))","v":"text"},{"$f":"IF(Y40<>rozpis_final_tisk!$E$2,'celkové umístění'!Y40,IF('celkové umístění'!Y40=rozpis_final_tisk!$E$2,\"text\"))","v":"text"},{"$f":"IF(Z40<>rozpis_final_tisk!$E$2,'celkové umístění'!Z40,IF('celkové umístění'!Z40=rozpis_final_tisk!$E$2,\"text\"))","v":"text"},{"$f":"IF(AA40<>rozpis_final_tisk!$E$2,'celkové umístění'!AA40,IF('celkové umístění'!AA40=rozpis_final_tisk!$E$2,\"text\"))","v":"text"},{"$f":"IF(AB40<>rozpis_final_tisk!$E$2,'celkové umístění'!AB40,IF('celkové umístění'!AB40=rozpis_final_tisk!$E$2,\"text\"))","v":"text"},{"$f":"IF(AC40<>rozpis_final_tisk!$E$2,'celkové umístění'!AC40,IF('celkové umístění'!AC40=rozpis_final_tisk!$E$2,\"text\"))","v":"text"},{"$f":"IF(AD40<>rozpis_final_tisk!$E$2,'celkové umístění'!AD40,IF('celkové umístění'!AD40=rozpis_final_tisk!$E$2,\"text\"))","v":"text"},{"$f":"IF(AE40<>rozpis_final_tisk!$E$2,'celkové umístění'!AE40,IF('celkové umístění'!AE40=rozpis_final_tisk!$E$2,\"text\"))","v":"text"},null,{"$error":"#REF!"},{"$f":"IF(AQ40=MAX($AQ$10:$AQ$41),P40,0)","v":{"$error":"#REF!"}},{"$f":"IF(AR40=MAX($AR$10:$AR$41),D40)","v":{"$error":"#REF!"}},{"$f":"IF(O40=FALSE,\"Na\",MIN(AG40:AO40))","v":"Na"},{"$f":"IF(AT40=MIN($AT$10:$AT$41),P40,\"Na\")","v":{"$error":"#REF!"}},{"$f":"IF(AU40=MIN($AU$10:$AU$41),D40)","v":{"$error":"#REF!"}},null,{"$error":"#REF!"},{"$f":"IF(AX40<>FALSE,D40)","v":{"$error":"#REF!"}},{"$f":"IF(AY40<>rozpis_příprava!$E$20,IF(AY40<>FALSE,'celkové umístění'!C40))","v":{"$error":"#REF!"}},{"$f":"IF(#REF!>1,IF(#REF!<>FALSE,AZ40))","v":{"$error":"#REF!"}},{"$error":"#REF!"},{"$error":"#REF!"},{"$error":"#DIV/0!"},{"$error":"#DIV/0!"},null,{"$error":"#VALUE!"},{"$f":"IF(BG40<>FALSE,D40)","v":{"$error":"#VALUE!"}},{"$f":"IF(BH40=rozpis_příprava!$E$20,'celkové umístění'!C40)","v":{"$error":"#VALUE!"}},{"$error":"#VALUE!"},{"$f":"IF(#REF!=FALSE,BI40)","v":{"$error":"#REF!"}},{"$error":"#REF!"},0,{"$error":"#REF!"},"",{"$error":"#VALUE!"},""]
[null,"32.",{"$f":"rozpis_final_tisk!B120","v":0},{"$f":"rozpis_final_tisk!D120","v":0},{"$f":"IF(rozpis_final_tisk!E120>0,rozpis_final_tisk!E120)","v":false},{"$f":"IF(rozpis_final_tisk!F120>0,rozpis_final_tisk!F120)","v":false},{"$f":"IF(rozpis_final_tisk!G120>0,rozpis_final_tisk!G120)","v":false},{"$f":"IF(rozpis_final_tisk!H120>0,rozpis_final_tisk!H120)","v":false},{"$f":"IF(rozpis_final_tisk!I120>0,rozpis_final_tisk!I120)","v":false},{"$f":"IF(rozpis_final_tisk!J120>0,rozpis_final_tisk!J120)","v":false},{"$f":"IF(rozpis_final_tisk!K120>0,rozpis_final_tisk!K120)","v":false},{"$f":"IF(rozpis_final_tisk!L120>0,rozpis_final_tisk!L120)","v":false},{"$f":"IF(rozpis_final_tisk!M120>0,rozpis_final_tisk!M120)","v":false},{"$f":"IF(rozpis_final_tisk!N120>0,rozpis_final_tisk!N120)","v":false},{"$f":"IF(rozpis_final_tisk!O120>0,rozpis_final_tisk!O120)","v":false},{"$f":"IF(rozpis_final_tisk!P120>0,rozpis_final_tisk!P120)","v":{"$error":"#DIV/0!"}},null,null,null,null,null,null,null,{"$f":"IF(D41=rozpis_příprava!$E$20,F41+rozpis_final_tisk!$E$2,IF('celkové umístění'!D41<>rozpis_příprava!$E$20,F41))","v":false},{"$f":"IF(D41=rozpis_příprava!$E$20,G41+rozpis_final_tisk!$E$2,IF('celkové umístění'!D41<>rozpis_příprava!$E$20,G41))","v":false},{"$f":"IF(D41=rozpis_příprava!$E$20,H41+rozpis_final_tisk!$E$2,IF('celkové umístění'!D41<>rozpis_příprava!$E$20,H41))","v":false},{"$f":"IF(D41=rozpis_příprava!$E$20,I41+rozpis_final_tisk!$E$2,IF('celkové umístění'!D41<>rozpis_příprava!$E$20,I41))","v":false},{"$f":"IF(D41=rozpis_příprava!$E$20,J41+rozpis_final_tisk!$E$2,IF('celkové umístění'!D41<>rozpis_příprava!$E$20,J41))","v":false},{"$f":"IF(D41=rozpis_příprava!$E$20,K41+rozpis_final_tisk!$E$2,IF('celkové umístění'!D41<>rozpis_příprava!$E$20,K41))","v":false},{"$f":"IF(D41=rozpis_příprava!$E$20,L41+rozpis_final_tisk!$E$2,IF('celkové umístění'!D41<>rozpis_příprava!$E$20,L41))","v":false},{"$f":"IF(D41=rozpis_příprava!$E$20,M41+rozpis_final_tisk!$E$2,IF('celkové umístění'!D41<>rozpis_příprava!$E$20,M41))","v":false},null,{"$f":"IF(#REF!<>rozpis_final_tisk!$E$2,'celkové umístění'!#REF!,IF('celkové umístění'!#REF!=rozpis_final_tisk!$E$2,\"text\"))","v":{"$error":"#REF!"}},{"$f":"IF(X41<>rozpis_final_tisk!$E$2,'celkové umístění'!X41,IF('celkové umístění'!X41=rozpis_final_tisk!$E$2,\"text\"))","v":"text"},{"$f":"IF(Y41<>rozpis_final_tisk!$E$2,'celkové umístění'!Y41,IF('celkové umístění'!Y41=rozpis_final_tisk!$E$2,\"text\"))","v":"text"},{"$f":"IF(Z41<>rozpis_final_tisk!$E$2,'celkové umístění'!Z41,IF('celkové umístění'!Z41=rozpis_final_tisk!$E$2,\"text\"))","v":"text"},{"$f":"IF(AA41<>rozpis_final_tisk!$E$2,'celkové umístění'!AA41,IF('celkové umístění'!AA41=rozpis_final_tisk!$E$2,\"text\"))","v":"text"},{"$f":"IF(AB41<>rozpis_final_tisk!$E$2,'celkové umístění'!AB41,IF('celkové umístění'!AB41=rozpis_final_tisk!$E$2,\"text\"))","v":"text"},{"$f":"IF(AC41<>rozpis_final_tisk!$E$2,'celkové umístění'!AC41,IF('celkové umístění'!AC41=rozpis_final_tisk!$E$2,\"text\"))","v":"text"},{"$f":"IF(AD41<>rozpis_final_tisk!$E$2,'celkové umístění'!AD41,IF('celkové umístění'!AD41=rozpis_final_tisk!$E$2,\"text\"))","v":"text"},{"$f":"IF(AE41<>rozpis_final_tisk!$E$2,'celkové umístění'!AE41,IF('celkové umístění'!AE41=rozpis_final_tisk!$E$2,\"text\"))","v":"text"},null,{"$error":"#REF!"},{"$f":"IF(AQ41=MAX($AQ$10:$AQ$41),P41,0)","v":{"$error":"#REF!"}},{"$f":"IF(AR41=MAX($AR$10:$AR$41),D41)","v":{"$error":"#REF!"}},{"$f":"IF(O41=FALSE,\"Na\",MIN(AG41:AO41))","v":"Na"},{"$f":"IF(AT41=MIN($AT$10:$AT$41),P41,\"Na\")","v":{"$error":"#REF!"}},{"$f":"IF(AU41=MIN($AU$10:$AU$41),D41)","v":{"$error":"#REF!"}},null,{"$error":"#REF!"},{"$f":"IF(AX41<>FALSE,D41)","v":{"$error":"#REF!"}},{"$f":"IF(AY41<>rozpis_příprava!$E$20,IF(AY41<>FALSE,'celkové umístění'!C41))","v":{"$error":"#REF!"}},{"$f":"IF(#REF!>1,IF(#REF!<>FALSE,AZ41))","v":{"$error":"#REF!"}},{"$error":"#REF!"},{"$error":"#REF!"},{"$error":"#DIV/0!"},{"$error":"#DIV/0!"},null,{"$error":"#VALUE!"},{"$f":"IF(BG41<>FALSE,D41)","v":{"$error":"#VALUE!"}},{"$f":"IF(BH41=rozpis_příprava!$E$20,'celkové umístění'!C41)","v":{"$error":"#VALUE!"}},{"$error":"#VALUE!"},{"$f":"IF(#REF!=FALSE,BI41)","v":{"$error":"#REF!"}},{"$error":"#REF!"},0,{"$error":"#REF!"},"",{"$error":"#VALUE!"},""]
[null,null,null,null,null,null,null,null,null,null,null,null,null,null,null,null,null,null,null,null,null,null,null,null,null,null,null,null,null,null,null,null,null,null,null,null,null,null,null,null,null,null,null,null,null,null,null,null,null,null,null,null,null,null,null,null,null,null,null,null,null,null,null,null,0]
[null,null,null,null,null,null,null,null,null,null,null,null,null,null,null,null,null,null,null,null,null,null,null,null,null,null,null,null,null,null,null,null,null,null,null,null,null,null,null,null,null,null,null,null,null,null,null,null,null,null,null,null,null,null,null,null,null,null,null,null,null,null,null,null,0]
[null,null,null,null,null,null,null,null,null,null,null,null,null,null,null,null,null,null,null,null,null,null,null,null,null,null,null,null,null,null,null,null,null,null,null,null,null,null,null,null,null,null,null,null,null,null,null,null,null,null,null,null,null,null,null,null,null,null,null,null,null,null,null,null,0]
[null,null,null,null,null,null,null,null,null,null,null,null,null,null,null,null,null,null,null,null,null,null,null,null,null,null,null,null,null,null,null,null,null,null,null,null,null,null,null,null,null,null,null,null,null,null,null,null,null,null,null,null,null,null,null,null,null,null,null,null,null,null,null,null,0]
[null,null,null,null,null,null,null,null,null,null,null,null,null,null,null,null,null,null,null,null,null,null,null,null,null,null,null,null,null,null,null,null,null,null,null,null,null,null,null,null,null,null,null,null,null,null,null,null,null,null,null,null,null,null,null,null,null,null,null,null,null,null,null,null,0]
[null,null,null,null,null,null,null,null,null,null,null,null,null,null,null,null,null,null,null,null,null,null,null,null,null,null,null,null,null,null,null,null,null,null,null,null,null,null,null,null,null,null,null,null,null,null,null,null,null,null,null,null,null,null,null,null,null,null,null,null,null,null,null,null,0]
[null,null,null,null,null,null,null,null,null,null,null,null,null,null,null,null,null,null,null,null,null,null,null,null,null,null,null,null,null,null,null,null,null,null,null,null,null,null,null,null,null,null,null,null,null,null,null,null,null,null,null,null,null,null,null,null,null,null,null,null,null,null,null,null,0]
[null,null,null,null,null,null,null,null,null,null,null,null,null,null,null,null,null,null,null,null,null,null,null,null,null,null,null,null,null,null,null,null,null,null,null,null,null,null,null,null,null,null,null,null,null,null,null,null,null,null,null,null,null,null,null,null,null,null,null,null,null,null,null,null,0]
[null,null,null,null,null,null,null,null,null,null,null,null,null,null,null,null,null,null,null,null,null,null,null,null,null,null,null,null,null,null,null,null,null,null,null,null,null,null,null,null,null,null,null,null,null,null,null,null,null,null,null,null,null,null,null,null,null,null,null,null,null,null,null,null,0]
[null,null,null,null,null,null,null,null,null,null,null,null,null,null,null,null,null,null,null,null,null,null,null,null,null,null,null,null,null,null,null,null,null,null,null,null,null,null,null,null,null,null,null,null,null,null,null,null,null,null,null,null,null,null,null,null,null,null,null,null,null,null,null,null,0]
[null,null,null,null,null,null,null,null,null,null,null,null,null,null,null,null,null,null,null,null,null,null,null,null,null,null,null,null,null,null,null,null,null,null,null,null,null,null,null,null,null,null,null,null,null,null,null,null,null,null,null,null,null,null,null,null,null,null,null,null,null,null,null,null,0]
[null,null,null,null,null,null,null,null,null,null,null,null,null,null,null,null,null,null,null,null,null,null,null,null,null,null,null,null,null,null,null,null,null,null,null,null,null,null,null,null,null,null,null,null,null,null,null,null,null,null,null,null,null,null,null,null,null,null,null,null,null,null,null,null,0]
[null,null,null,null,null,null,null,null,null,null,null,null,null,null,null,null,null,null,null,null,null,null,null,null,null,null,null,null,null,null,null,null,null,null,null,null,null,null,null,null,null,null,null,null,null,null,null,null,null,null,null,null,null,null,null,null,null,null,null,null,null,null,null,null,0]
[null,null,null,null,null,null,null,null,null,null,null,null,null,null,null,null,null,null,null,null,null,null,null,null,null,null,null,null,null,null,null,null,null,null,null,null,null,null,null,null,null,null,null,null,null,null,null,null,null,null,null,null,null,null,null,null,null,null,null,null,null,null,null,null,0]
[null,null,null,null,null,null,null,null,null,null,null,null,null,null,null,null,null,null,null,null,null,null,null,null,null,null,null,null,null,null,null,null,null,null,null,null,null,null,null,null,null,null,null,null,null,null,null,null,null,null,null,null,null,null,null,null,null,null,null,null,null,null,null,null,0]
[null,null,null,null,null,null,null,null,null,null,null,null,null,null,null,null,null,null,null,null,null,null,null,null,null,null,null,null,null,null,null,null,null,null,null,null,null,null,null,null,null,null,null,null,null,null,null,null,null,null,null,null,null,null,null,null,null,null,null,null,null,null,null,null,0]
[null,null,null,null,null,null,null,null,null,null,null,null,null,null,null,null,null,null,null,null,null,null,null,null,null,null,null,null,null,null,null,null,null,null,null,null,null,null,null,null,null,null,null,null,null,null,null,null,null,null,null,null,null,null,null,null,null,null,null,null,null,null,null,null,0]
[null,null,null,null,null,null,null,null,null,null,null,null,null,null,null,null,null,null,null,null,null,null,null,null,null,null,null,null,null,null,null,null,null,null,null,null,null,null,null,null,null,null,null,null,null,null,null,null,null,null,null,null,null,null,null,null,null,null,null,null,null,null,null,null,0]
[null,null,null,null,null,null,null,null,null,null,null,null,null,null,null,null,null,null,null,null,null,null,null,null,null,null,null,null,null,null,null,null,null,null,null,null,null,null,null,null,null,null,null,null,null,null,null,null,null,null,null,null,null,null,null,null,null,null,null,null,null,null,null,null,0]
[null,null,null,null,null,null,null,null,null,null,null,null,null,null,null,null,null,null,null,null,null,null,null,null,null,null,null,null,null,null,null,null,null,null,null,null,null,null,null,null,null,null,null,null,null,null,null,null,null,null,null,null,null,null,null,null,null,null,null,null,null,null,null,null,0]
[null,null,null,null,null,null,null,null,null,null,null,null,null,null,null,null,null,null,null,null,null,null,null,null,null,null,null,null,null,null,null,null,null,null,null,null,null,null,null,null,null,null,null,null,null,null,null,null,null,null,null,null,null,null,null,null,null,null,null,null,null,null,null,null,0]
[null,null,null,null,null,null,null,null,null,null,null,null,null,null,null,null,null,null,null,null,null,null,null,null,null,null,null,null,null,null,null,null,null,null,null,null,null,null,null,null,null,null,null,null,null,null,null,null,null,null,null,null,null,null,null,null,null,null,null,null,null,null,null,null,0]
[null,null,null,null,null,null,null,null,null,null,null,null,null,null,null,null,null,null,null,null,null,null,null,null,null,null,null,null,null,null,null,null,null,null,null,null,null,null,null,null,null,null,null,null,null,null,null,null,null,null,null,null,null,null,null,null,null,null,null,null,null,null,null,null,0]
[null,null,null,null,null,null,null,null,null,null,null,null,null,null,null,null,null,null,null,null,null,null,null,null,null,null,null,null,null,null,null,null,null,null,null,null,null,null,null,null,null,null,null,null,null,null,null,null,null,null,null,null,null,null,null,null,null,null,null,null,null,null,null,null,0]
[null,null,null,null,null,null,null,null,null,null,null,null,null,null,null,null,null,null,null,null,null,null,null,null,null,null,null,null,null,null,null,null,null,null,null,null,null,null,null,null,null,null,null,null,null,null,null,null,null,null,null,null,null,null,null,null,null,null,null,null,null,null,null,null,0]
[null,null,null,null,null,null,null,null,null,null,null,null,null,null,null,null,null,null,null,null,null,null,null,null,null,null,null,null,null,null,null,null,null,null,null,null,null,null,null,null,null,null,null,null,null,null,null,null,null,null,null,null,null,null,null,null,null,null,null,null,null,null,null,null,0]
[null,null,null,null,null,null,null,null,null,null,null,null,null,null,null,null,null,null,null,null,null,null,null,null,null,null,null,null,null,null,null,null,null,null,null,null,null,null,null,null,null,null,null,null,null,null,null,null,null,null,null,null,null,null,null,null,null,null,null,null,null,null,null,null,0]
[null,null,null,null,null,null,null,null,null,null,null,null,null,null,null,null,null,null,null,null,null,null,null,null,null,null,null,null,null,null,null,null,null,null,null,null,null,null,null,null,null,null,null,null,null,null,null,null,null,null,null,null,null,null,null,null,null,null,null,null,null,null,null,null,0]
[null,null,null,null,null,null,null,null,null,null,null,null,null,null,null,null,null,null,null,null,null,null,null,null,null,null,null,null,null,null,null,null,null,null,null,null,null,null,null,null,null,null,null,null,null,null,null,null,null,null,null,null,null,null,null,null,null,null,null,null,null,null,null,null,0]
[null,null,null,null,null,null,null,null,null,null,null,null,null,null,null,null,null,null,null,null,null,null,null,null,null,null,null,null,null,null,null,null,null,null,null,null,null,null,null,null,null,null,null,null,null,null,null,null,null,null,null,null,null,null,null,null,null,null,null,null,null,null,null,null,0]
[null,null,null,null,null,null,null,null,null,null,null,null,null,null,null,null,null,null,null,null,null,null,null,null,null,null,null,null,null,null,null,null,null,null,null,null,null,null,null,null,null,null,null,null,null,null,null,null,null,null,null,null,null,null,null,null,null,null,null,null,null,null,null,null,0]
[null,null,null,null,null,null,null,null,null,null,null,null,null,null,null,null,null,null,null,null,null,null,null,null,null,null,null,null,null,null,null,null,null,null,null,null,null,null,null,null,null,null,null,null,null,null,null,null,null,null,null,null,null,null,null,null,null,null,null,null,null,null,null,null,0]
[null,"Součet",null,null,{"$f":"SUM(E10:E41)","v":2214},2009,2221,2110,2153,1092,0,0,0,null,{"$f":"IF(SUM(E74:M74)=0,\"\",SUM(E74:M74))","v":11799},null,null,null,null,null,null,null,null,null,null,null,null,null,null,null,null,null,null,null,null,null,null,null,null,null,null,null,null,null,null,null,"Slouží ke stanovení MAX a MIN her jednotlivých hráčů. V případě shody MAX a MIN výsledků u více hráčů VYBERE toho hráče, který v případě MAX her má vyšší celkový průměrný výsledek než druhý hráč a v případě MIN her má nižší průměrný výsledek než druhý hráč."]
[null,"Průměr",null,null,{"$f":"IFERROR(AVERAGE(E10:E41),\"\")","v":138.375},125.5625,138.8125,131.875,143.53333333333333,156,"","","",null,null,{"$f":"IF(O74=\"\",\"\",AVERAGE(E10:M41))","v":137.19767441860466},null,null,null,null,null,null,null,null,null,null,null,null,null,null,null,null,null,null,null,null,null,null,null,null,null,null,null,null,null,null,null,null,null,null,null,null,null,null,null,null,"Pomocné tabulky, které zachovávají pouze jedinečné hodnoty jednotlivých hráčů v případě shodného výsledku ve vícero hrách - neslouží již k žádné funkci přenesení hodnot v tomto souboru. Ponecháno zde pouze jako příklad k jinému využití."]
[]
[]
[null,"KATEGORIE \"M\" a \"P\""]
[null,"Pořadí","Jméno","kat.","1. hra","2. hra","3.hra","4. hra","5. hra","6. hra","7. hra","8. hra","9. hra","HK","SOUČET","PRŮMĚR",null,null,null,null,null,null,null,null,null,null,null,null,null,null,null,null,null,null,null,null,null,null,null,null,null,null,null,null,null,null,"MAX",null,null,"MIN"]
[null,"1.",{"$f":"INDIRECT(\"C\"&SMALL(IF($D$10:$D$73=$D80,ROW($D$10:$D$73),\"\"),ROW()-79))","v":"Mojka V."},{"$f":"IFERROR(INDIRECT(\"D\"&SMALL(IF($D$10:$D$73<>\"ž\",ROW($D$10:$D$73),\"\"),ROW()-79)),\"\")","v":"P"},{"$f":"N(INDIRECT(\"E\"&SMALL(IF($D$10:$D$73=$D80,ROW($D$10:$D$73),\"\"),ROW()-79)))","v":158},{"$f":"N(INDIRECT(\"F\"&SMALL(IF($D$10:$D$73=$D80,ROW($D$10:$D$73),\"\"),ROW()-79)))","v":146},{"$f":"N(INDIRECT(\"G\"&SMALL(IF($D$10:$D$73=$D80,ROW($D$10:$D$73),\"\"),ROW()-79)))","v":214},{"$f":"N(INDIRECT(\"H\"&SMALL(IF($D$10:$D$73=$D80,ROW($D$10:$D$73),\"\"),ROW()-79)))","v":179},{"$f":"N(INDIRECT(\"I\"&SMALL(IF($D$10:$D$73=$D80,ROW($D$10:$D$73),\"\"),ROW()-79)))","v":223},{"$f":"N(INDIRECT(\"J\"&SMALL(IF($D$10:$D$73=$D80,ROW($D$10:$D$73),\"\"),ROW()-79)))","v":0},{"$f":"N(INDIRECT(\"K\"&SMALL(IF($D$10:$D$73=$D80,ROW($D$10:$D$73),\"\"),ROW()-79)))","v":0},{"$f":"N(INDIRECT(\"L\"&SMALL(IF($D$10:$D$73=$D80,ROW($D$10:$D$73),\"\"),ROW()-79)))","v":0},{"$f":"N(INDIRECT(\"M\"&SMALL(IF($D$10:$D$73=$D80,ROW($D$10:$D$73),\"\"),ROW()-79)))","v":0},{"$f":"N(INDIRECT(\"N\"&SMALL(IF($D$10:$D$73=$D80,ROW($D$10:$D$73),\"\"),ROW()-79)))","v":0},{"$f":"N(INDIRECT(\"O\"&SMALL(IF($D$10:$D$73=$D80,ROW($D$10:$D$73),\"\"),ROW()-79)))","v":920},{"$f":"N(INDIRECT(\"P\"&SMALL(IF($D$10:$D$73=$D80,ROW($D$10:$D$73),\"\"),ROW()-79)))","v":184},null,null,null,null,null,null,null,{"$f":"IF(F80=0,\"\",F80)","v":146},{"$f":"IF(G80=0,\"\",G80)","v":214},{"$f":"IF(H80=0,\"\",H80)","v":179},{"$f":"IF(I80=0,\"\",I80)","v":223},{"$f":"IF(J80=0,\"\",J80)","v":""},{"$f":"IF(K80=0,\"\",K80)","v":""},{"$f":"IF(L80=0,\"\",L80)","v":""},{"$f":"IF(M80=0,\"\",M80)","v":""},null,null,null,null,null,null,null,null,null,null,null,null,null,null,null,{"$f":"MAX(X80:AE80)","v":223},{"$f":"IF(AU80=MAX($AU$80:$AU$89),P80,0)","v":{"$error":"#NUM!"}},null,{"$f":"IF(O80=0,\"Na\",MIN(X80:AE80))","v":146},{"$f":"IF(AX80=MIN(AX$80:AX$89),P80,\"Na\")","v":{"$error":"#NUM!"}},null,null,null,null,null,{"$f":"IFERROR(INDEX(E80:M80, MATCH(0, COUNTIF($BD80:BD80, E80:M80), 0)),\"\")","v":158},{"$f":"IFERROR(INDEX(E80:M80, MATCH(0, COUNTIF($BD80:BE80, E80:M80), 0)),\"\")","v":146},{"$f":"IFERROR(INDEX(E80:M80, MATCH(0, COUNTIF($BD80:BF80, E80:M80), 0)),\"\")","v":214},{"$f":"IFERROR(INDEX(E80:M80, MATCH(0, COUNTIF($BD80:BG80, E80:M80), 0)),\"\")","v":179},{"$f":"IFERROR(INDEX(E80:M80, MATCH(0, COUNTIF($BD80:BH80, E80:M80), 0)),\"\")","v":223},{"$f":"IFERROR(INDEX(E80:M80, MATCH(0, COUNTIF($BD80:BI80, E80:M80), 0)),\"\")","v":0},{"$f":"IFERROR(INDEX(E80:M80, MATCH(0, COUNTIF($BD80:BJ80, E80:M80), 0)),\"\")","v":""},{"$f":"IFERROR(INDEX(E80:M80, MATCH(0, COUNTIF($BD80:BK80, E80:M80), 0)),\"\")","v":""},{"$f":"IFERROR(INDEX(E80:M80, MATCH(0, COUNTIF($BD80:BL80, E80:M80), 0)),\"\")","v":""}]
[null,"2.",{"$f":"INDIRECT(\"C\"&SMALL(IF($D$10:$D$73=$D81,ROW($D$10:$D$73),\"\"),ROW()-79))","v":"David D."},{"$f":"IFERROR(INDIRECT(\"D\"&SMALL(IF($D$10:$D$73<>\"ž\",ROW($D$10:$D$73),\"\"),ROW()-79)),\"\")","v":"M"},{"$f":"N(INDIRECT(\"E\"&SMALL(IF($D$10:$D$73=$D81,ROW($D$10:$D$73),\"\"),ROW()-79)))","v":139},{"$f":"N(INDIRECT(\"F\"&SMALL(IF($D$10:$D$73=$D81,ROW($D$10:$D$73),\"\"),ROW()-79)))","v":144},{"$f":"N(INDIRECT(\"G\"&SMALL(IF($D$10:$D$73=$D81,ROW($D$10:$D$73),\"\"),ROW()-79)))","v":152},{"$f":"N(INDIRECT(\"H\"&SMALL(IF($D$10:$D$73=$D81,ROW($D$10:$D$73),\"\"),ROW()-79)))","v":114},{"$f":"N(INDIRECT(\"I\"&SMALL(IF($D$10:$D$73=$D81,ROW($D$10:$D$73),\"\"),ROW()-79)))","v":167},{"$f":"N(INDIRECT(\"J\"&SMALL(IF($D$10:$D$73=$D81,ROW($D$10:$D$73),\"\"),ROW()-79)))","v":0},{"$f":"N(INDIRECT(\"K\"&SMALL(IF($D$10:$D$73=$D81,ROW($D$10:$D$73),\"\"),ROW()-79)))","v":0},{"$f":"N(INDIRECT(\"L\"&SMALL(IF($D$10:$D$73=$D81,ROW($D$10:$D$73),\"\"),ROW()-79)))","v":0},{"$f":"N(INDIRECT(\"M\"&SMALL(IF($D$10:$D$73=$D81,ROW($D$10:$D$73),\"\"),ROW()-79)))","v":0},{"$f":"N(INDIRECT(\"N\"&SMALL(IF($D$10:$D$73=$D81,ROW($D$10:$D$73),\"\"),ROW()-79)))","v":0},{"$f":"N(INDIRECT(\"O\"&SMALL(IF($D$10:$D$73=$D81,ROW($D$10:$D$73),\"\"),ROW()-79)))","v":716},{"$f":"N(INDIRECT(\"P\"&SMALL(IF($D$10:$D$73=$D81,ROW($D$10:$D$73),\"\"),ROW()-79)))","v":143.19999999999999},null,null,null,null,null,null,null,{"$f":"IF(F81=0,\"\",F81)","v":144},{"$f":"IF(G81=0,\"\",G81)","v":152},{"$f":"IF(H81=0,\"\",H81)","v":114},{"$f":"IF(I81=0,\"\",I81)","v":167},{"$f":"IF(J81=0,\"\",J81)","v":""},{"$f":"IF(K81=0,\"\",K81)","v":""},{"$f":"IF(L81=0,\"\",L81)","v":""},{"$f":"IF(M81=0,\"\",M81)","v":""},null,null,null,null,null,null,null,null,null,null,null,null,null,null,null,{"$f":"MAX(X81:AE81)","v":167},{"$f":"IF(AU81=MAX($AU$80:$AU$89),P81,0)","v":{"$error":"#NUM!"}},null,{"$f":"IF(O81=0,\"Na\",MIN(X81:AE81))","v":114},{"$f":"IF(AX81=MIN(AX$80:AX$89),P81,\"Na\")","v":{"$error":"#NUM!"}},null,null,null,null,null,{"$f":"IFERROR(INDEX(E81:M81, MATCH(0, COUNTIF($BD81:BD81, E81:M81), 0)),\"\")","v":139},{"$f":"IFERROR(INDEX(E81:M81, MATCH(0, COUNTIF($BD81:BE81, E81:M81), 0)),\"\")","v":144},{"$f":"IFERROR(INDEX(E81:M81, MATCH(0, COUNTIF($BD81:BF81, E81:M81), 0)),\"\")","v":152},{"$f":"IFERROR(INDEX(E81:M81, MATCH(0, COUNTIF($BD81:BG81, E81:M81), 0)),\"\")","v":114},{"$f":"IFERROR(INDEX(E81:M81, MATCH(0, COUNTIF($BD81:BH81, E81:M81), 0)),\"\")","v":167},{"$f":"IFERROR(INDEX(E81:M81, MATCH(0, COUNTIF($BD81:BI81, E81:M81), 0)),\"\")","v":0},{"$f":"IFERROR(INDEX(E81:M81, MATCH(0, COUNTIF($BD81:BJ81, E81:M81), 0)),\"\")","v":""},{"$f":"IFERROR(INDEX(E81:M81, MATCH(0, COUNTIF($BD81:BK81, E81:M81), 0)),\"\")","v":""},{"$f":"IFERROR(INDEX(E81:M81, MATCH(0, COUNTIF($BD81:BL81, E81:M81), 0)),\"\")","v":""}]
[null,"3.",{"$f":"INDIRECT(\"C\"&SMALL(IF($D$10:$D$73=$D82,ROW($D$10:$D$73),\"\"),ROW()-79))","v":"Honza R."},{"$f":"IFERROR(INDIRECT(\"D\"&SMALL(IF($D$10:$D$73<>\"ž\",ROW($D$10:$D$73),\"\"),ROW()-79)),\"\")","v":"P"},{"$f":"N(INDIRECT(\"E\"&SMALL(IF($D$10:$D$73=$D82,ROW($D$10:$D$73),\"\"),ROW()-79)))","v":186},{"$f":"N(INDIRECT(\"F\"&SMALL(IF($D$10:$D$73=$D82,ROW($D$10:$D$73),\"\"),ROW()-79)))","v":145},{"$f":"N(INDIRECT(\"G\"&SMALL(IF($D$10:$D$73=$D82,ROW($D$10:$D$73),\"\"),ROW()-79)))","v":179},{"$f":"N(INDIRECT(\"H\"&SMALL(IF($D$10:$D$73=$D82,ROW($D$10:$D$73),\"\"),ROW()-79)))","v":158},{"$f":"N(INDIRECT(\"I\"&SMALL(IF($D$10:$D$73=$D82,ROW($D$10:$D$73),\"\"),ROW()-79)))","v":152},{"$f":"N(INDIRECT(\"J\"&SMALL(IF($D$10:$D$73=$D82,ROW($D$10:$D$73),\"\"),ROW()-79)))","v":160},{"$f":"N(INDIRECT(\"K\"&SMALL(IF($D$10:$D$73=$D82,ROW($D$10:$D$73),\"\"),ROW()-79)))","v":0},{"$f":"N(INDIRECT(\"L\"&SMALL(IF($D$10:$D$73=$D82,ROW($D$10:$D$73),\"\"),ROW()-79)))","v":0},{"$f":"N(INDIRECT(\"M\"&SMALL(IF($D$10:$D$73=$D82,ROW($D$10:$D$73),\"\"),ROW()-79)))","v":0},{"$f":"N(INDIRECT(\"N\"&SMALL(IF($D$10:$D$73=$D82,ROW($D$10:$D$73),\"\"),ROW()-79)))","v":0},{"$f":"N(INDIRECT(\"O\"&SMALL(IF($D$10:$D$73=$D82,ROW($D$10:$D$73),\"\"),ROW()-79)))","v":980},{"$f":"N(INDIRECT(\"P\"&SMALL(IF($D$10:$D$73=$D82,ROW($D$10:$D$73),\"\"),ROW()-79)))","v":163.33333333333334},null,null,null,null,null,null,null,{"$f":"IF(F82=0,\"\",F82)","v":145},{"$f":"IF(G82=0,\"\",G82)","v":179},{"$f":"IF(H82=0,\"\",H82)","v":158},{"$f":"IF(I82=0,\"\",I82)","v":152},{"$f":"IF(J82=0,\"\",J82)","v":160},{"$f":"IF(K82=0,\"\",K82)","v":""},{"$f":"IF(L82=0,\"\",L82)","v":""},{"$f":"IF(M82=0,\"\",M82)","v":""},null,null,null,null,null,null,null,null,null,null,null,null,null,null,null,{"$f":"MAX(X82:AE82)","v":179},{"$f":"IF(AU82=MAX($AU$80:$AU$89),P82,0)","v":{"$error":"#NUM!"}},null,{"$f":"IF(O82=0,\"Na\",MIN(X82:AE82))","v":145},{"$f":"IF(AX82=MIN(AX$80:AX$89),P82,\"Na\")","v":{"$error":"#NUM!"}},null,null,null,null,null,{"$f":"IFERROR(INDEX(E82:M82, MATCH(0, COUNTIF($BD82:BD82, E82:M82), 0)),\"\")","v":186},{"$f":"IFERROR(INDEX(E82:M82, MATCH(0, COUNTIF($BD82:BE82, E82:M82), 0)),\"\")","v":145},{"$f":"IFERROR(INDEX(E82:M82, MATCH(0, COUNTIF($BD82:BF82, E82:M82), 0)),\"\")","v":179},{"$f":"IFERROR(INDEX(E82:M82, MATCH(0, COUNTIF($BD82:BG82, E82:M82), 0)),\"\")","v":158},{"$f":"IFERROR(INDEX(E82:M82, MATCH(0, COUNTIF($BD82:BH82, E82:M82), 0)),\"\")","v":152},{"$f":"IFERROR(INDEX(E82:M82, MATCH(0, COUNTIF($BD82:BI82, E82:M82), 0)),\"\")","v":160},{"$f":"IFERROR(INDEX(E82:M82, MATCH(0, COUNTIF($BD82:BJ82, E82:M82), 0)),\"\")","v":0},{"$f":"IFERROR(INDEX(E82:M82, MATCH(0, COUNTIF($BD82:BK82, E82:M82), 0)),\"\")","v":""},{"$f":"IFERROR(INDEX(E82:M82, MATCH(0, COUNTIF($BD82:BL82, E82:M82), 0)),\"\")","v":""}]
[null,"4.",{"$f":"INDIRECT(\"C\"&SMALL(IF($D$10:$D$73=$D83,ROW($D$10:$D$73),\"\"),ROW()-79))","v":"Jarda H."},{"$f":"IFERROR(INDIRECT(\"D\"&SMALL(IF($D$10:$D$73<>\"ž\",ROW($D$10:$D$73),\"\"),ROW()-79)),\"\")","v":"P"},{"$f":"N(INDIRECT(\"E\"&SMALL(IF($D$10:$D$73=$D83,ROW($D$10:$D$73),\"\"),ROW()-79)))","v":170},{"$f":"N(INDIRECT(\"F\"&SMALL(IF($D$10:$D$73=$D83,ROW($D$10:$D$73),\"\"),ROW()-79)))","v":150},{"$f":"N(INDIRECT(\"G\"&SMALL(IF($D$10:$D$73=$D83,ROW($D$10:$D$73),\"\"),ROW()-79)))","v":201},{"$f":"N(INDIRECT(\"H\"&SMALL(IF($D$10:$D$73=$D83,ROW($D$10:$D$73),\"\"),ROW()-79)))","v":141},{"$f":"N(INDIRECT(\"I\"&SMALL(IF($D$10:$D$73=$D83,ROW($D$10:$D$73),\"\"),ROW()-79)))","v":145},{"$f":"N(INDIRECT(\"J\"&SMALL(IF($D$10:$D$73=$D83,ROW($D$10:$D$73),\"\"),ROW()-79)))","v":0},{"$f":"N(INDIRECT(\"K\"&SMALL(IF($D$10:$D$73=$D83,ROW($D$10:$D$73),\"\"),ROW()-79)))","v":0},{"$f":"N(INDIRECT(\"L\"&SMALL(IF($D$10:$D$73=$D83,ROW($D$10:$D$73),\"\"),ROW()-79)))","v":0},{"$f":"N(INDIRECT(\"M\"&SMALL(IF($D$10:$D$73=$D83,ROW($D$10:$D$73),\"\"),ROW()-79)))","v":0},{"$f":"N(INDIRECT(\"N\"&SMALL(IF($D$10:$D$73=$D83,ROW($D$10:$D$73),\"\"),ROW()-79)))","v":0},{"$f":"N(INDIRECT(\"O\"&SMALL(IF($D$10:$D$73=$D83,ROW($D$10:$D$73),\"\"),ROW()-79)))","v":807},{"$f":"N(INDIRECT(\"P\"&SMALL(IF($D$10:$D$73=$D83,ROW($D$10:$D$73),\"\"),ROW()-79)))","v":161.4},null,null,null,null,null,null,null,{"$f":"IF(F83=0,\"\",F83)","v":150},{"$f":"IF(G83=0,\"\",G83)","v":201},{"$f":"IF(H83=0,\"\",H83)","v":141},{"$f":"IF(I83=0,\"\",I83)","v":145},{"$f":"IF(J83=0,\"\",J83)","v":""},{"$f":"IF(K83=0,\"\",K83)","v":""},{"$f":"IF(L83=0,\"\",L83)","v":""},{"$f":"IF(M83=0,\"\",M83)","v":""},null,null,null,null,null,null,null,null,null,null,null,null,null,null,null,{"$f":"MAX(X83:AE83)","v":201},{"$f":"IF(AU83=MAX($AU$80:$AU$89),P83,0)","v":{"$error":"#NUM!"}},null,{"$f":"IF(O83=0,\"Na\",MIN(X83:AE83))","v":141},{"$f":"IF(AX83=MIN(AX$80:AX$89),P83,\"Na\")","v":{"$error":"#NUM!"}},null,null,null,null,null,{"$f":"IFERROR(INDEX(E83:M83, MATCH(0, COUNTIF($BD83:BD83, E83:M83), 0)),\"\")","v":170},{"$f":"IFERROR(INDEX(E83:M83, MATCH(0, COUNTIF($BD83:BE83, E83:M83), 0)),\"\")","v":150},{"$f":"IFERROR(INDEX(E83:M83, MATCH(0, COUNTIF($BD83:BF83, E83:M83), 0)),\"\")","v":201},{"$f":"IFERROR(INDEX(E83:M83, MATCH(0, COUNTIF($BD83:BG83, E83:M83), 0)),\"\")","v":141},{"$f":"IFERROR(INDEX(E83:M83, MATCH(0, COUNTIF($BD83:BH83, E83:M83), 0)),\"\")","v":145},{"$f":"IFERROR(INDEX(E83:M83, MATCH(0, COUNTIF($BD83:BI83, E83:M83), 0)),\"\")","v":0},{"$f":"IFERROR(INDEX(E83:M83, MATCH(0, COUNTIF($BD83:BJ83, E83:M83), 0)),\"\")","v":""},{"$f":"IFERROR(INDEX(E83:M83, MATCH(0, COUNTIF($BD83:BK83, E83:M83), 0)),\"\")","v":""},{"$f":"IFERROR(INDEX(E83:M83, MATCH(0, COUNTIF($BD83:BL83, E83:M83), 0)),\"\")","v":""}]
[null,"5.",{"$f":"INDIRECT(\"C\"&SMALL(IF($D$10:$D$73=$D84,ROW($D$10:$D$73),\"\"),ROW()-79))","v":{"$error":"#NUM!"}},{"$f":"IFERROR(INDIRECT(\"D\"&SMALL(IF($D$10:$D$73<>\"ž\",ROW($D$10:$D$73),\"\"),ROW()-79)),\"\")","v":"P"},{"$f":"N(INDIRECT(\"E\"&SMALL(IF($D$10:$D$73=$D84,ROW($D$10:$D$73),\"\"),ROW()-79)))","v":{"$error":"#NUM!"}},{"$f":"N(INDIRECT(\"F\"&SMALL(IF($D$10:$D$73=$D84,ROW($D$10:$D$73),\"\"),ROW()-79)))","v":{"$error":"#NUM!"}},{"$f":"N(INDIRECT(\"G\"&SMALL(IF($D$10:$D$73=$D84,ROW($D$10:$D$73),\"\"),ROW()-79)))","v":{"$error":"#NUM!"}},{"$f":"N(INDIRECT(\"H\"&SMALL(IF($D$10:$D$73=$D84,ROW($D$10:$D$73),\"\"),ROW()-79)))","v":{"$error":"#NUM!"}},{"$f":"N(INDIRECT(\"I\"&SMALL(IF($D$10:$D$73=$D84,ROW($D$10:$D$73),\"\"),ROW()-79)))","v":{"$error":"#NUM!"}},{"$f":"N(INDIRECT(\"J\"&SMALL(IF($D$10:$D$73=$D84,ROW($D$10:$D$73),\"\"),ROW()-79)))","v":{"$error":"#NUM!"}},{"$f":"N(INDIRECT(\"K\"&SMALL(IF($D$10:$D$73=$D84,ROW($D$10:$D$73),\"\"),ROW()-79)))","v":{"$error":"#NUM!"}},{"$f":"N(INDIRECT(\"L\"&SMALL(IF($D$10:$D$73=$D84,ROW($D$10:$D$73),\"\"),ROW()-79)))","v":{"$error":"#NUM!"}},{"$f":"N(INDIRECT(\"M\"&SMALL(IF($D$10:$D$73=$D84,ROW($D$10:$D$73),\"\"),ROW()-79)))","v":{"$error":"#NUM!"}},{"$f":"N(INDIRECT(\"N\"&SMALL(IF($D$10:$D$73=$D84,ROW($D$10:$D$73),\"\"),ROW()-79)))","v":{"$error":"#NUM!"}},{"$f":"N(INDIRECT(\"O\"&SMALL(IF($D$10:$D$73=$D84,ROW($D$10:$D$73),\"\"),ROW()-79)))","v":{"$error":"#NUM!"}},{"$f":"N(INDIRECT(\"P\"&SMALL(IF($D$10:$D$73=$D84,ROW($D$10:$D$73),\"\"),ROW()-79)))","v":{"$error":"#NUM!"}},null,null,null,null,null,null,null,{"$f":"IF(F84=0,\"\",F84)","v":{"$error":"#NUM!"}},{"$f":"IF(G84=0,\"\",G84)","v":{"$error":"#NUM!"}},{"$f":"IF(H84=0,\"\",H84)","v":{"$error":"#NUM!"}},{"$f":"IF(I84=0,\"\",I84)","v":{"$error":"#NUM!"}},{"$f":"IF(J84=0,\"\",J84)","v":{"$error":"#NUM!"}},{"$f":"IF(K84=0,\"\",K84)","v":{"$error":"#NUM!"}},{"$f":"IF(L84=0,\"\",L84)","v":{"$error":"#NUM!"}},{"$f":"IF(M84=0,\"\",M84)","v":{"$error":"#NUM!"}},null,null,null,null,null,null,null,null,null,null,null,null,null,null,null,{"$f":"MAX(X84:AE84)","v":{"$error":"#NUM!"}},{"$f":"IF(AU84=MAX($AU$80:$AU$89),P84,0)","v":{"$error":"#NUM!"}},null,{"$f":"IF(O84=0,\"Na\",MIN(X84:AE84))","v":{"$error":"#NUM!"}},{"$f":"IF(AX84=MIN(AX$80:AX$89),P84,\"Na\")","v":{"$error":"#NUM!"}},null,null,null,null,null,{"$f":"IFERROR(INDEX(E84:M84, MATCH(0, COUNTIF($BD84:BD84, E84:M84), 0)),\"\")","v":""},{"$f":"IFERROR(INDEX(E84:M84, MATCH(0, COUNTIF($BD84:BE84, E84:M84), 0)),\"\")","v":""},{"$f":"IFERROR(INDEX(E84:M84, MATCH(0, COUNTIF($BD84:BF84, E84:M84), 0)),\"\")","v":""},{"$f":"IFERROR(INDEX(E84:M84, MATCH(0, COUNTIF($BD84:BG84, E84:M84), 0)),\"\")","v":""},{"$f":"IFERROR(INDEX(E84:M84, MATCH(0, COUNTIF($BD84:BH84, E84:M84), 0)),\"\")","v":""},{"$f":"IFERROR(INDEX(E84:M84, MATCH(0, COUNTIF($BD84:BI84, E84:M84), 0)),\"\")","v":""},{"$f":"IFERROR(INDEX(E84:M84, MATCH(0, COUNTIF($BD84:BJ84, E84:M84), 0)),\"\")","v":""},{"$f":"IFERROR(INDEX(E84:M84, MATCH(0, COUNTIF($BD84:BK84, E84:M84), 0)),\"\")","v":""},{"$f":"IFERROR(INDEX(E84:M84, MATCH(0, COUNTIF($BD84:BL84, E84:M84), 0)),\"\")","v":""}]
[null,"6.",{"$f":"INDIRECT(\"C\"&SMALL(IF($D$10:$D$73=$D85,ROW($D$10:$D$73),\"\"),ROW()-79))","v":{"$error":"#NUM!"}},{"$f":"IFERROR(INDIRECT(\"D\"&SMALL(IF($D$10:$D$73<>\"ž\",ROW($D$10:$D$73),\"\"),ROW()-79)),\"\")","v":"M"},{"$f":"N(INDIRECT(\"E\"&SMALL(IF($D$10:$D$73=$D85,ROW($D$10:$D$73),\"\"),ROW()-79)))","v":{"$error":"#NUM!"}},{"$f":"N(INDIRECT(\"F\"&SMALL(IF($D$10:$D$73=$D85,ROW($D$10:$D$73),\"\"),ROW()-79)))","v":{"$error":"#NUM!"}},{"$f":"N(INDIRECT(\"G\"&SMALL(IF($D$10:$D$73=$D85,ROW($D$10:$D$73),\"\"),ROW()-79)))","v":{"$error":"#NUM!"}},{"$f":"N(INDIRECT(\"H\"&SMALL(IF($D$10:$D$73=$D85,ROW($D$10:$D$73),\"\"),ROW()-79)))","v":{"$error":"#NUM!"}},{"$f":"N(INDIRECT(\"I\"&SMALL(IF($D$10:$D$73=$D85,ROW($D$10:$D$73),\"\"),ROW()-79)))","v":{"$error":"#NUM!"}},{"$f":"N(INDIRECT(\"J\"&SMALL(IF($D$10:$D$73=$D85,ROW($D$10:$D$73),\"\"),ROW()-79)))","v":{"$error":"#NUM!"}},{"$f":"N(INDIRECT(\"K\"&SMALL(IF($D$10:$D$73=$D85,ROW($D$10:$D$73),\"\"),ROW()-79)))","v":{"$error":"#NUM!"}},{"$f":"N(INDIRECT(\"L\"&SMALL(IF($D$10:$D$73=$D85,ROW($D$10:$D$73),\"\"),ROW()-79)))","v":{"$error":"#NUM!"}},{"$f":"N(INDIRECT(\"M\"&SMALL(IF($D$10:$D$73=$D85,ROW($D$10:$D$73),\"\"),ROW()-79)))","v":{"$error":"#NUM!"}},{"$f":"N(INDIRECT(\"N\"&SMALL(IF($D$10:$D$73=$D85,ROW($D$10:$D$73),\"\"),ROW()-79)))","v":{"$error":"#NUM!"}},{"$f":"N(INDIRECT(\"O\"&SMALL(IF($D$10:$D$73=$D85,ROW($D$10:$D$73),\"\"),ROW()-79)))","v":{"$error":"#NUM!"}},{"$f":"N(INDIRECT(\"P\"&SMALL(IF($D$10:$D$73=$D85,ROW($D$10:$D$73),\"\"),ROW()-79)))","v":{"$error":"#NUM!"}},null,null,null,null,null,null,null,{"$f":"IF(F85=0,\"\",F85)","v":{"$error":"#NUM!"}},{"$f":"IF(G85=0,\"\",G85)","v":{"$error":"#NUM!"}},{"$f":"IF(H85=0,\"\",H85)","v":{"$error":"#NUM!"}},{"$f":"IF(I85=0,\"\",I85)","v":{"$error":"#NUM!"}},{"$f":"IF(J85=0,\"\",J85)","v":{"$error":"#NUM!"}},{"$f":"IF(K85=0,\"\",K85)","v":{"$error":"#NUM!"}},{"$f":"IF(L85=0,\"\",L85)","v":{"$error":"#NUM!"}},{"$f":"IF(M85=0,\"\",M85)","v":{"$error":"#NUM!"}},null,null,null,null,null,null,null,null,null,null,null,null,null,null,null,{"$f":"MAX(X85:AE85)","v":{"$error":"#NUM!"}},{"$f":"IF(AU85=MAX($AU$80:$AU$89),P85,0)","v":{"$error":"#NUM!"}},null,{"$f":"IF(O85=0,\"Na\",MIN(X85:AE85))","v":{"$error":"#NUM!"}},{"$f":"IF(AX85=MIN(AX$80:AX$89),P85,\"Na\")","v":{"$error":"#NUM!"}},null,null,null,null,null,{"$f":"IFERROR(INDEX(E85:M85, MATCH(0, COUNTIF($BD85:BD85, E85:M85), 0)),\"\")","v":""},{"$f":"IFERROR(INDEX(E85:M85, MATCH(0, COUNTIF($BD85:BE85, E85:M85), 0)),\"\")","v":""},{"$f":"IFERROR(INDEX(E85:M85, MATCH(0, COUNTIF($BD85:BF85, E85:M85), 0)),\"\")","v":""},{"$f":"IFERROR(INDEX(E85:M85, MATCH(0, COUNTIF($BD85:BG85, E85:M85), 0)),\"\")","v":""},{"$f":"IFERROR(INDEX(E85:M85, MATCH(0, COUNTIF($BD85:BH85, E85:M85), 0)),\"\")","v":""},{"$f":"IFERROR(INDEX(E85:M85, MATCH(0, COUNTIF($BD85:BI85, E85:M85), 0)),\"\")","v":""},{"$f":"IFERROR(INDEX(E85:M85, MATCH(0, COUNTIF($BD85:BJ85, E85:M85), 0)),\"\")","v":""},{"$f":"IFERROR(INDEX(E85:M85, MATCH(0, COUNTIF($BD85:BK85, E85:M85), 0)),\"\")","v":""},{"$f":"IFERROR(INDEX(E85:M85, MATCH(0, COUNTIF($BD85:BL85, E85:M85), 0)),\"\")","v":""}]
[null,"7.",{"$f":"INDIRECT(\"C\"&SMALL(IF($D$10:$D$73=$D86,ROW($D$10:$D$73),\"\"),ROW()-79))","v":{"$error":"#NUM!"}},{"$f":"IFERROR(INDIRECT(\"D\"&SMALL(IF($D$10:$D$73<>\"ž\",ROW($D$10:$D$73),\"\"),ROW()-79)),\"\")","v":"M"},{"$f":"N(INDIRECT(\"E\"&SMALL(IF($D$10:$D$73=$D86,ROW($D$10:$D$73),\"\"),ROW()-79)))","v":{"$error":"#NUM!"}},{"$f":"N(INDIRECT(\"F\"&SMALL(IF($D$10:$D$73=$D86,ROW($D$10:$D$73),\"\"),ROW()-79)))","v":{"$error":"#NUM!"}},{"$f":"N(INDIRECT(\"G\"&SMALL(IF($D$10:$D$73=$D86,ROW($D$10:$D$73),\"\"),ROW()-79)))","v":{"$error":"#NUM!"}},{"$f":"N(INDIRECT(\"H\"&SMALL(IF($D$10:$D$73=$D86,ROW($D$10:$D$73),\"\"),ROW()-79)))","v":{"$error":"#NUM!"}},{"$f":"N(INDIRECT(\"I\"&SMALL(IF($D$10:$D$73=$D86,ROW($D$10:$D$73),\"\"),ROW()-79)))","v":{"$error":"#NUM!"}},{"$f":"N(INDIRECT(\"J\"&SMALL(IF($D$10:$D$73=$D86,ROW($D$10:$D$73),\"\"),ROW()-79)))","v":{"$error":"#NUM!"}},{"$f":"N(INDIRECT(\"K\"&SMALL(IF($D$10:$D$73=$D86,ROW($D$10:$D$73),\"\"),ROW()-79)))","v":{"$error":"#NUM!"}},{"$f":"N(INDIRECT(\"L\"&SMALL(IF($D$10:$D$73=$D86,ROW($D$10:$D$73),\"\"),ROW()-79)))","v":{"$error":"#NUM!"}},{"$f":"N(INDIRECT(\"M\"&SMALL(IF($D$10:$D$73=$D86,ROW($D$10:$D$73),\"\"),ROW()-79)))","v":{"$error":"#NUM!"}},{"$f":"N(INDIRECT(\"N\"&SMALL(IF($D$10:$D$73=$D86,ROW($D$10:$D$73),\"\"),ROW()-79)))","v":{"$error":"#NUM!"}},{"$f":"N(INDIRECT(\"O\"&SMALL(IF($D$10:$D$73=$D86,ROW($D$10:$D$73),\"\"),ROW()-79)))","v":{"$error":"#NUM!"}},{"$f":"N(INDIRECT(\"P\"&SMALL(IF($D$10:$D$73=$D86,ROW($D$10:$D$73),\"\"),ROW()-79)))","v":{"$error":"#NUM!"}},null,null,null,null,null,null,null,{"$f":"IF(F86=0,\"\",F86)","v":{"$error":"#NUM!"}},{"$f":"IF(G86=0,\"\",G86)","v":{"$error":"#NUM!"}},{"$f":"IF(H86=0,\"\",H86)","v":{"$error":"#NUM!"}},{"$f":"IF(I86=0,\"\",I86)","v":{"$error":"#NUM!"}},{"$f":"IF(J86=0,\"\",J86)","v":{"$error":"#NUM!"}},{"$f":"IF(K86=0,\"\",K86)","v":{"$error":"#NUM!"}},{"$f":"IF(L86=0,\"\",L86)","v":{"$error":"#NUM!"}},{"$f":"IF(M86=0,\"\",M86)","v":{"$error":"#NUM!"}},null,null,null,null,null,null,null,null,null,null,null,null,null,null,null,{"$f":"MAX(X86:AE86)","v":{"$error":"#NUM!"}},{"$f":"IF(AU86=MAX($AU$80:$AU$89),P86,0)","v":{"$error":"#NUM!"}},null,{"$f":"IF(O86=0,\"Na\",MIN(X86:AE86))","v":{"$error":"#NUM!"}},{"$f":"IF(AX86=MIN(AX$80:AX$89),P86,\"Na\")","v":{"$error":"#NUM!"}},null,null,null,null,null,{"$f":"IFERROR(INDEX(E86:M86, MATCH(0, COUNTIF($BD86:BD86, E86:M86), 0)),\"\")","v":""},{"$f":"IFERROR(INDEX(E86:M86, MATCH(0, COUNTIF($BD86:BE86, E86:M86), 0)),\"\")","v":""},{"$f":"IFERROR(INDEX(E86:M86, MATCH(0, COUNTIF($BD86:BF86, E86:M86), 0)),\"\")","v":""},{"$f":"IFERROR(INDEX(E86:M86, MATCH(0, COUNTIF($BD86:BG86, E86:M86), 0)),\"\")","v":""},{"$f":"IFERROR(INDEX(E86:M86, MATCH(0, COUNTIF($BD86:BH86, E86:M86), 0)),\"\")","v":""},{"$f":"IFERROR(INDEX(E86:M86, MATCH(0, COUNTIF($BD86:BI86, E86:M86), 0)),\"\")","v":""},{"$f":"IFERROR(INDEX(E86:M86, MATCH(0, COUNTIF($BD86:BJ86, E86:M86), 0)),\"\")","v":""},{"$f":"IFERROR(INDEX(E86:M86, MATCH(0, COUNTIF($BD86:BK86, E86:M86), 0)),\"\")","v":""},{"$f":"IFERROR(INDEX(E86:M86, MATCH(0, COUNTIF($BD86:BL86, E86:M86), 0)),\"\")","v":""}]
[null,"8.",{"$f":"INDIRECT(\"C\"&SMALL(IF($D$10:$D$73=$D87,ROW($D$10:$D$73),\"\"),ROW()-79))","v":0},{"$f":"IFERROR(INDIRECT(\"D\"&SMALL(IF($D$10:$D$73<>\"ž\",ROW($D$10:$D$73),\"\"),ROW()-79)),\"\")","v":0},{"$f":"N(INDIRECT(\"E\"&SMALL(IF($D$10:$D$73=$D87,ROW($D$10:$D$73),\"\"),ROW()-79)))","v":0},{"$f":"N(INDIRECT(\"F\"&SMALL(IF($D$10:$D$73=$D87,ROW($D$10:$D$73),\"\"),ROW()-79)))","v":0},{"$f":"N(INDIRECT(\"G\"&SMALL(IF($D$10:$D$73=$D87,ROW($D$10:$D$73),\"\"),ROW()-79)))","v":0},{"$f":"N(INDIRECT(\"H\"&SMALL(IF($D$10:$D$73=$D87,ROW($D$10:$D$73),\"\"),ROW()-79)))","v":0},{"$f":"N(INDIRECT(\"I\"&SMALL(IF($D$10:$D$73=$D87,ROW($D$10:$D$73),\"\"),ROW()-79)))","v":0},{"$f":"N(INDIRECT(\"J\"&SMALL(IF($D$10:$D$73=$D87,ROW($D$10:$D$73),\"\"),ROW()-79)))","v":0},{"$f":"N(INDIRECT(\"K\"&SMALL(IF($D$10:$D$73=$D87,ROW($D$10:$D$73),\"\"),ROW()-79)))","v":0},{"$f":"N(INDIRECT(\"L\"&SMALL(IF($D$10:$D$73=$D87,ROW($D$10:$D$73),\"\"),ROW()-79)))","v":0},{"$f":"N(INDIRECT(\"M\"&SMALL(IF($D$10:$D$73=$D87,ROW($D$10:$D$73),\"\"),ROW()-79)))","v":0},{"$f":"N(INDIRECT(\"N\"&SMALL(IF($D$10:$D$73=$D87,ROW($D$10:$D$73),\"\"),ROW()-79)))","v":0},{"$f":"N(INDIRECT(\"O\"&SMALL(IF($D$10:$D$73=$D87,ROW($D$10:$D$73),\"\"),ROW()-79)))","v":0},{"$f":"N(INDIRECT(\"P\"&SMALL(IF($D$10:$D$73=$D87,ROW($D$10:$D$73),\"\"),ROW()-79)))","v":{"$error":"#DIV/0!"}},null,null,null,null,null,null,null,{"$f":"IF(F87=0,\"\",F87)","v":""},{"$f":"IF(G87=0,\"\",G87)","v":""},{"$f":"IF(H87=0,\"\",H87)","v":""},{"$f":"IF(I87=0,\"\",I87)","v":""},{"$f":"IF(J87=0,\"\",J87)","v":""},{"$f":"IF(K87=0,\"\",K87)","v":""},{"$f":"IF(L87=0,\"\",L87)","v":""},{"$f":"IF(M87=0,\"\",M87)","v":""},null,null,null,null,null,null,null,null,null,null,null,null,null,null,null,{"$f":"MAX(X87:AE87)","v":0},{"$f":"IF(AU87=MAX($AU$80:$AU$89),P87,0)","v":{"$error":"#NUM!"}},null,{"$f":"IF(O87=0,\"Na\",MIN(X87:AE87))","v":"Na"},{"$f":"IF(AX87=MIN(AX$80:AX$89),P87,\"Na\")","v":{"$error":"#NUM!"}},null,null,null,null,null,{"$f":"IFERROR(INDEX(E87:M87, MATCH(0, COUNTIF($BD87:BD87, E87:M87), 0)),\"\")","v":0},{"$f":"IFERROR(INDEX(E87:M87, MATCH(0, COUNTIF($BD87:BE87, E87:M87), 0)),\"\")","v":""},{"$f":"IFERROR(INDEX(E87:M87, MATCH(0, COUNTIF($BD87:BF87, E87:M87), 0)),\"\")","v":""},{"$f":"IFERROR(INDEX(E87:M87, MATCH(0, COUNTIF($BD87:BG87, E87:M87), 0)),\"\")","v":""},{"$f":"IFERROR(INDEX(E87:M87, MATCH(0, COUNTIF($BD87:BH87, E87:M87), 0)),\"\")","v":""},{"$f":"IFERROR(INDEX(E87:M87, MATCH(0, COUNTIF($BD87:BI87, E87:M87), 0)),\"\")","v":""},{"$f":"IFERROR(INDEX(E87:M87, MATCH(0, COUNTIF($BD87:BJ87, E87:M87), 0)),\"\")","v":""},{"$f":"IFERROR(INDEX(E87:M87, MATCH(0, COUNTIF($BD87:BK87, E87:M87), 0)),\"\")","v":""},{"$f":"IFERROR(INDEX(E87:M87, MATCH(0, COUNTIF($BD87:BL87, E87:M87), 0)),\"\")","v":""}]
[null,"9.",{"$f":"INDIRECT(\"C\"&SMALL(IF($D$10:$D$73=$D88,ROW($D$10:$D$73),\"\"),ROW()-79))","v":0},{"$f":"IFERROR(INDIRECT(\"D\"&SMALL(IF($D$10:$D$73<>\"ž\",ROW($D$10:$D$73),\"\"),ROW()-79)),\"\")","v":0},{"$f":"N(INDIRECT(\"E\"&SMALL(IF($D$10:$D$73=$D88,ROW($D$10:$D$73),\"\"),ROW()-79)))","v":0},{"$f":"N(INDIRECT(\"F\"&SMALL(IF($D$10:$D$73=$D88,ROW($D$10:$D$73),\"\"),ROW()-79)))","v":0},{"$f":"N(INDIRECT(\"G\"&SMALL(IF($D$10:$D$73=$D88,ROW($D$10:$D$73),\"\"),ROW()-79)))","v":0},{"$f":"N(INDIRECT(\"H\"&SMALL(IF($D$10:$D$73=$D88,ROW($D$10:$D$73),\"\"),ROW()-79)))","v":0},{"$f":"N(INDIRECT(\"I\"&SMALL(IF($D$10:$D$73=$D88,ROW($D$10:$D$73),\"\"),ROW()-79)))","v":0},{"$f":"N(INDIRECT(\"J\"&SMALL(IF($D$10:$D$73=$D88,ROW($D$10:$D$73),\"\"),ROW()-79)))","v":0},{"$f":"N(INDIRECT(\"K\"&SMALL(IF($D$10:$D$73=$D88,ROW($D$10:$D$73),\"\"),ROW()-79)))","v":0},{"$f":"N(INDIRECT(\"L\"&SMALL(IF($D$10:$D$73=$D88,ROW($D$10:$D$73),\"\"),ROW()-79)))","v":0},{"$f":"N(INDIRECT(\"M\"&SMALL(IF($D$10:$D$73=$D88,ROW($D$10:$D$73),\"\"),ROW()-79)))","v":0},{"$f":"N(INDIRECT(\"N\"&SMALL(IF($D$10:$D$73=$D88,ROW($D$10:$D$73),\"\"),ROW()-79)))","v":0},{"$f":"N(INDIRECT(\"O\"&SMALL(IF($D$10:$D$73=$D88,ROW($D$10:$D$73),\"\"),ROW()-79)))","v":0},{"$f":"N(INDIRECT(\"P\"&SMALL(IF($D$10:$D$73=$D88,ROW($D$10:$D$73),\"\"),ROW()-79)))","v":{"$error":"#DIV/0!"}},null,null,null,null,null,null,null,{"$f":"IF(F88=0,\"\",F88)","v":""},{"$f":"IF(G88=0,\"\",G88)","v":""},{"$f":"IF(H88=0,\"\",H88)","v":""},{"$f":"IF(I88=0,\"\",I88)","v":""},{"$f":"IF(J88=0,\"\",J88)","v":""},{"$f":"IF(K88=0,\"\",K88)","v":""},{"$f":"IF(L88=0,\"\",L88)","v":""},{"$f":"IF(M88=0,\"\",M88)","v":""},null,null,null,null,null,null,null,null,null,null,null,null,null,null,null,{"$f":"MAX(X88:AE88)","v":0},{"$f":"IF(AU88=MAX($AU$80:$AU$89),P88,0)","v":{"$error":"#NUM!"}},null,{"$f":"IF(O88=0,\"Na\",MIN(X88:AE88))","v":"Na"},{"$f":"IF(AX88=MIN(AX$80:AX$89),P88,\"Na\")","v":{"$error":"#NUM!"}},null,null,null,null,null,{"$f":"IFERROR(INDEX(E88:M88, MATCH(0, COUNTIF($BD88:BD88, E88:M88), 0)),\"\")","v":0},{"$f":"IFERROR(INDEX(E88:M88, MATCH(0, COUNTIF($BD88:BE88, E88:M88), 0)),\"\")","v":""},{"$f":"IFERROR(INDEX(E88:M88, MATCH(0, COUNTIF($BD88:BF88, E88:M88), 0)),\"\")","v":""},{"$f":"IFERROR(INDEX(E88:M88, MATCH(0, COUNTIF($BD88:BG88, E88:M88), 0)),\"\")","v":""},{"$f":"IFERROR(INDEX(E88:M88, MATCH(0, COUNTIF($BD88:BH88, E88:M88), 0)),\"\")","v":""},{"$f":"IFERROR(INDEX(E88:M88, MATCH(0, COUNTIF($BD88:BI88, E88:M88), 0)),\"\")","v":""},{"$f":"IFERROR(INDEX(E88:M88, MATCH(0, COUNTIF($BD88:BJ88, E88:M88), 0)),\"\")","v":""},{"$f":"IFERROR(INDEX(E88:M88, MATCH(0, COUNTIF($BD88:BK88, E88:M88), 0)),\"\")","v":""},{"$f":"IFERROR(INDEX(E88:M88, MATCH(0, COUNTIF($BD88:BL88, E88:M88), 0)),\"\")","v":""}]
[null,"10.",{"$f":"INDIRECT(\"C\"&SMALL(IF($D$10:$D$73=$D89,ROW($D$10:$D$73),\"\"),ROW()-79))","v":0},{"$f":"IFERROR(INDIRECT(\"D\"&SMALL(IF($D$10:$D$73<>\"ž\",ROW($D$10:$D$73),\"\"),ROW()-79)),\"\")","v":0},{"$f":"N(INDIRECT(\"E\"&SMALL(IF($D$10:$D$73=$D89,ROW($D$10:$D$73),\"\"),ROW()-79)))","v":0},{"$f":"N(INDIRECT(\"F\"&SMALL(IF($D$10:$D$73=$D89,ROW($D$10:$D$73),\"\"),ROW()-79)))","v":0},{"$f":"N(INDIRECT(\"G\"&SMALL(IF($D$10:$D$73=$D89,ROW($D$10:$D$73),\"\"),ROW()-79)))","v":0},{"$f":"N(INDIRECT(\"H\"&SMALL(IF($D$10:$D$73=$D89,ROW($D$10:$D$73),\"\"),ROW()-79)))","v":0},{"$f":"N(INDIRECT(\"I\"&SMALL(IF($D$10:$D$73=$D89,ROW($D$10:$D$73),\"\"),ROW()-79)))","v":0},{"$f":"N(INDIRECT(\"J\"&SMALL(IF($D$10:$D$73=$D89,ROW($D$10:$D$73),\"\"),ROW()-79)))","v":0},{"$f":"N(INDIRECT(\"K\"&SMALL(IF($D$10:$D$73=$D89,ROW($D$10:$D$73),\"\"),ROW()-79)))","v":0},{"$f":"N(INDIRECT(\"L\"&SMALL(IF($D$10:$D$73=$D89,ROW($D$10:$D$73),\"\"),ROW()-79)))","v":0},{"$f":"N(INDIRECT(\"M\"&SMALL(IF($D$10:$D$73=$D89,ROW($D$10:$D$73),\"\"),ROW()-79)))","v":0},{"$f":"N(INDIRECT(\"N\"&SMALL(IF($D$10:$D$73=$D89,ROW($D$10:$D$73),\"\"),ROW()-79)))","v":0},{"$f":"N(INDIRECT(\"O\"&SMALL(IF($D$10:$D$73=$D89,ROW($D$10:$D$73),\"\"),ROW()-79)))","v":0},{"$f":"N(INDIRECT(\"P\"&SMALL(IF($D$10:$D$73=$D89,ROW($D$10:$D$73),\"\"),ROW()-79)))","v":{"$error":"#DIV/0!"}},null,null,null,null,null,null,null,{"$f":"IF(F89=0,\"\",F89)","v":""},{"$f":"IF(G89=0,\"\",G89)","v":""},{"$f":"IF(H89=0,\"\",H89)","v":""},{"$f":"IF(I89=0,\"\",I89)","v":""},{"$f":"IF(J89=0,\"\",J89)","v":""},{"$f":"IF(K89=0,\"\",K89)","v":""},{"$f":"IF(L89=0,\"\",L89)","v":""},{"$f":"IF(M89=0,\"\",M89)","v":""},null,null,null,null,null,null,null,null,null,null,null,null,null,null,null,{"$f":"MAX(X89:AE89)","v":0},{"$f":"IF(AU89=MAX($AU$80:$AU$89),P89,0)","v":{"$error":"#NUM!"}},null,{"$f":"IF(O89=0,\"Na\",MIN(X89:AE89))","v":"Na"},{"$f":"IF(AX89=MIN(AX$80:AX$89),P89,\"Na\")","v":{"$error":"#NUM!"}},null,null,null,null,null,{"$f":"IFERROR(INDEX(E89:M89, MATCH(0, COUNTIF($BD89:BD89, E89:M89), 0)),\"\")","v":0},{"$f":"IFERROR(INDEX(E89:M89, MATCH(0, COUNTIF($BD89:BE89, E89:M89), 0)),\"\")","v":""},{"$f":"IFERROR(INDEX(E89:M89, MATCH(0, COUNTIF($BD89:BF89, E89:M89), 0)),\"\")","v":""},{"$f":"IFERROR(INDEX(E89:M89, MATCH(0, COUNTIF($BD89:BG89, E89:M89), 0)),\"\")","v":""},{"$f":"IFERROR(INDEX(E89:M89, MATCH(0, COUNTIF($BD89:BH89, E89:M89), 0)),\"\")","v":""},{"$f":"IFERROR(INDEX(E89:M89, MATCH(0, COUNTIF($BD89:BI89, E89:M89), 0)),\"\")","v":""},{"$f":"IFERROR(INDEX(E89:M89, MATCH(0, COUNTIF($BD89:BJ89, E89:M89), 0)),\"\")","v":""},{"$f":"IFERROR(INDEX(E89:M89, MATCH(0, COUNTIF($BD89:BK89, E89:M89), 0)),\"\")","v":""},{"$f":"IFERROR(INDEX(E89:M89, MATCH(0, COUNTIF($BD89:BL89, E89:M89), 0)),\"\")","v":""}]
[null,"Součet",null,null,{"$f":"SUM(E80:E89)","v":{"$error":"#NUM!"}},{"$error":"#NUM!"},{"$error":"#NUM!"},{"$error":"#NUM!"},{"$error":"#NUM!"},{"$error":"#NUM!"},{"$error":"#NUM!"},{"$error":"#NUM!"},{"$error":"#NUM!"},null,{"$f":"SUM(E90:M90)","v":{"$error":"#NUM!"}}]
[null,"Průměr",null,null,{"$f":"IFERROR(AVERAGEIF(E80:E89,\"<>0\",E80:E89),\"\")","v":""},"","","","","","","","",null,null,{"$f":"IF(O90=\"\",\"\",AVERAGEIF(E80:M89,\"<>0\",E80:M89))","v":{"$error":"#NUM!"}}]
[null,null,null,null,null,null,null,null,null,null,null,null,null,null,null,null,null,null,null,null,null,null,null,null,null,null,null,null,null,null,null,null,"Pomocné tabulky, které kopírují hodnoty ze zdrojových tabulek s funkcí odstranění nulových hodnot. Dále je použito pro vyhledávání jmen a průměrů jednotlivých hráčů obou mužských kategorií pro vyhodnocení cen za nejnižší a nejvyšší náhozy (kompaktně v jedné ucelené tabulce)."]
[null,{"$f":"rozpis_příprava!E20","v":"Ž"},{"$f":"rozpis_příprava!B20","v":"KATEGORIE ŽENY"}]
[null,{"$f":"rozpis_příprava!E21","v":"M"},{"$f":"rozpis_příprava!B21","v":"KATEGORIE MUŽI"}]
[null,{"$f":"rozpis_příprava!E22","v":"P"},{"$f":"rozpis_příprava!B22","v":"KATEGORIE PROFI"}]